Transaction Number,Service - Fund ,Service  - Function ,Service - Cost Centre,Expense Type ,Expense Description,Supplier Name,Supplier Post Code (first 4 digits),Payment Date,Amount �
099883233,Human Resources and Organisational Development,"People, Culture and Organisational Resilience",Pay & Reward,Supplies and Services,Consultants,11 KBW LIMITED,EC4Y,16/08/2023,"3,000.00"
101069270,Physical Support,Adults,Physical Support 18 - 64,3rd Party Payments,Personal Budget - Domiciliary care,247 HOME CARE LTD,SN5 ,25/08/2023,-3.80
100242238,Physical Support,Adults,Physical Support 65 and over,3rd Party Payments,Personal Budget - Domiciliary care,247 HOME CARE LTD,SN5 ,18/08/2023,"1,099.98"
100242240,Physical Support,Adults,Physical Support 65 and over,3rd Party Payments,Personal Budget - Domiciliary care,247 HOME CARE LTD,SN5 ,18/08/2023,-162.87
097893233,Physical Support,Adults,Physical Support 18 - 64,3rd Party Payments,Carers,247 HOME CARE LTD,SN5 ,04/08/2023,151.44
100242237,Physical Support,Adults,Physical Support 18 - 64,3rd Party Payments,Personal Budget - Domiciliary care,247 HOME CARE LTD,SN5 ,18/08/2023,-3.80
099333249,Physical Support,Adults,Physical Support 18 - 64,3rd Party Payments,Personal Budget - Domiciliary care,247 HOME CARE LTD,SN5 ,11/08/2023,-3.80
097893233,Physical Support,Adults,Physical Support 18 - 64,3rd Party Payments,Personal Budget - Domiciliary care,247 HOME CARE LTD,SN5 ,04/08/2023,"1,103.68"
101069272,Physical Support,Adults,Physical Support 65 and over,3rd Party Payments,Personal Budget - Domiciliary care,247 HOME CARE LTD,SN5 ,25/08/2023,897.87
099333250,Physical Support,Adults,Physical Support 65 and over,3rd Party Payments,Personal Budget - Domiciliary care,247 HOME CARE LTD,SN5 ,11/08/2023,"1,099.98"
099333251,Physical Support,Adults,Physical Support 65 and over,3rd Party Payments,Personal Budget - Domiciliary care,247 HOME CARE LTD,SN5 ,11/08/2023,-162.87
101069270,Physical Support,Adults,Physical Support 18 - 64,3rd Party Payments,Carers,247 HOME CARE LTD,SN5 ,25/08/2023,114.94
099333249,Physical Support,Adults,Physical Support 18 - 64,3rd Party Payments,Carers,247 HOME CARE LTD,SN5 ,11/08/2023,114.94
100242237,Physical Support,Adults,Physical Support 18 - 64,3rd Party Payments,Personal Budget - Domiciliary care,247 HOME CARE LTD,SN5 ,18/08/2023,"1,140.18"
097894233,Physical Support,Adults,Physical Support 65 and over,3rd Party Payments,Personal Budget - Domiciliary care,247 HOME CARE LTD,SN5 ,04/08/2023,"1,099.98"
097895233,Physical Support,Adults,Physical Support 65 and over,3rd Party Payments,Personal Budget - Domiciliary care,247 HOME CARE LTD,SN5 ,04/08/2023,897.87
100242240,Physical Support,Adults,Physical Support 65 and over,3rd Party Payments,Personal Budget - Domiciliary care,247 HOME CARE LTD,SN5 ,18/08/2023,897.87
097895233,Physical Support,Adults,Physical Support 65 and over,3rd Party Payments,Personal Budget - Domiciliary care,247 HOME CARE LTD,SN5 ,04/08/2023,-162.87
101069272,Physical Support,Adults,Physical Support 65 and over,3rd Party Payments,Personal Budget - Domiciliary care,247 HOME CARE LTD,SN5 ,25/08/2023,-162.87
101069271,Physical Support,Adults,Physical Support 65 and over,3rd Party Payments,Personal Budget - Domiciliary care,247 HOME CARE LTD,SN5 ,25/08/2023,"1,099.98"
099333251,Physical Support,Adults,Physical Support 65 and over,3rd Party Payments,Personal Budget - Domiciliary care,247 HOME CARE LTD,SN5 ,11/08/2023,897.87
097893233,Physical Support,Adults,Physical Support 65 and over,3rd Party Payments,Personal Budget - Domiciliary care,247 HOME CARE LTD,SN5 ,04/08/2023,-3.80
101069270,Physical Support,Adults,Physical Support 18 - 64,3rd Party Payments,Personal Budget - Domiciliary care,247 HOME CARE LTD,SN5 ,25/08/2023,"1,140.18"
100242237,Physical Support,Adults,Physical Support 18 - 64,3rd Party Payments,Carers,247 HOME CARE LTD,SN5 ,18/08/2023,114.94
099333249,Physical Support,Adults,Physical Support 18 - 64,3rd Party Payments,Personal Budget - Domiciliary care,247 HOME CARE LTD,SN5 ,11/08/2023,"1,140.18"
100226233,Social Care,"Children, Families and Community Health Services",Children's Resource and Home Finding Team,3rd Party Payments,Residential Care,4D CARE LTD,PE14,18/08/2023,"18,821.03"
098133233,Social Care,"Children, Families and Community Health Services",Children's Resource and Home Finding Team,3rd Party Payments,Residential Care,4D CARE LTD,PE14,04/08/2023,"18,821.03"
101860350,DSG Other Funding,DSG Skills and Attainment,LAC pupil premium,Supplies and Services,Services,4D CARE LTD,PE14,25/08/2023,600.00
099805233,Property Service Charged Properties,Property,Service Charged - Carriageworks,Premises Costs,Waste,707 LTD T/A CLICK WASTE,NG24,16/08/2023,"3,614.75"
099804233,Property Service Charged Properties,Property,Service Charged - Carriageworks,Premises Costs,Waste,707 LTD T/A CLICK WASTE,NG24,16/08/2023,"1,878.17"
099014233,Human Resources and Organisational Development,"People, Culture and Organisational Resilience",Organisational Development,Employees,Training,A PLUS SAFETY & TRAINING SERVICES LTD,SN3 ,09/08/2023,570.00
100030233,Streetsmart,Streetsmart,Waste - Processing,Employees,Training,A PLUS SAFETY & TRAINING SERVICES LTD,SN3 ,16/08/2023,"3,810.00"
101434233,Homelessness and Travellers,Housing Services,Private Sector Landlords,Transfer Payments,Payment of Costs,REDACTED PERSONAL DATA,SN3 ,25/08/2023,800.00
101266233,Social Care,"Children, Families and Community Health Services",Looked After Children Service,3rd Party Payments,Personal Needs,A. E. SMITH & SON FUNERAL DIRECTORS,SN3 ,25/08/2023,"1,699.00"
099966233,Human Resources and Organisational Development,"People, Culture and Organisational Resilience",HR Operations,Employees,Temporary / Agency - by Accounts Payable,AB RECRUITMENT SOLUTIONS LTD,SN2 ,16/08/2023,960.00
097668239,Other Repairs,Repairs,Cyclical Maintenance,Supplies and Services,Testing / Inspection,ABBEY ELECTRICAL (SWINDON) LTD T/A ABBEY ELECTRICAL UK,SN6 ,02/08/2023,"1,023.60"
097699233,Other Repairs,Repairs,Cyclical Maintenance,Supplies and Services,Testing / Inspection,ABBEY ELECTRICAL (SWINDON) LTD T/A ABBEY ELECTRICAL UK,SN6 ,02/08/2023,"2,047.77"
097701233,Other Repairs,Repairs,Cyclical Maintenance,Supplies and Services,Testing / Inspection,ABBEY ELECTRICAL (SWINDON) LTD T/A ABBEY ELECTRICAL UK,SN6 ,02/08/2023,890.56
097700233,Other Repairs,Repairs,Cyclical Maintenance,Supplies and Services,Testing / Inspection,ABBEY ELECTRICAL (SWINDON) LTD T/A ABBEY ELECTRICAL UK,SN6 ,02/08/2023,970.27
097668234,Other Repairs,Repairs,Cyclical Maintenance,Supplies and Services,Testing / Inspection,ABBEY ELECTRICAL (SWINDON) LTD T/A ABBEY ELECTRICAL UK,SN6 ,02/08/2023,422.92
098047242,Other Repairs,Repairs,Cyclical Maintenance,Supplies and Services,Testing / Inspection,ABBEY ELECTRICAL (SWINDON) LTD T/A ABBEY ELECTRICAL UK,SN6 ,04/08/2023,471.33
099857239,Other Repairs,Repairs,Unallocated job costs from OPEN system,Premises Costs,Maintenance - Buildings,ABBEY ELECTRICAL (SWINDON) LTD T/A ABBEY ELECTRICAL UK,SN6 ,16/08/2023,699.98
100840233,Early Years Block,DSG Skills and Attainment,Free Nursery Education Commissioning - three & four  year olds,3rd Party Payments,Contracts - Child Care,ABBEY FARM EDUCATE TOGETHER PRIMARY,SN25,23/08/2023,"2,280.00"
099717233,Early Years Block,DSG Skills and Attainment,Free Nursery Education Commissioning - three & four  year olds,3rd Party Payments,Contracts - Child Care,ABBEY FARM EDUCATE TOGETHER PRIMARY,SN25,16/08/2023,"3,427.51"
099718233,Early Years Block,DSG Skills and Attainment,Free Nursery Education Commissioning - three & four  year olds,3rd Party Payments,Contracts - Child Care,ABBEY FARM EDUCATE TOGETHER PRIMARY,SN25,16/08/2023,608.40
097392233,Education,"Education, Inclusion and Skills",Homes for Ukraine - Education & Childcare,Supplies and Services,Payments to Educational Bodies,ABBEY MEADS COMMUNITY PRIMARY SCHOOL,SN25,02/08/2023,"46,060.00"
098703233,High Needs Block,DSG Skills and Attainment,SEN Resourcing Assessment Panel,3rd Party Payments,Top up funding - Academies and Free Schools Pre 16,ABBEY MEADS COMMUNITY PRIMARY SCHOOL,SN25,11/08/2023,"6,215.42"
099568233,Public Health,Public Health,Sexual Health & Health Protection Budget,3rd Party Payments,Contract Payments,ABBEY MEADS MEDICAL GROUP,SN25,14/08/2023,898.00
098286243,Physical Support,Adults,Physical Support 18 - 64,3rd Party Payments,Personal Budget - Domiciliary care,ABICARE SERVICES LTD,BS32,04/08/2023,576.84
099333241,Physical Support,Adults,Physical Support 18 - 64,3rd Party Payments,Personal Budget - Domiciliary care,ABICARE SERVICES LTD,BS32,11/08/2023,576.84
100344234,Physical Support,Adults,Physical Support 18 - 64,3rd Party Payments,Personal Budget - Domiciliary care,ABICARE SERVICES LTD,BS32,18/08/2023,586.96
099333247,Mental Health,Adults,Mental Health 65 and over,3rd Party Payments,Personal Budget - Domiciliary care,ABICARE SERVICES LTD (LIVE IN),SP2 ,11/08/2023,"1,106.00"
100350234,Physical Support,Adults,Physical Support 18 - 64,3rd Party Payments,Personal Budget - Domiciliary care,ABICARE SERVICES LTD (LIVE IN),SP2 ,18/08/2023,"1,200.00"
098286246,Physical Support,Adults,Physical Support 18 - 64,3rd Party Payments,Personal Budget - Domiciliary care,ABICARE SERVICES LTD (LIVE IN),SP2 ,04/08/2023,"1,200.00"
098287233,Physical Support,Adults,Physical Support 18 - 64,3rd Party Payments,Personal Budget - Domiciliary care,ABICARE SERVICES LTD (LIVE IN),SP2 ,04/08/2023,"1,106.00"
101856267,Physical Support,Adults,Physical Support 65 and over,3rd Party Payments,Personal Budget - Domiciliary care,ABICARE SERVICES LTD (LIVE IN),SP2 ,25/08/2023,"1,200.00"
098288233,Mental Health,Adults,Mental Health 65 and over,3rd Party Payments,Personal Budget - Domiciliary care,ABICARE SERVICES LTD (LIVE IN),SP2 ,04/08/2023,"1,106.00"
100353234,Mental Health,Adults,Mental Health 65 and over,3rd Party Payments,Personal Budget - Domiciliary care,ABICARE SERVICES LTD (LIVE IN),SP2 ,18/08/2023,"1,106.00"
101856269,Mental Health,Adults,Mental Health 65 and over,3rd Party Payments,Personal Budget - Domiciliary care,ABICARE SERVICES LTD (LIVE IN),SP2 ,25/08/2023,"1,106.00"
099333246,Physical Support,Adults,Physical Support 18 - 64,3rd Party Payments,Personal Budget - Domiciliary care,ABICARE SERVICES LTD (LIVE IN),SP2 ,11/08/2023,"1,106.00"
101856266,Physical Support,Adults,Physical Support 18 - 64,3rd Party Payments,Personal Budget - Domiciliary care,ABICARE SERVICES LTD (LIVE IN),SP2 ,25/08/2023,"1,200.00"
099333248,Mental Health,Adults,Mental Health 65 and over,3rd Party Payments,Personal Budget - Domiciliary care,ABICARE SERVICES LTD (LIVE IN),SP2 ,11/08/2023,"1,106.00"
099333245,Physical Support,Adults,Physical Support 18 - 64,3rd Party Payments,Personal Budget - Domiciliary care,ABICARE SERVICES LTD (LIVE IN),SP2 ,11/08/2023,"1,200.00"
101856268,Physical Support,Adults,Physical Support 18 - 64,3rd Party Payments,Personal Budget - Domiciliary care,ABICARE SERVICES LTD (LIVE IN),SP2 ,25/08/2023,"1,106.00"
101856270,Mental Health,Adults,Mental Health 65 and over,3rd Party Payments,Personal Budget - Domiciliary care,ABICARE SERVICES LTD (LIVE IN),SP2 ,25/08/2023,"1,106.00"
100349233,Mental Health,Adults,Mental Health 65 and over,3rd Party Payments,Personal Budget - Domiciliary care,ABICARE SERVICES LTD (LIVE IN),SP2 ,18/08/2023,"1,264.00"
100351234,Physical Support,Adults,Physical Support 65 and over,3rd Party Payments,Personal Budget - Domiciliary care,ABICARE SERVICES LTD (LIVE IN),SP2 ,18/08/2023,"1,200.00"
100352233,Physical Support,Adults,Physical Support 18 - 64,3rd Party Payments,Personal Budget - Domiciliary care,ABICARE SERVICES LTD (LIVE IN),SP2 ,18/08/2023,"1,106.00"
100354233,Mental Health,Adults,Mental Health 65 and over,3rd Party Payments,Personal Budget - Domiciliary care,ABICARE SERVICES LTD (LIVE IN),SP2 ,18/08/2023,"1,106.00"
098971233,Social Care,"Children, Families and Community Health Services",Placement - Care Leaver Team,3rd Party Payments,Personal Needs,ABIDING LIMITED T/A ABIDING CARE,HP14,09/08/2023,48.38
100234233,Social Care,"Children, Families and Community Health Services",Unaccompanied Asylum Seeking Children (UASC),3rd Party Payments,Personal Needs,ABIDING LIMITED T/A ABIDING CARE,HP14,18/08/2023,50.00
098971233,Social Care,"Children, Families and Community Health Services",Placement - Care Leaver Team,3rd Party Payments,Cash Support,ABIDING LIMITED T/A ABIDING CARE,HP14,09/08/2023,795.60
098971233,Social Care,"Children, Families and Community Health Services",Placement - Care Leaver Team,3rd Party Payments,Clothing,ABIDING LIMITED T/A ABIDING CARE,HP14,09/08/2023,276.12
100234233,Social Care,"Children, Families and Community Health Services",Unaccompanied Asylum Seeking Children (UASC),3rd Party Payments,Clothing,ABIDING LIMITED T/A ABIDING CARE,HP14,18/08/2023,105.00
100234233,Social Care,"Children, Families and Community Health Services",Unaccompanied Asylum Seeking Children (UASC),3rd Party Payments,Cash Support,ABIDING LIMITED T/A ABIDING CARE,HP14,18/08/2023,845.52
099720233,Early Years Block,DSG Skills and Attainment,Free Nursery Education Commissioning - three & four  year olds,3rd Party Payments,Contracts - Child Care,REDACTED PERSONAL DATA,SN2 ,16/08/2023,741.74
098483233,Streetsmart,Streetsmart,Waterside Fleet Hires,Transport Costs,Vehicle Hire / Contract,ACCESS HIRE NATIONWIDE,WF6 ,04/08/2023,"1,512.00"
101214233,Streetsmart,Streetsmart,Waterside Fleet Hires,Transport Costs,Vehicle Hire / Contract,ACCESS HIRE NATIONWIDE,WF6 ,23/08/2023,754.00
101218233,Streetsmart,Streetsmart,Waterside Fleet Hires,Transport Costs,Vehicle Hire / Contract,ACCESS HIRE NATIONWIDE,WF6 ,23/08/2023,"1,024.64"
101215233,Streetsmart,Streetsmart,Waterside Fleet Hires,Transport Costs,Vehicle Hire / Contract,ACCESS HIRE NATIONWIDE,WF6 ,23/08/2023,755.00
101213234,Streetsmart,Streetsmart,Waterside Fleet Hires,Transport Costs,Vehicle Hire / Contract,ACCESS HIRE NATIONWIDE,WF6 ,23/08/2023,784.00
098516233,Streetsmart,Streetsmart,Waterside Fleet Workshops,Transport Costs,Repairs & Maintenance - Vehicles,ACCESS HIRE NATIONWIDE,WF6 ,09/08/2023,"4,046.38"
101217233,Streetsmart,Streetsmart,Waterside Fleet Hires,Transport Costs,Vehicle Hire / Contract,ACCESS HIRE NATIONWIDE,WF6 ,23/08/2023,"1,064.00"
101216233,Streetsmart,Streetsmart,Waterside Fleet Hires,Transport Costs,Vehicle Hire / Contract,ACCESS HIRE NATIONWIDE,WF6 ,23/08/2023,790.86
101219233,Streetsmart,Streetsmart,Waterside Fleet Hires,Transport Costs,Vehicle Hire / Contract,ACCESS HIRE NATIONWIDE,WF6 ,23/08/2023,"1,456.07"
098952233,Physical Support,Adults,Reablement Delivery,Supplies and Services,Equipment,ACCESS UK LTD,LE11,09/08/2023,"4,033.41"
101948233,Learning Disabilities,Adults,Learning Disability 18 - 64,3rd Party Payments,Residential Care,ACHIEVE TOGETHER LTD,BA2 ,30/08/2023,"5,406.44"
100574233,Disabled Children,"Children, Families and Community Health Services",Occupational Therapy - Children,Supplies and Services,Equipment,ACORN MOBILITY SERVICES LTD,BD20,18/08/2023,"2,995.00"
101493233,Homelessness and Travellers,Housing Services,Private Sector Landlords,Transfer Payments,Payment of Costs,REDACTED PERSONAL DATA,SN8 ,25/08/2023,650.00
101455233,Homelessness and Travellers,Housing Services,Private Sector Landlords,Transfer Payments,Payment of Costs,REDACTED PERSONAL DATA,SN8 ,25/08/2023,700.00
098761233,High Needs Block,DSG Skills and Attainment,SEN Resourcing Assessment Panel,3rd Party Payments,Top up funding - Academies and Free Schools Post 16,ACTIVATE LEARNING EDUCATION TRUST,OX1 ,11/08/2023,660.83
098116233,Social Care,"Children, Families and Community Health Services",Unaccompanied Asylum Seeking Children (UASC),3rd Party Payments,Independent Fostering Agency Placements,ACTIVE CARE SOLUTIONS LTD,B60 ,04/08/2023,"4,345.58"
098115233,Social Care,"Children, Families and Community Health Services",Children's Resource and Home Finding Team,3rd Party Payments,Independent Fostering Agency Placements,ACTIVE CARE SOLUTIONS LTD,B60 ,04/08/2023,"6,394.68"
098118233,Social Care,"Children, Families and Community Health Services",Children's Resource and Home Finding Team,3rd Party Payments,Independent Fostering Agency Placements,ACTIVE CARE SOLUTIONS LTD,B60 ,04/08/2023,"3,365.36"
098117233,Social Care,"Children, Families and Community Health Services",Children's Resource and Home Finding Team,3rd Party Payments,Independent Fostering Agency Placements,ACTIVE CARE SOLUTIONS LTD,B60 ,04/08/2023,"3,277.01"
101958319,Learning Disabilities,Adults,Learning Disability 18 - 64,Transfer Payments,Personal Budget - Direct Payments - Domiciliary Care,REDACTED PERSONAL DATA,SN4 ,30/08/2023,"1,290.77"
101958588,Learning Disabilities,Adults,Learning Disability 18 - 64,Transfer Payments,Personal Budget - Direct Payments - Domiciliary Care,REDACTED PERSONAL DATA,SN3 ,30/08/2023,"2,219.29"
100027233,Adults - Staffing and Supporting People,Adults,ASC Leadership Team,Supplies and Services,Subscriptions,ADASS,SW1P,16/08/2023,"2,609.00"
101454233,Homelessness and Travellers,Housing Services,Private Sector Landlords,Transfer Payments,Payment of Costs,ADVANCE HOUSING & SUPPORT LTD,OX28,25/08/2023,"1,074.00"
101240234,Non-HRA Vehicles,Transport,Vehicle & Plant replacement strategy,Capital,Contractor Payments,ADVANCED PRINTING SERVICES UK LTD,SN2 ,25/08/2023,495.00
097799233,Public Health,Public Health,Public Health Grant,3rd Party Payments,Contract Payments,ADVERSET MEDIA SOLUTIONS LIMITED,YO11,02/08/2023,570.00
098100233,Social Care,"Children, Families and Community Health Services",Children's Resource and Home Finding Team,3rd Party Payments,Independent Fostering Agency Placements,AFFINITY FOSTERING SERVICES LTD,CM4 ,04/08/2023,"3,690.00"
098099233,Social Care,"Children, Families and Community Health Services",Children's Resource and Home Finding Team,3rd Party Payments,Independent Fostering Agency Placements,AFFINITY FOSTERING SERVICES LTD,CM4 ,04/08/2023,"5,464.20"
098098233,Social Care,"Children, Families and Community Health Services",Children's Resource and Home Finding Team,3rd Party Payments,Independent Fostering Agency Placements,AFFINITY FOSTERING SERVICES LTD,CM4 ,04/08/2023,"3,690.00"
099615233,Landscaping & Open Space,Culture & Heritage & Art,Moredon Recreation - Multi Sports Hub,Capital,Contractor Payments,AGGREGATE INDUSTRIES UK LTD T/A SPADEOAK,HP10,14/08/2023,"298,091.39"
099448233,Landscaping & Open Space,Culture & Heritage & Art,Moredon Recreation - Multi Sports Hub,Capital,Contractor Payments,AGGREGATE INDUSTRIES UK LTD T/A SPADEOAK,HP10,11/08/2023,"168,129.68"
100894233,Social Care,"Children, Families and Community Health Services",Looked After Children Service,3rd Party Payments,Cash Support,AGILE QUARTER ACCOMMODATION LTD,EC1V,23/08/2023,896.00
100387256,Learning Disabilities,Adults,Learning Disability 65 and over,Income,Client Contribution - Supported Living,AGINCARE ENABLE LTD,DT5 ,18/08/2023,-476.60
100387256,Learning Disabilities,Adults,Learning Disability 65 and over,3rd Party Payments,Supported Lodgings (Childrens)/Supported Living (Adults),AGINCARE ENABLE LTD,DT5 ,18/08/2023,"6,099.00"
100387256,Learning Disabilities,Adults,Learning Disability 65 and over,3rd Party Payments,Supported Lodgings (Childrens)/Supported Living (Adults),AGINCARE ENABLE LTD,DT5 ,18/08/2023,"2,573.48"
100339233,Physical Support,Adults,Physical Support 65 and over,Income,Client Contribution - Residential,AGINCARE LTD,DT5 ,18/08/2023,"-1,231.12"
100339233,Physical Support,Adults,Physical Support 65 and over,3rd Party Payments,Residential Care,AGINCARE LTD,DT5 ,18/08/2023,"3,780.00"
100339233,Physical Support,Adults,Physical Support 65 and over,3rd Party Payments,Residential Care,AGINCARE LTD,DT5 ,18/08/2023,"-18,642.86"
100339233,Physical Support,Adults,Physical Support 65 and over,3rd Party Payments,Residential Care,AGINCARE LTD,DT5 ,18/08/2023,"19,575.00"
102025233,School Transport,"Education, Inclusion and Skills",Special Educational Needs Transport,Transport Costs,Home to School Transport,AKCESS CIC,SN2 ,30/08/2023,"35,615.72"
097828233,Travel,Highways & Transport,Public Transport,3rd Party Payments,Contract Payments,AKCESS CIC,SN2 ,02/08/2023,"15,023.18"
102023233,School Transport,"Education, Inclusion and Skills",Special Educational Needs Transport,Transport Costs,Home to School Transport,AKCESS CIC,SN2 ,30/08/2023,"35,615.72"
102153233,School Transport,"Education, Inclusion and Skills",Mainstream School Transport,Transport Costs,Home to School Transport,AKCESS CIC,SN2 ,30/08/2023,"2,165.63"
102200233,School Transport,"Education, Inclusion and Skills",Special Educational Needs Transport,Employees,Temporary / Agency - by Accounts Payable,AKCESS CIC,SN2 ,30/08/2023,"13,566.00"
102198233,School Transport,"Education, Inclusion and Skills",Mainstream School Transport,Transport Costs,Home to School Transport,AKCESS CIC,SN2 ,30/08/2023,"2,422.50"
102201233,School Transport,"Education, Inclusion and Skills",Special Educational Needs Transport,Employees,Temporary / Agency - by Accounts Payable,AKCESS CIC,SN2 ,30/08/2023,"13,566.00"
102202233,School Transport,"Education, Inclusion and Skills",Mainstream School Transport,Transport Costs,Home to School Transport,AKCESS CIC,SN2 ,30/08/2023,"2,165.63"
102154233,School Transport,"Education, Inclusion and Skills",Mainstream School Transport,Transport Costs,Home to School Transport,AKCESS CIC,SN2 ,30/08/2023,"4,158.00"
102201234,School Transport,"Education, Inclusion and Skills",Mainstream School Transport,Transport Costs,Home to School Transport,AKCESS CIC,SN2 ,30/08/2023,"64,598.21"
100413233,Learning Disabilities,Adults,Learning Disability 18 - 64,3rd Party Payments,Supported Accommodation Scheme,REDACTED PERSONAL DATA,SN2 ,23/08/2023,"2,280.00"
099184240,Disabled Children,"Children, Families and Community Health Services",DCT Daytime Short Breaks,Transfer Payments,Personal Budget - Direct Payments - Other,REDACTED PERSONAL DATA,SN1 ,11/08/2023,661.50
101958608,Learning Disabilities,Adults,Learning Disability 18 - 64,Transfer Payments,Personal Budget - Direct Payments - Domiciliary Care,REDACTED PERSONAL DATA,SN25,30/08/2023,"1,135.30"
099723233,Early Years Block,DSG Skills and Attainment,Free Nursery Education Commissioning - three & four  year olds,3rd Party Payments,Contracts - Child Care,ALFRESCO CHILDCARE,SN6 ,16/08/2023,"7,022.21"
099722233,Early Years Block,DSG Skills and Attainment,Free Nursery Education Commissioning - two year olds,3rd Party Payments,Contracts - Child Care,ALFRESCO CHILDCARE,SN6 ,16/08/2023,578.00
100456233,Learning Disabilities,Adults,Learning Disability 18 - 64,3rd Party Payments,Supported Accommodation Scheme,REDACTED PERSONAL DATA,SN1 ,23/08/2023,"2,666.00"
101958707,Learning Disabilities,Adults,Learning Disability 18 - 64,Transfer Payments,Personal Budget - Direct Payments - Domiciliary Care,REDACTED PERSONAL DATA,SN4 ,30/08/2023,"7,944.44"
100457233,Learning Disabilities,Adults,Learning Disability 18 - 64,3rd Party Payments,Supported Accommodation Scheme,REDACTED PERSONAL DATA,SN2 ,23/08/2023,"2,226.00"
100457233,Learning Disabilities,Adults,Learning Disability 18 - 64,3rd Party Payments,Supported Accommodation Scheme,REDACTED PERSONAL DATA,SN2 ,23/08/2023,"1,840.00"
100457233,Learning Disabilities,Adults,Learning Disability 18 - 64,3rd Party Payments,Supported Accommodation Scheme,REDACTED PERSONAL DATA,SN2 ,23/08/2023,"1,866.00"
101958321,Learning Disabilities,Adults,Learning Disability 18 - 64,Transfer Payments,Personal Budget - Direct Payments - Domiciliary Care,REDACTED PERSONAL DATA,SN5 ,30/08/2023,"9,929.70"
099727233,Early Years Block,DSG Skills and Attainment,Free Nursery Education Commissioning - three & four  year olds,3rd Party Payments,Contracts - Child Care,REDACTED PERSONAL DATA,SN1 ,16/08/2023,"1,146.33"
101958490,Learning Disabilities,Adults,Learning Disability 18 - 64,Transfer Payments,Personal Budget - Direct Payments - Domiciliary Care,REDACTED PERSONAL DATA,SN5 ,30/08/2023,"3,844.76"
102194233,Highways & Transport,Highways & Transport,Rights of Way (ROW),Supplies and Services,Repairs & Maintenance,ALLBUILD BUILDING & LANDSCAPING SERVICES,SN25,30/08/2023,"5,200.00"
098034233,Local Transport Plan Funded,Strategic Planning and Highways,Rights of way Improvement Plan,Capital,Contractor Payments,ALLBUILD BUILDING & LANDSCAPING SERVICES,SN25,02/08/2023,"4,450.00"
102193233,Highways & Transport,Highways & Transport,Rights of Way (ROW),Supplies and Services,Repairs & Maintenance,ALLBUILD BUILDING & LANDSCAPING SERVICES,SN25,30/08/2023,478.40
098035233,Local Transport Plan Funded,Strategic Planning and Highways,Rights of way Improvement Plan,Capital,Contractor Payments,ALLBUILD BUILDING & LANDSCAPING SERVICES,SN25,02/08/2023,"2,390.00"
101006233,Streetsmart,Streetsmart,Waterside Fleet Workshops,Supplies and Services,Materials,ALLIANCE AUTOMOTIVE UK T/A BRAYMARC,BD4 ,23/08/2023,113.58
097877239,Streetsmart,Streetsmart,Waterside Fleet Workshops,Supplies and Services,Equipment,ALLIANCE AUTOMOTIVE UK T/A BRAYMARC,BD4 ,02/08/2023,915.00
101006233,Streetsmart,Streetsmart,Waterside Fleet Workshops,Supplies and Services,Materials,ALLIANCE AUTOMOTIVE UK T/A BRAYMARC,BD4 ,23/08/2023,53.60
099143238,Streetsmart,Streetsmart,Waterside Fleet Workshops,Supplies and Services,Equipment,ALLIANCE AUTOMOTIVE UK T/A BRAYMARC,BD4 ,09/08/2023,220.00
101006233,Streetsmart,Streetsmart,Waterside Fleet Workshops,Supplies and Services,Materials,ALLIANCE AUTOMOTIVE UK T/A BRAYMARC,BD4 ,23/08/2023,97.50
099143238,Streetsmart,Streetsmart,Waterside Fleet Workshops,Supplies and Services,Equipment,ALLIANCE AUTOMOTIVE UK T/A BRAYMARC,BD4 ,09/08/2023,384.00
099143238,Streetsmart,Streetsmart,Waterside Fleet Workshops,Supplies and Services,Equipment,ALLIANCE AUTOMOTIVE UK T/A BRAYMARC,BD4 ,09/08/2023,695.00
101006233,Streetsmart,Streetsmart,Waterside Fleet Workshops,Supplies and Services,Materials,ALLIANCE AUTOMOTIVE UK T/A BRAYMARC,BD4 ,23/08/2023,194.10
100465233,Landlord Services,Supervision & Management,Estate Management Team,Supplies and Services,Contracts,ALLPAY-NET LIMITED,HR1 ,18/08/2023,"2,075.83"
098572233,Treasury,Corporate Finance,Treasury,Supplies and Services,Bank Charges,ALLPAY-NET LIMITED,HR1 ,07/08/2023,"1,235.59"
100590233,Disabled Children,"Children, Families and Community Health Services",DCT Daytime Short Breaks,3rd Party Payments,Respite Care,ALPHA24 HEALTHCARE LTD,EC3A,18/08/2023,"1,080.00"
102087233,Disabled Children,"Children, Families and Community Health Services",DCT Daytime Short Breaks,3rd Party Payments,Respite Care,ALPHA24 HEALTHCARE LTD,EC3A,30/08/2023,"1,080.00"
102086234,Disabled Children,"Children, Families and Community Health Services",DCT Daytime Short Breaks,3rd Party Payments,Respite Care,ALPHA24 HEALTHCARE LTD,EC3A,30/08/2023,"1,440.00"
101184233,Disabled Children,"Children, Families and Community Health Services",DCT Daytime Short Breaks,3rd Party Payments,Respite Care,ALPHA24 HEALTHCARE LTD,EC3A,23/08/2023,"1,440.00"
101183233,Disabled Children,"Children, Families and Community Health Services",DCT Daytime Short Breaks,3rd Party Payments,Respite Care,ALPHA24 HEALTHCARE LTD,EC3A,23/08/2023,"1,080.00"
100113233,Disabled Children,"Children, Families and Community Health Services",DCT Daytime Short Breaks,3rd Party Payments,Respite Care,ALPHA24 HEALTHCARE LTD,EC3A,16/08/2023,"1,080.00"
100263233,Disabled Children,"Children, Families and Community Health Services",DCT Daytime Short Breaks,3rd Party Payments,Respite Care,ALPHA24 HEALTHCARE LTD,EC3A,18/08/2023,720.00
101194233,Disabled Children,"Children, Families and Community Health Services",DCT Daytime Short Breaks,3rd Party Payments,Respite Care,ALPHA24 HEALTHCARE LTD,EC3A,23/08/2023,720.00
102088233,Disabled Children,"Children, Families and Community Health Services",DCT Daytime Short Breaks,3rd Party Payments,Respite Care,ALPHA24 HEALTHCARE LTD,EC3A,30/08/2023,720.00
101182233,Disabled Children,"Children, Families and Community Health Services",DCT Daytime Short Breaks,3rd Party Payments,Respite Care,ALPHA24 HEALTHCARE LTD,EC3A,23/08/2023,"1,080.00"
100589233,Disabled Children,"Children, Families and Community Health Services",DCT Daytime Short Breaks,3rd Party Payments,Respite Care,ALPHA24 HEALTHCARE LTD,EC3A,18/08/2023,"1,440.00"
101181233,Disabled Children,"Children, Families and Community Health Services",DCT Daytime Short Breaks,3rd Party Payments,Respite Care,ALPHA24 HEALTHCARE LTD,EC3A,23/08/2023,"1,080.00"
101179233,Disabled Children,"Children, Families and Community Health Services",DCT Daytime Short Breaks,3rd Party Payments,Respite Care,ALPHA24 HEALTHCARE LTD,EC3A,23/08/2023,720.00
098033233,Social Care,"Children, Families and Community Health Services",CP & CIN Social Work - North,3rd Party Payments,Personal Needs,ALPHA24 HEALTHCARE LTD,EC3A,02/08/2023,"1,110.00"
100262233,Disabled Children,"Children, Families and Community Health Services",DCT Daytime Short Breaks,3rd Party Payments,Respite Care,ALPHA24 HEALTHCARE LTD,EC3A,18/08/2023,"1,080.00"
100261233,Disabled Children,"Children, Families and Community Health Services",DCT Daytime Short Breaks,3rd Party Payments,Respite Care,ALPHA24 HEALTHCARE LTD,EC3A,18/08/2023,"1,080.00"
100260233,Disabled Children,"Children, Families and Community Health Services",DCT Daytime Short Breaks,3rd Party Payments,Respite Care,ALPHA24 HEALTHCARE LTD,EC3A,18/08/2023,"1,080.00"
102085233,Disabled Children,"Children, Families and Community Health Services",DCT Daytime Short Breaks,3rd Party Payments,Respite Care,ALPHA24 HEALTHCARE LTD,EC3A,30/08/2023,720.00
101196233,Disabled Children,"Children, Families and Community Health Services",DCT Daytime Short Breaks,3rd Party Payments,Respite Care,ALPHA24 HEALTHCARE LTD,EC3A,23/08/2023,"1,080.00"
101195233,Disabled Children,"Children, Families and Community Health Services",DCT Daytime Short Breaks,3rd Party Payments,Respite Care,ALPHA24 HEALTHCARE LTD,EC3A,23/08/2023,"1,080.00"
100128233,Disabled Children,"Children, Families and Community Health Services",DCT Daytime Short Breaks,3rd Party Payments,Respite Care,ALPHA24 HEALTHCARE LTD,EC3A,16/08/2023,"1,080.00"
101180233,Disabled Children,"Children, Families and Community Health Services",DCT Daytime Short Breaks,3rd Party Payments,Respite Care,ALPHA24 HEALTHCARE LTD,EC3A,23/08/2023,"1,080.00"
100834233,Social Care,"Children, Families and Community Health Services",Legal Fees,Supplies and Services,Fees,ALPHABIOLABS,WA5 ,21/08/2023,"1,140.00"
100719233,Social Care,"Children, Families and Community Health Services",Legal Fees,Supplies and Services,Fees,ALPHABIOLABS,WA5 ,18/08/2023,460.00
100387260,Physical Support,Adults,Physical Support 65 and over,Income,Client Contribution - Nursing,ALTOGETHER CARE WEYMOUTH CARE HOME,DT4 ,18/08/2023,"-3,406.63"
100387260,Physical Support,Adults,Physical Support 65 and over,3rd Party Payments,Nursing Care,ALTOGETHER CARE WEYMOUTH CARE HOME,DT4 ,18/08/2023,"4,023.28"
100387260,Physical Support,Adults,Physical Support 65 and over,Income,Client Contribution - Nursing,ALTOGETHER CARE WEYMOUTH CARE HOME,DT4 ,18/08/2023,"3,094.16"
100387260,Physical Support,Adults,Physical Support 65 and over,Income,Client Contribution - Nursing,ALTOGETHER CARE WEYMOUTH CARE HOME,DT4 ,18/08/2023,-691.20
101003233,"Volutary Sector, Equipment and Carers",Adults,Voluntary Sector Adults,3rd Party Payments,Contracts - Social Care,ALZHEIMERS SOCIETY,PL2 ,23/08/2023,"2,433.00"
101015233,"Volutary Sector, Equipment and Carers",Adults,Voluntary Sector Adults,3rd Party Payments,Contracts - Social Care,ALZHEIMERS SOCIETY,PL2 ,23/08/2023,"2,433.00"
101014233,"Volutary Sector, Equipment and Carers",Adults,Voluntary Sector Adults,3rd Party Payments,Contracts - Social Care,ALZHEIMERS SOCIETY,PL2 ,23/08/2023,"2,433.00"
101013233,"Volutary Sector, Equipment and Carers",Adults,Voluntary Sector Adults,3rd Party Payments,Contracts - Social Care,ALZHEIMERS SOCIETY,PL2 ,23/08/2023,"2,433.00"
101012233,"Volutary Sector, Equipment and Carers",Adults,Voluntary Sector Adults,3rd Party Payments,Contracts - Social Care,ALZHEIMERS SOCIETY,PL2 ,23/08/2023,"2,433.00"
101958407,Learning Disabilities,Adults,Learning Disability 18 - 64,3rd Party Payments,Carers,REDACTED PERSONAL DATA,SN3 ,30/08/2023,"2,019.43"
101958408,Learning Disabilities,Adults,Learning Disability 18 - 64,3rd Party Payments,Carers,REDACTED PERSONAL DATA,SN3 ,30/08/2023,"1,009.81"
101860240,DSG Other Funding,DSG Skills and Attainment,LAC pupil premium,Supplies and Services,Services,AMBERLEIGH CARE LTD,TF2 ,25/08/2023,600.00
099083233,Social Care,"Children, Families and Community Health Services",Children's Resource and Home Finding Team,3rd Party Payments,Residential Care,AMBERLEIGH CARE LTD,TF2 ,09/08/2023,"21,018.00"
098114233,Social Care,"Children, Families and Community Health Services",Children's Resource and Home Finding Team,3rd Party Payments,Residential Care,AMEGREEN CHILDREN'S SERVICES LTD,RG7 ,04/08/2023,"17,437.50"
099556233,Responsive Repairs,Repairs,Responsive Repairs,Premises Costs,Repairs - Buildings,AMELIO UTILITIES(GLOU) LTD T/A 3 COUNTIES DRAIN SERVICES,GL1 ,11/08/2023,210.89
099556233,Responsive Repairs,Repairs,Responsive Repairs,Premises Costs,Repairs - Buildings,AMELIO UTILITIES(GLOU) LTD T/A 3 COUNTIES DRAIN SERVICES,GL1 ,11/08/2023,176.57
099556233,Responsive Repairs,Repairs,Responsive Repairs,Premises Costs,Repairs - Buildings,AMELIO UTILITIES(GLOU) LTD T/A 3 COUNTIES DRAIN SERVICES,GL1 ,11/08/2023,814.99
099556233,Responsive Repairs,Repairs,Responsive Repairs,Premises Costs,Repairs - Buildings,AMELIO UTILITIES(GLOU) LTD T/A 3 COUNTIES DRAIN SERVICES,GL1 ,11/08/2023,140.60
099699233,"Volutary Sector, Equipment and Carers",Adults,Carers Short Term Breaks - Adults,3rd Party Payments,Carers,REDACTED PERSONAL DATA,SN2 ,16/08/2023,500.00
101958358,Mental Health,Adults,Mental Health 18-64,Transfer Payments,Personal Budget - Direct Payments - Domiciliary Care,REDACTED PERSONAL DATA,SN25,30/08/2023,619.34
100820233,Social Care,"Children, Families and Community Health Services",Legal Fees,Supplies and Services,Fees,REDACTED PERSONAL DATA,EC4Y,21/08/2023,"1,900.00"
101958345,Learning Disabilities,Adults,Learning Disability 18 - 64,Transfer Payments,Personal Budget - Direct Payments - Domiciliary Care,REDACTED PERSONAL DATA,SP11,30/08/2023,502.46
100860265,High Needs Block,DSG Skills and Attainment,SEN Resourcing Assessment Panel,3rd Party Payments,Top up funding - Maintained providers Pre 16,REDACTED PERSONAL DATA,SN5 ,23/08/2023,936.00
099617242,Learning Disabilities,Adults,Learning Disability 18 - 64,Supplies and Services,Services,ANGELS CARE AT HOME LIMITED,SN3 ,16/08/2023,725.76
099617241,Learning Disabilities,Adults,Learning Disability 18 - 64,Supplies and Services,Services,ANGELS CARE AT HOME LIMITED,SN3 ,16/08/2023,829.84
101446233,Homelessness and Travellers,Housing Services,Private Sector Landlords,Transfer Payments,Payment of Costs,ANGELVIEW PROPERTIES LTD,ALBO,25/08/2023,590.00
101958590,Physical Support,Adults,Physical Support 18 - 64,Transfer Payments,Personal Budget - Direct Payments - Domiciliary Care,REDACTED PERSONAL DATA,SN25,30/08/2023,"2,686.51"
100018233,HRA Overheads,Supervision & Management,Admin / Management General,Premises Costs,Insurance - Premises,AON UK LIMITED,EC3V,16/08/2023,"4,063.74"
099165236,Supported Employment,Housing Services,Community Meals,Supplies and Services,Food,APETITO LIMITED,BA14,09/08/2023,"1,473.16"
096419233,Supported Employment,Housing Services,Community Meals,Supplies and Services,Food,APETITO LIMITED,BA14,02/08/2023,987.86
101152234,Supported Employment,Housing Services,Community Meals,Supplies and Services,Food,APETITO LIMITED,BA14,23/08/2023,"1,495.35"
099165233,Supported Employment,Housing Services,Community Meals,Supplies and Services,Food,APETITO LIMITED,BA14,09/08/2023,996.27
101150233,Supported Employment,Housing Services,Community Meals,Supplies and Services,Food,APETITO LIMITED,BA14,23/08/2023,"1,059.48"
098420233,Responsive Repairs,Repairs,Responsive Repairs,3rd Party Payments,Contract Payments,APEX SCAFFOLDING SERVICES,SN2 ,04/08/2023,425.00
100800240,Responsive Repairs,Repairs,Responsive Repairs,3rd Party Payments,Contract Payments,APEX SCAFFOLDING SERVICES,SN2 ,21/08/2023,"1,419.64"
098422233,Responsive Repairs,Repairs,Responsive Repairs,3rd Party Payments,Contract Payments,APEX SCAFFOLDING SERVICES,SN2 ,04/08/2023,685.00
100148246,Responsive Repairs,Repairs,Responsive Repairs,3rd Party Payments,Contract Payments,APEX SCAFFOLDING SERVICES,SN2 ,18/08/2023,668.57
098415233,Responsive Repairs,Repairs,Responsive Repairs,3rd Party Payments,Contract Payments,APEX SCAFFOLDING SERVICES,SN2 ,04/08/2023,55.00
102174233,,,Balance Sheet,Balance Sheet & Recharge,Resources Recharges,APOGEE CORPORATION LIMITED,EC2A,30/08/2023,"10,247.01"
099890233,,,Balance Sheet,Balance Sheet & Recharge,Resources Recharges,APOGEE CORPORATION LIMITED,ME16,16/08/2023,"13,245.74"
098445233,,,Balance Sheet,Balance Sheet & Recharge,Resources Recharges,APOGEE CORPORATION LIMITED,EC2A,04/08/2023,"4,413.32"
Corporate Card Transaction,ASC Finance Services Teams,ASC Finance Services,ASC Money Management Team,Supplies and Services,Services,Apple.Com/Uk,,17/08/2023,"1,537.00"
100350233,Learning Disabilities,Adults,Learning Disability 18 - 64,3rd Party Payments,Residential Care,APPLEFORD LTD T/A DANESWOOD,BS25,18/08/2023,"22,008.12"
100350233,Learning Disabilities,Adults,Learning Disability 18 - 64,Income,Client Contribution - Residential,APPLEFORD LTD T/A DANESWOOD,BS25,18/08/2023,-438.80
098246233,Adults - Staffing and Supporting People,Adults,Blue Badges,Supplies and Services,Materials,APS GROUP,SK3 ,04/08/2023,"1,509.47"
098046233,Traded Services,"Education, Inclusion and Skills",Plas Pencelli Outdoor Education Centre,Supplies and Services,Equipment,AQUALEISURE WATERSPORTS,LL16,02/08/2023,"1,415.20"
101080233,Early Years Block,DSG Skills and Attainment,Free Nursery Education Commissioning - three & four  year olds,3rd Party Payments,Contracts - Child Care,REDACTED PERSONAL DATA,SN2 ,23/08/2023,828.00
101080234,Early Years Block,DSG Skills and Attainment,Free Nursery Education Commissioning - three & four  year olds,3rd Party Payments,Contracts - Child Care,REDACTED PERSONAL DATA,SN2 ,23/08/2023,828.00
100837233,Early Years Block,DSG Skills and Attainment,Free Nursery Education Commissioning - three & four  year olds,3rd Party Payments,Contracts - Child Care,REDACTED PERSONAL DATA,SN2 ,23/08/2023,"7,980.00"
100844233,High Needs Block,DSG Skills and Attainment,SEN Resourcing Assessment Panel,3rd Party Payments,Top up funding - Maintained providers Pre 16,REDACTED PERSONAL DATA,SN2 ,23/08/2023,"7,980.00"
101080235,Early Years Block,DSG Skills and Attainment,Free Nursery Education Commissioning - three & four  year olds,3rd Party Payments,Contracts - Child Care,REDACTED PERSONAL DATA,SN2 ,23/08/2023,828.00
101080236,Early Years Block,DSG Skills and Attainment,Free Nursery Education Commissioning - three & four  year olds,3rd Party Payments,Contracts - Child Care,REDACTED PERSONAL DATA,SN2 ,23/08/2023,828.00
099347233,Human Resources and Organisational Development,"People, Culture and Organisational Resilience",Organisational Development,Employees,Training,ARCA LIMITED,DE13,11/08/2023,614.00
100226255,Social Care,"Children, Families and Community Health Services",Children's Resource and Home Finding Team,3rd Party Payments,Residential Care,AREA CAMDEN GROUP,N8 0,18/08/2023,"22,585.67"
101084233,Social Care,"Children, Families and Community Health Services",Children's Resource and Home Finding Team,3rd Party Payments,Residential Care,AREA CAMDEN GROUP,N8 0,23/08/2023,"22,585.67"
098947234,Human Resources and Organisational Development,"People, Culture and Organisational Resilience",Pay & Reward,Employees,Temporary / Agency - by Accounts Payable,ARGONAUT MANAGEMENT SERVICES LIMITED,N11 ,09/08/2023,"7,800.00"
100387267,Mental Health,Adults,Mental Health 65 and over,3rd Party Payments,Nursing Care,ARIA HEALTHCARE GROUP LTD,CO4 ,18/08/2023,"6,000.00"
099937233,Lydiard Park,Culture & Heritage,Lydiard : Hotel Operations,Supplies and Services,Liquid,ARKELLS BREWERY LTD,SN2 ,16/08/2023,984.51
100531233,Lydiard Park,Culture & Heritage,Lydiard : Hotel Operations,Supplies and Services,Liquid,ARKELLS BREWERY LTD,SN2 ,18/08/2023,640.22
100756234,Lydiard Park,Culture & Heritage,Lydiard : Hotel Operations,Supplies and Services,Liquid,ARKELLS BREWERY LTD,SN2 ,21/08/2023,"3,081.98"
098484233,Streetsmart,Streetsmart,Waterside Fleet Hires,Transport Costs,Vehicle Hire / Contract,ARNOLD PLANT HIRE LIMITED,SK6 ,04/08/2023,"1,470.00"
098486233,Streetsmart,Streetsmart,Waterside Fleet Hires,Transport Costs,Vehicle Hire / Contract,ARNOLD PLANT HIRE LIMITED,SK6 ,04/08/2023,"1,675.00"
098485233,Streetsmart,Streetsmart,Waterside Fleet Hires,Transport Costs,Vehicle Hire / Contract,ARNOLD PLANT HIRE LIMITED,SK6 ,04/08/2023,"1,113.00"
100387264,Mental Health,Adults,Mental Health 65 and over,3rd Party Payments,Residential Care,ARTI CARE HOMES (GLOUCESTER) LIMITED,WD7 ,18/08/2023,"4,800.00"
099860257,Care Management & Safeguarding,Adults,Community Safety Partnership,3rd Party Payments,Contract Payments,ASB HELP,SE1 ,16/08/2023,"1,879.06"
Corporate Card Transaction,Homelessness and Travellers,Housing Services,Warm Welcome Project,Supplies and Services,Equipment,Asda Stores Ltd,,15/08/2023,700.00
Corporate Card Transaction,Homelessness and Travellers,Housing Services,Warm Welcome Project,Supplies and Services,Equipment,Asda Stores Ltd,,10/08/2023,750.00
100351233,Mental Health,Adults,Mental Health 18-64,3rd Party Payments,Residential Care,ASH VIEW HOUSE,BS15,18/08/2023,"7,993.72"
100351233,Mental Health,Adults,Mental Health 18-64,Income,Client Contribution - Residential,ASH VIEW HOUSE,BS15,18/08/2023,-418.80
100278233,Physical Support,Adults,Physical Support 65 and over,3rd Party Payments,Residential Care,ASHBURY LODGE,SN3 ,18/08/2023,-91.43
100278233,Physical Support,Adults,Physical Support 65 and over,3rd Party Payments,Residential Care,ASHBURY LODGE,SN3 ,18/08/2023,"4,032.00"
100278233,Physical Support,Adults,Physical Support 65 and over,Income,Client Contribution - Residential,ASHBURY LODGE,SN3 ,18/08/2023,"-1,565.97"
100278233,Physical Support,Adults,Physical Support 65 and over,Income,Client Contribution - Residential,ASHBURY LODGE,SN3 ,18/08/2023,-627.80
100278233,Physical Support,Adults,Physical Support 65 and over,3rd Party Payments,Residential Care,ASHBURY LODGE,SN3 ,18/08/2023,"2,867.32"
100278233,Physical Support,Adults,Physical Support 65 and over,3rd Party Payments,Residential Care,ASHBURY LODGE,SN3 ,18/08/2023,"3,686.55"
100278233,Physical Support,Adults,Physical Support 65 and over,Income,Client Contribution - Residential,ASHBURY LODGE,SN3 ,18/08/2023,-801.80
100278233,Physical Support,Adults,Physical Support 65 and over,3rd Party Payments,Residential Care,ASHBURY LODGE,SN3 ,18/08/2023,"4,505.79"
100278233,Mental Health,Adults,Mental Health 65 and over,Income,Client Contribution - Residential,ASHBURY LODGE,SN3 ,18/08/2023,-691.20
100278233,Mental Health,Adults,Mental Health 65 and over,Income,Client Contribution - Residential,ASHBURY LODGE,SN3 ,18/08/2023,-805.32
100278233,Physical Support,Adults,Physical Support 65 and over,Income,Client Contribution - Residential,ASHBURY LODGE,SN3 ,18/08/2023,"-1,084.56"
100278233,Physical Support,Adults,Physical Support 65 and over,Income,Client Contribution - Residential,ASHBURY LODGE,SN3 ,18/08/2023,-886.60
100278233,Physical Support,Adults,Physical Support 65 and over,Income,Client Contribution - Residential,ASHBURY LODGE,SN3 ,18/08/2023,"-1,308.16"
100278233,Physical Support,Adults,Physical Support 65 and over,3rd Party Payments,Residential Care,ASHBURY LODGE,SN3 ,18/08/2023,-207.00
100278233,Physical Support,Adults,Physical Support 65 and over,3rd Party Payments,Residential Care,ASHBURY LODGE,SN3 ,18/08/2023,"-10,445.24"
100278233,Care Management & Safeguarding,Adults,Intermediate Care Team,3rd Party Payments,Residential Care,ASHBURY LODGE,SN3 ,18/08/2023,-177.85
100278233,Physical Support,Adults,Physical Support 65 and over,Income,Client Contribution - Residential,ASHBURY LODGE,SN3 ,18/08/2023,"5,028.72"
100278233,Physical Support,Adults,Physical Support 65 and over,Income,Client Contribution - Residential,ASHBURY LODGE,SN3 ,18/08/2023,-691.20
100278233,Physical Support,Adults,Physical Support 65 and over,Income,Client Contribution - Residential,ASHBURY LODGE,SN3 ,18/08/2023,-657.68
100278233,Physical Support,Adults,Physical Support 65 and over,3rd Party Payments,Residential Care,ASHBURY LODGE,SN3 ,18/08/2023,"-3,686.55"
100278233,Mental Health,Adults,Mental Health 65 and over,3rd Party Payments,Residential Care,ASHBURY LODGE,SN3 ,18/08/2023,"2,867.32"
100278233,Mental Health,Adults,Mental Health 65 and over,3rd Party Payments,Residential Care,ASHBURY LODGE,SN3 ,18/08/2023,"2,988.96"
100278233,Physical Support,Adults,Physical Support 65 and over,Income,Client Contribution - Residential,ASHBURY LODGE,SN3 ,18/08/2023,"1,437.83"
100278233,Physical Support,Adults,Physical Support 65 and over,Income,Client Contribution - Residential,ASHBURY LODGE,SN3 ,18/08/2023,-953.20
100278233,Physical Support,Adults,Physical Support 65 and over,Income,Client Contribution - Residential,ASHBURY LODGE,SN3 ,18/08/2023,-587.40
100278233,Physical Support,Adults,Physical Support 65 and over,Income,Client Contribution - Residential,ASHBURY LODGE,SN3 ,18/08/2023,99.46
100278233,Physical Support,Adults,Physical Support 65 and over,Income,Client Contribution - Residential,ASHBURY LODGE,SN3 ,18/08/2023,-730.76
100278233,Physical Support,Adults,Physical Support 65 and over,3rd Party Payments,Residential Care,ASHBURY LODGE,SN3 ,18/08/2023,"-12,617.73"
100278233,Physical Support,Adults,Physical Support 65 and over,3rd Party Payments,Residential Care,ASHBURY LODGE,SN3 ,18/08/2023,-274.30
100277233,Physical Support,Adults,Physical Support 65 and over,Income,Client Contribution - Nursing,ASHGROVE HOUSE NURSING HOME,SN5 ,18/08/2023,-655.04
100277233,Physical Support,Adults,Physical Support 65 and over,Income,Client Contribution - Nursing,ASHGROVE HOUSE NURSING HOME,SN5 ,18/08/2023,"3,313.44"
100277233,Physical Support,Adults,Physical Support 65 and over,3rd Party Payments,Nursing Care,ASHGROVE HOUSE NURSING HOME,SN5 ,18/08/2023,"-29,748.57"
100277233,Physical Support,Adults,Physical Support 65 and over,Income,Client Contribution - Nursing,ASHGROVE HOUSE NURSING HOME,SN5 ,18/08/2023,-887.46
100277233,Physical Support,Adults,Physical Support 65 and over,Income,Client Contribution - Nursing,ASHGROVE HOUSE NURSING HOME,SN5 ,18/08/2023,489.84
100277233,Physical Support,Adults,Physical Support 65 and over,Income,Client Contribution - Nursing,ASHGROVE HOUSE NURSING HOME,SN5 ,18/08/2023,24.19
100277233,Physical Support,Adults,Physical Support 65 and over,3rd Party Payments,Nursing Care,ASHGROVE HOUSE NURSING HOME,SN5 ,18/08/2023,-217.14
100277233,Physical Support,Adults,Physical Support 65 and over,Income,Client Contribution - Nursing,ASHGROVE HOUSE NURSING HOME,SN5 ,18/08/2023,"-3,228.41"
100277233,Physical Support,Adults,Physical Support 65 and over,3rd Party Payments,Nursing Care,ASHGROVE HOUSE NURSING HOME,SN5 ,18/08/2023,"29,965.71"
100277233,Physical Support,Adults,Physical Support 65 and over,3rd Party Payments,Nursing Care,ASHGROVE HOUSE NURSING HOME,SN5 ,18/08/2023,"6,080.00"
101008233,Public Health,Public Health,Sexual Health & Health Protection Budget,3rd Party Payments,Contract Payments,ASHINGTON HOUSE SURGERY,SN5 ,23/08/2023,710.00
098067233,Public Health,Public Health,Health Checks,3rd Party Payments,Contract Payments,ASHINGTON HOUSE SURGERY,SN5 ,02/08/2023,"2,116.00"
101958614,Physical Support,Adults,Physical Support 18 - 64,Transfer Payments,Personal Budget - Direct Payments - Domiciliary Care,REDACTED PERSONAL DATA,SN25,30/08/2023,"1,689.94"
098290233,Libraries,"Education, Inclusion and Skills",Library Delivery,Supplies and Services,Materials,ASKEWS AND HOLTS LIBRARY SERVICES LIMITED,PR1 ,04/08/2023,518.93
099468233,Libraries,"Education, Inclusion and Skills",Library Delivery,Supplies and Services,Materials,ASKEWS AND HOLTS LIBRARY SERVICES LIMITED,PR1 ,11/08/2023,"3,297.26"
098286236,Libraries,"Education, Inclusion and Skills",Library Delivery,Supplies and Services,Materials,ASKEWS AND HOLTS LIBRARY SERVICES LIMITED,PR1 ,04/08/2023,"1,016.31"
101315233,Libraries,"Education, Inclusion and Skills",Library Delivery,Supplies and Services,Materials,ASKEWS AND HOLTS LIBRARY SERVICES LIMITED,PR1 ,25/08/2023,"1,618.72"
099471233,Libraries,"Education, Inclusion and Skills",Library Delivery,Supplies and Services,Materials,ASKEWS AND HOLTS LIBRARY SERVICES LIMITED,PR1 ,11/08/2023,677.82
100318233,Learning Disabilities,Adults,Learning Disability 18 - 64,Income,Client Contribution - Residential,ASPECTS & MILESTONES TRUST,BS16,18/08/2023,-893.31
100318233,Learning Disabilities,Adults,Learning Disability 18 - 64,3rd Party Payments,Residential Care,ASPECTS & MILESTONES TRUST,BS16,18/08/2023,"6,964.88"
100318233,Learning Disabilities,Adults,Learning Disability 18 - 64,Income,Client Contribution - Residential,ASPECTS & MILESTONES TRUST,BS16,18/08/2023,-463.20
100318233,Learning Disabilities,Adults,Learning Disability 18 - 64,Income,Client Contribution - Residential,ASPECTS & MILESTONES TRUST,BS16,18/08/2023,820.80
100359233,Learning Disabilities,Adults,Learning Disability 18 - 64,Income,Client Contribution - Residential,ASPECTS 2 LTD,B70 ,18/08/2023,-438.80
100359233,Physical Support,Adults,Physical Support 18 - 64,3rd Party Payments,Supported Lodgings (Childrens)/Supported Living (Adults),ASPECTS 2 LTD,B70 ,18/08/2023,"4,200.00"
100359233,Mental Health,Adults,Mental Health 65 and over,3rd Party Payments,Supported Lodgings (Childrens)/Supported Living (Adults),ASPECTS 2 LTD,B70 ,18/08/2023,"1,449.60"
100359233,Learning Disabilities,Adults,Learning Disability 18 - 64,3rd Party Payments,Residential Care,ASPECTS 2 LTD,B70 ,18/08/2023,"9,278.64"
099026233,Heritage,Culture,Lydiard House & Hotel Improvements,Capital,Contractor Payments,ASSA ABLOY GLOBAL SOLUTIONS UK LTD,RG2 ,09/08/2023,"1,923.60"
100382233,Learning Disabilities,Adults,Learning Disability 18 - 64,Income,Client Contribution - Residential,ASTON CARE LIMITED,RG30,18/08/2023,571.66
100381233,Learning Disabilities,Adults,Learning Disability 18 - 64,Income,Client Contribution - Residential,ASTON CARE LIMITED,RG30,18/08/2023,-587.40
100381233,Learning Disabilities,Adults,Learning Disability 18 - 64,3rd Party Payments,Residential Care,ASTON CARE LIMITED,RG30,18/08/2023,"8,008.00"
100381233,Learning Disabilities,Adults,Learning Disability 18 - 64,Income,Client Contribution - Residential,ASTON CARE LIMITED,RG30,18/08/2023,"-1,033.20"
100382233,Learning Disabilities,Adults,Learning Disability 18 - 64,3rd Party Payments,Residential Care,ASTON CARE LIMITED,RG30,18/08/2023,"9,733.80"
100381233,Learning Disabilities,Adults,Learning Disability 18 - 64,Income,Client Contribution - Residential,ASTON CARE LIMITED,RG30,18/08/2023,-410.80
100381233,Learning Disabilities,Adults,Learning Disability 18 - 64,3rd Party Payments,Residential Care,ASTON CARE LIMITED,RG30,18/08/2023,"8,288.00"
100381233,Learning Disabilities,Adults,Learning Disability 18 - 64,3rd Party Payments,Residential Care,ASTON CARE LIMITED,RG30,18/08/2023,"7,288.00"
100382233,Learning Disabilities,Adults,Learning Disability 18 - 64,Income,Client Contribution - Residential,ASTON CARE LIMITED,RG30,18/08/2023,-788.80
100381233,Learning Disabilities,Adults,Learning Disability 65 and over,3rd Party Payments,Residential Care,ASTON CARE LIMITED,RG30,18/08/2023,"8,008.00"
100382233,Learning Disabilities,Adults,Learning Disability 18 - 64,Income,Client Contribution - Residential,ASTON CARE LIMITED,RG30,18/08/2023,"-1,718.46"
100381233,Learning Disabilities,Adults,Learning Disability 65 and over,Income,Client Contribution - Residential,ASTON CARE LIMITED,RG30,18/08/2023,-676.40
098429233,Highways & Transport,Highways & Transport,Project Delivery,Supplies and Services,Services,ATKINS LTD,WR4 ,04/08/2023,"2,447.24"
098427233,Highways & Transport,Highways & Transport,Project Delivery,Supplies and Services,Services,ATKINS LTD,WR4 ,04/08/2023,"4,463.08"
101524233,Highways & Transport,Highways & Transport,Project Delivery,Supplies and Services,Services,ATKINS LTD,WR4 ,25/08/2023,"4,879.87"
098428233,Highways & Transport,Highways & Transport,Project Delivery,Supplies and Services,Services,ATKINS LTD,WR4 ,04/08/2023,"6,179.21"
102045233,Highways & Transport,Highways & Transport,Project Delivery,Supplies and Services,Services,ATKINS LTD,WR4 ,30/08/2023,"41,065.05"
099084233,Social Care,"Children, Families and Community Health Services",Children's Resource and Home Finding Team,3rd Party Payments,Residential Care,A-TRIANGLE CARE LIMITED,FY5 ,09/08/2023,"26,549.29"
098296238,Safeguarding and Quality Assurance,"Children, Families and Community Health Services",Quality Assurance Team,Employees,Temporary / Agency - by Accounts Payable,ATTENTI LTD,EC2R,04/08/2023,"2,360.00"
098296234,Safeguarding and Quality Assurance,"Children, Families and Community Health Services",Quality Assurance Team,Employees,Temporary / Agency - by Accounts Payable,ATTENTI LTD,EC2R,04/08/2023,"2,360.00"
097844233,Social Care,"Children, Families and Community Health Services",Practise Development,Employees,Temporary / Agency - by Accounts Payable,ATTENTI LTD,EC2R,02/08/2023,"2,360.00"
097861233,Senior Management Team,"Children, Families and Community Health Services",Family Safeguarding Model,Employees,Temporary / Agency - by Accounts Payable,ATTENTI LTD,EC2R,02/08/2023,"2,360.00"
101255233,Social Care,"Children, Families and Community Health Services",CP & CIN Social Work - South,Employees,Temporary / Agency - by Accounts Payable,ATTENTI LTD,EC2R,25/08/2023,"2,183.00"
099927233,Social Care,"Children, Families and Community Health Services",CP & CIN Social Work - South,Employees,Temporary / Agency - by Accounts Payable,ATTENTI LTD,EC2R,16/08/2023,708.00
097810233,Senior Management Team,"Children, Families and Community Health Services",Senior Management Team - Staffing,Employees,Temporary / Agency - by Accounts Payable,ATTENTI LTD,EC2R,02/08/2023,"3,540.00"
097860233,Social Care,"Children, Families and Community Health Services",Practise Development,Employees,Temporary / Agency - by Accounts Payable,ATTENTI LTD,EC2R,02/08/2023,"2,360.00"
098953233,Social Care,"Children, Families and Community Health Services",Practise Development,Employees,Temporary / Agency - by Accounts Payable,ATTENTI LTD,EC2R,09/08/2023,"2,360.00"
098988233,Senior Management Team,"Children, Families and Community Health Services",Family Safeguarding Model,Employees,Temporary / Agency - by Accounts Payable,ATTENTI LTD,EC2R,09/08/2023,"2,360.00"
097827233,Social Care,"Children, Families and Community Health Services",Practise Development,Employees,Temporary / Agency - by Accounts Payable,ATTENTI LTD,EC2R,02/08/2023,"2,360.00"
101251234,Social Care,"Children, Families and Community Health Services",CP & CIN Social Work - South,Employees,Temporary / Agency - by Accounts Payable,ATTENTI LTD,EC2R,25/08/2023,"2,183.00"
099921233,Social Care,"Children, Families and Community Health Services",CP & CIN Social Work - South,Employees,Temporary / Agency - by Accounts Payable,ATTENTI LTD,EC2R,16/08/2023,"2,183.00"
099919233,Social Care,"Children, Families and Community Health Services",CP & CIN Social Work - South,Employees,Temporary / Agency - by Accounts Payable,ATTENTI LTD,EC2R,16/08/2023,"2,183.00"
097726233,Social Care,"Children, Families and Community Health Services",CP & CIN Social Work - South,Employees,Temporary / Agency - by Accounts Payable,ATTENTI LTD,EC2R,02/08/2023,"18,997.81"
098868233,Senior Management Team,"Children, Families and Community Health Services",Senior Management Team - Staffing,Employees,Temporary / Agency - by Accounts Payable,ATTENTI LTD,EC2R,09/08/2023,"2,950.00"
099106233,Senior Management Team,"Children, Families and Community Health Services",Senior Management Team - Staffing,Employees,Temporary / Agency - by Accounts Payable,ATTENTI LTD,EC2R,09/08/2023,"2,950.00"
097816233,Senior Management Team,"Children, Families and Community Health Services",Senior Management Team - Staffing,Employees,Temporary / Agency - by Accounts Payable,ATTENTI LTD,EC2R,02/08/2023,"3,540.00"
098834233,Social Care,"Children, Families and Community Health Services",Practise Development,Employees,Temporary / Agency - by Accounts Payable,ATTENTI LTD,EC2R,09/08/2023,"2,360.00"
098954233,Social Care,"Children, Families and Community Health Services",Practise Development,Employees,Temporary / Agency - by Accounts Payable,ATTENTI LTD,EC2R,09/08/2023,"2,360.00"
097733233,Social Care,"Children, Families and Community Health Services",Practise Development,Employees,Temporary / Agency - by Accounts Payable,ATTENTI LTD,EC2R,02/08/2023,"2,360.00"
098303233,Social Care,"Children, Families and Community Health Services",CP & CIN Social Work - South,Employees,Temporary / Agency - by Accounts Payable,ATTENTI LTD,EC2R,04/08/2023,"17,306.81"
097832233,Senior Management Team,"Children, Families and Community Health Services",Senior Management Team - Staffing,Employees,Temporary / Agency - by Accounts Payable,ATTENTI LTD,EC2R,02/08/2023,472.00
101263233,Safeguarding and Quality Assurance,"Children, Families and Community Health Services",Quality Assurance Team,Employees,Temporary / Agency - by Accounts Payable,ATTENTI LTD,EC2R,25/08/2023,"2,360.00"
098514233,Senior Management Team,"Children, Families and Community Health Services",Senior Management Team - Staffing,Employees,Temporary / Agency - by Accounts Payable,ATTENTI LTD,EC2R,04/08/2023,"2,832.00"
099114233,Social Care,"Children, Families and Community Health Services",Practise Development,Employees,Temporary / Agency - by Accounts Payable,ATTENTI LTD,EC2R,09/08/2023,"3,304.00"
098951233,Social Care,"Children, Families and Community Health Services",Practise Development,Employees,Temporary / Agency - by Accounts Payable,ATTENTI LTD,EC2R,09/08/2023,"2,360.00"
097820233,Social Care,"Children, Families and Community Health Services",Practise Development,Employees,Temporary / Agency - by Accounts Payable,ATTENTI LTD,EC2R,02/08/2023,"2,360.00"
098867233,Senior Management Team,"Children, Families and Community Health Services",Family Safeguarding Model,Employees,Temporary / Agency - by Accounts Payable,ATTENTI LTD,EC2R,09/08/2023,"2,360.00"
099896233,Social Care,"Children, Families and Community Health Services",CP & CIN Social Work - South,Employees,Temporary / Agency - by Accounts Payable,ATTENTI LTD,EC2R,16/08/2023,"2,183.00"
099929233,Social Care,"Children, Families and Community Health Services",CP & CIN Social Work - South,Employees,Temporary / Agency - by Accounts Payable,ATTENTI LTD,EC2R,16/08/2023,"2,183.00"
098167233,Social Care,"Children, Families and Community Health Services",CP & CIN Social Work - South,Employees,Temporary / Agency - by Accounts Payable,ATTENTI LTD,EC2R,04/08/2023,"2,183.00"
102165233,Senior Management Team,"Children, Families and Community Health Services",Senior Management Team - Staffing,Employees,Temporary / Agency - by Accounts Payable,ATTENTI LTD,EC2R,30/08/2023,"2,950.00"
098166234,Senior Management Team,"Children, Families and Community Health Services",Senior Management Team - Staffing,Employees,Temporary / Agency - by Accounts Payable,ATTENTI LTD,EC2R,04/08/2023,"2,950.00"
097864233,Senior Management Team,"Children, Families and Community Health Services",Senior Management Team - Staffing,Employees,Temporary / Agency - by Accounts Payable,ATTENTI LTD,EC2R,02/08/2023,"2,950.00"
097863233,Senior Management Team,"Children, Families and Community Health Services",Senior Management Team - Staffing,Employees,Temporary / Agency - by Accounts Payable,ATTENTI LTD,EC2R,02/08/2023,"2,950.00"
102053233,Senior Management Team,"Children, Families and Community Health Services",Senior Management Team - Staffing,Employees,Temporary / Agency - by Accounts Payable,ATTENTI LTD,EC2R,30/08/2023,"3,540.00"
097829233,Senior Management Team,"Children, Families and Community Health Services",Senior Management Team - Staffing,Employees,Temporary / Agency - by Accounts Payable,ATTENTI LTD,EC2R,02/08/2023,"3,540.00"
098296236,Safeguarding and Quality Assurance,"Children, Families and Community Health Services",Quality Assurance Team,Employees,Temporary / Agency - by Accounts Payable,ATTENTI LTD,EC2R,04/08/2023,"2,478.00"
101207233,Social Care,"Children, Families and Community Health Services",Practise Development,Employees,Temporary / Agency - by Accounts Payable,ATTENTI LTD,EC2R,23/08/2023,"2,360.00"
099105233,Senior Management Team,"Children, Families and Community Health Services",Family Safeguarding Model,Employees,Temporary / Agency - by Accounts Payable,ATTENTI LTD,EC2R,09/08/2023,"2,950.00"
097866233,Senior Management Team,"Children, Families and Community Health Services",Senior Management Team - Staffing,Employees,Temporary / Agency - by Accounts Payable,ATTENTI LTD,EC2R,02/08/2023,"1,888.00"
099462233,Senior Management Team,"Children, Families and Community Health Services",Senior Management Team - Staffing,Employees,Temporary / Agency - by Accounts Payable,ATTENTI LTD,EC2R,11/08/2023,"3,540.00"
097833233,Senior Management Team,"Children, Families and Community Health Services",Senior Management Team - Staffing,Employees,Temporary / Agency - by Accounts Payable,ATTENTI LTD,EC2R,02/08/2023,"2,832.00"
098163233,Safeguarding and Quality Assurance,"Children, Families and Community Health Services",Quality Assurance Team,Employees,Temporary / Agency - by Accounts Payable,ATTENTI LTD,EC2R,04/08/2023,"2,360.00"
101237233,Social Care,"Children, Families and Community Health Services",Practise Development,Employees,Temporary / Agency - by Accounts Payable,ATTENTI LTD,EC2R,23/08/2023,"2,360.00"
101237234,Social Care,"Children, Families and Community Health Services",Practise Development,Employees,Temporary / Agency - by Accounts Payable,ATTENTI LTD,EC2R,23/08/2023,"2,360.00"
097821233,Social Care,"Children, Families and Community Health Services",Practise Development,Employees,Temporary / Agency - by Accounts Payable,ATTENTI LTD,EC2R,02/08/2023,"2,360.00"
097842233,Social Care,"Children, Families and Community Health Services",Practise Development,Employees,Temporary / Agency - by Accounts Payable,ATTENTI LTD,EC2R,02/08/2023,"2,360.00"
097831233,Senior Management Team,"Children, Families and Community Health Services",Family Safeguarding Model,Employees,Temporary / Agency - by Accounts Payable,ATTENTI LTD,EC2R,02/08/2023,"1,888.00"
102167233,Senior Management Team,"Children, Families and Community Health Services",Family Safeguarding Model,Employees,Temporary / Agency - by Accounts Payable,ATTENTI LTD,EC2R,30/08/2023,"2,950.00"
097830233,Senior Management Team,"Children, Families and Community Health Services",Family Safeguarding Model,Employees,Temporary / Agency - by Accounts Payable,ATTENTI LTD,EC2R,02/08/2023,"2,950.00"
097862233,Senior Management Team,"Children, Families and Community Health Services",Family Safeguarding Model,Employees,Temporary / Agency - by Accounts Payable,ATTENTI LTD,EC2R,02/08/2023,"2,360.00"
101198233,Disabled Revenue Codes,Disabled Codes 2,Chief Operating Officer,Employees,Temporary / Agency - by Accounts Payable,ATTENTI LTD,EC2R,23/08/2023,"2,950.00"
098074233,Social Care,"Children, Families and Community Health Services",CP & CIN Social Work - South,Employees,Temporary / Agency - by Accounts Payable,ATTENTI LTD,EC2R,02/08/2023,"2,183.00"
099894233,Social Care,"Children, Families and Community Health Services",CP & CIN Social Work - South,Employees,Temporary / Agency - by Accounts Payable,ATTENTI LTD,EC2R,16/08/2023,"2,183.00"
099889234,Social Care,"Children, Families and Community Health Services",CP & CIN Social Work - South,Employees,Temporary / Agency - by Accounts Payable,ATTENTI LTD,EC2R,16/08/2023,"2,183.00"
099931233,Social Care,"Children, Families and Community Health Services",CP & CIN Social Work - South,Employees,Temporary / Agency - by Accounts Payable,ATTENTI LTD,EC2R,16/08/2023,"2,183.00"
097727233,Social Care,"Children, Families and Community Health Services",CP & CIN Social Work - South,Employees,Temporary / Agency - by Accounts Payable,ATTENTI LTD,EC2R,02/08/2023,"18,997.81"
097856233,Senior Management Team,"Children, Families and Community Health Services",Senior Management Team - Staffing,Employees,Temporary / Agency - by Accounts Payable,ATTENTI LTD,EC2R,02/08/2023,"3,540.00"
099115233,Safeguarding and Quality Assurance,"Children, Families and Community Health Services",Quality Assurance Team,Employees,Temporary / Agency - by Accounts Payable,ATTENTI LTD,EC2R,09/08/2023,"2,360.00"
098956233,Social Care,"Children, Families and Community Health Services",Practise Development,Employees,Temporary / Agency - by Accounts Payable,ATTENTI LTD,EC2R,09/08/2023,"2,360.00"
097849234,Social Care,"Children, Families and Community Health Services",Practise Development,Employees,Temporary / Agency - by Accounts Payable,ATTENTI LTD,EC2R,02/08/2023,"1,888.00"
099105235,Senior Management Team,"Children, Families and Community Health Services",Family Safeguarding Model,Employees,Temporary / Agency - by Accounts Payable,ATTENTI LTD,EC2R,09/08/2023,"2,360.00"
098156233,Senior Management Team,"Children, Families and Community Health Services",Family Safeguarding Model,Employees,Temporary / Agency - by Accounts Payable,ATTENTI LTD,EC2R,04/08/2023,"2,950.00"
099900234,Social Care,"Children, Families and Community Health Services",CP & CIN Social Work - South,Employees,Temporary / Agency - by Accounts Payable,ATTENTI LTD,EC2R,16/08/2023,"2,183.00"
099915233,Social Care,"Children, Families and Community Health Services",CP & CIN Social Work - South,Employees,Temporary / Agency - by Accounts Payable,ATTENTI LTD,EC2R,16/08/2023,"2,183.00"
097734234,Social Care,"Children, Families and Community Health Services",CP & CIN Social Work - South,Employees,Temporary / Agency - by Accounts Payable,ATTENTI LTD,EC2R,02/08/2023,"13,924.81"
097817233,Social Care,"Children, Families and Community Health Services",Childrens Homefinding Team,Employees,Temporary / Agency - by Accounts Payable,ATTENTI LTD,EC2R,02/08/2023,"1,947.00"
101958698,Physical Support,Adults,Physical Support 65 and over,Transfer Payments,Personal Budget - Direct Payments - Domiciliary Care,REDACTED PERSONAL DATA,SP11,30/08/2023,"4,204.31"
100387255,Care Management & Safeguarding,Adults,Intermediate Care Team,3rd Party Payments,Residential Care,AURA CARE LIVING CIRENCESTER LTD,GL7 ,18/08/2023,"11,242.57"
100387255,Mental Health,Adults,Mental Health 65 and over,3rd Party Payments,Residential Care,AURA CARE LIVING CIRENCESTER LTD,GL7 ,18/08/2023,"-29,400.00"
100387255,Physical Support,Adults,Physical Support 65 and over,3rd Party Payments,Residential Care,AURA CARE LIVING CIRENCESTER LTD,GL7 ,18/08/2023,"-4,142.86"
100387255,Physical Support,Adults,Physical Support 65 and over,3rd Party Payments,Nursing Care,AURA CARE LIVING CIRENCESTER LTD,GL7 ,18/08/2023,"-1,414.29"
100387255,Mental Health,Adults,Mental Health 18-64,3rd Party Payments,Residential Care,AURA CARE LIVING CIRENCESTER LTD,GL7 ,18/08/2023,"-24,150.00"
100387255,Mental Health,Adults,Mental Health 18-64,3rd Party Payments,Residential Care,AURA CARE LIVING CIRENCESTER LTD,GL7 ,18/08/2023,"26,323.50"
100387255,Physical Support,Adults,Physical Support 65 and over,Income,Client Contribution - Nursing,AURA CARE LIVING CIRENCESTER LTD,GL7 ,18/08/2023,-735.64
100387255,Mental Health,Adults,Mental Health 65 and over,3rd Party Payments,Residential Care,AURA CARE LIVING CIRENCESTER LTD,GL7 ,18/08/2023,"32,046.00"
100387255,Physical Support,Adults,Physical Support 65 and over,3rd Party Payments,Residential Care,AURA CARE LIVING CIRENCESTER LTD,GL7 ,18/08/2023,"-2,900.00"
100387255,Physical Support,Adults,Physical Support 65 and over,Income,Client Contribution - Nursing,AURA CARE LIVING CIRENCESTER LTD,GL7 ,18/08/2023,-608.00
100387255,Physical Support,Adults,Physical Support 65 and over,3rd Party Payments,Residential Care,AURA CARE LIVING CIRENCESTER LTD,GL7 ,18/08/2023,"6,322.00"
100387255,Physical Support,Adults,Physical Support 65 and over,3rd Party Payments,Residential Care,AURA CARE LIVING CIRENCESTER LTD,GL7 ,18/08/2023,"4,515.71"
100387255,Physical Support,Adults,Physical Support 65 and over,3rd Party Payments,Nursing Care,AURA CARE LIVING CIRENCESTER LTD,GL7 ,18/08/2023,"1,541.57"
100387255,Physical Support,Adults,Physical Support 65 and over,3rd Party Payments,Nursing Care,AURA CARE LIVING CIRENCESTER LTD,GL7 ,18/08/2023,"23,637.43"
100387255,Mental Health,Adults,Mental Health 18-64,3rd Party Payments,Nursing Care,AURA CARE LIVING CIRENCESTER LTD,GL7 ,18/08/2023,"30,901.50"
100387255,Mental Health,Adults,Mental Health 18-64,3rd Party Payments,Residential Care,AURA CARE LIVING CIRENCESTER LTD,GL7 ,18/08/2023,"5,014.00"
100387255,Mental Health,Adults,Mental Health 18-64,3rd Party Payments,Residential Care,AURA CARE LIVING CIRENCESTER LTD,GL7 ,18/08/2023,"6,720.00"
100387255,Care Management & Safeguarding,Adults,Intermediate Care Team,3rd Party Payments,Residential Care,AURA CARE LIVING CIRENCESTER LTD,GL7 ,18/08/2023,"-10,314.29"
100387255,Physical Support,Adults,Physical Support 65 and over,3rd Party Payments,Nursing Care,AURA CARE LIVING CIRENCESTER LTD,GL7 ,18/08/2023,"-21,685.71"
100387255,Mental Health,Adults,Mental Health 65 and over,3rd Party Payments,Residential Care,AURA CARE LIVING CIRENCESTER LTD,GL7 ,18/08/2023,"6,104.00"
100387255,Mental Health,Adults,Mental Health 18-64,3rd Party Payments,Nursing Care,AURA CARE LIVING CIRENCESTER LTD,GL7 ,18/08/2023,"6,720.00"
100387255,Mental Health,Adults,Mental Health 18-64,3rd Party Payments,Nursing Care,AURA CARE LIVING CIRENCESTER LTD,GL7 ,18/08/2023,"5,886.00"
100387255,Mental Health,Adults,Mental Health 18-64,3rd Party Payments,Nursing Care,AURA CARE LIVING CIRENCESTER LTD,GL7 ,18/08/2023,"8,640.00"
100387255,Physical Support,Adults,Physical Support 65 and over,Income,Client Contribution - Residential,AURA CARE LIVING CIRENCESTER LTD,GL7 ,18/08/2023,-610.00
100387255,Physical Support,Adults,Physical Support 65 and over,3rd Party Payments,Residential Care,AURA CARE LIVING CIRENCESTER LTD,GL7 ,18/08/2023,"-23,407.14"
100387255,Physical Support,Adults,Physical Support 65 and over,3rd Party Payments,Nursing Care,AURA CARE LIVING CIRENCESTER LTD,GL7 ,18/08/2023,"5,886.00"
100387255,Physical Support,Adults,Physical Support 65 and over,3rd Party Payments,Nursing Care,AURA CARE LIVING CIRENCESTER LTD,GL7 ,18/08/2023,"4,796.00"
100387255,Physical Support,Adults,Physical Support 65 and over,3rd Party Payments,Residential Care,AURA CARE LIVING CIRENCESTER LTD,GL7 ,18/08/2023,"3,161.00"
100387255,Physical Support,Adults,Physical Support 65 and over,3rd Party Payments,Residential Care,AURA CARE LIVING CIRENCESTER LTD,GL7 ,18/08/2023,867.21
100387255,Physical Support,Adults,Physical Support 65 and over,3rd Party Payments,Residential Care,AURA CARE LIVING CIRENCESTER LTD,GL7 ,18/08/2023,"25,513.79"
100387255,Physical Support,Adults,Physical Support 65 and over,3rd Party Payments,Nursing Care,AURA CARE LIVING CIRENCESTER LTD,GL7 ,18/08/2023,"-23,100.00"
100387255,Mental Health,Adults,Mental Health 18-64,3rd Party Payments,Nursing Care,AURA CARE LIVING CIRENCESTER LTD,GL7 ,18/08/2023,"-28,350.00"
100387255,Physical Support,Adults,Physical Support 65 and over,Income,Client Contribution - Residential,AURA CARE LIVING CIRENCESTER LTD,GL7 ,18/08/2023,-691.20
100387255,Physical Support,Adults,Physical Support 65 and over,3rd Party Payments,Residential Care,AURA CARE LIVING CIRENCESTER LTD,GL7 ,18/08/2023,"4,142.00"
100387255,Physical Support,Adults,Physical Support 65 and over,3rd Party Payments,Nursing Care,AURA CARE LIVING CIRENCESTER LTD,GL7 ,18/08/2023,"2,325.86"
100387255,Physical Support,Adults,Physical Support 65 and over,3rd Party Payments,Nursing Care,AURA CARE LIVING CIRENCESTER LTD,GL7 ,18/08/2023,"2,732.79"
100387255,Physical Support,Adults,Physical Support 65 and over,3rd Party Payments,Nursing Care,AURA CARE LIVING CIRENCESTER LTD,GL7 ,18/08/2023,"-2,507.14"
100387255,Physical Support,Adults,Physical Support 65 and over,3rd Party Payments,Nursing Care,AURA CARE LIVING CIRENCESTER LTD,GL7 ,18/08/2023,"25,179.00"
100387255,Physical Support,Adults,Physical Support 65 and over,Income,Client Contribution - Nursing,AURA CARE LIVING CIRENCESTER LTD,GL7 ,18/08/2023,"3,307.89"
099934233,High Needs Block,DSG Skills and Attainment,Out of Borough School Fees,3rd Party Payments,OLA Special schools- Pre 16,AURORA FOXES ACADEMY,GL2 ,16/08/2023,"22,400.67"
100387237,Learning Disabilities,Adults,Learning Disability 65 and over,Income,Client Contribution - Residential,AUTONOMY LIFE LIMITED,SN12,18/08/2023,-628.56
100387237,Learning Disabilities,Adults,Learning Disability 65 and over,Income,Client Contribution - Residential,AUTONOMY LIFE LIMITED,SN12,18/08/2023,812.09
100387237,Learning Disabilities,Adults,Learning Disability 65 and over,Income,Client Contribution - Residential,AUTONOMY LIFE LIMITED,SN12,18/08/2023,-965.29
100387237,Learning Disabilities,Adults,Learning Disability 65 and over,3rd Party Payments,Residential Care,AUTONOMY LIFE LIMITED,SN12,18/08/2023,"10,027.60"
102043233,Social Care,"Children, Families and Community Health Services",Placement - Care Leaver Team,3rd Party Payments,Semi Independent,AVISANT CONSULTING LTD,EC1V,30/08/2023,"1,071.43"
099485233,Town Centre,"Economy, Growth and Place",Kimmerfields enabling works,Capital,Professional Fees,AVISON YOUNG (UK) LTD,B1 2,11/08/2023,"9,100.00"
100291233,Learning Disabilities,Adults,Learning Disability 18 - 64,Income,Client Contribution - Residential,AVON AUTISTIC FOUNDATION LTD,BS11,18/08/2023,-414.20
100290233,Learning Disabilities,Adults,Learning Disability 18 - 64,Income,Client Contribution - Residential,AVON AUTISTIC FOUNDATION LTD,BS11,18/08/2023,-438.80
100291233,Learning Disabilities,Adults,Learning Disability 18 - 64,3rd Party Payments,Residential Care,AVON AUTISTIC FOUNDATION LTD,BS11,18/08/2023,"7,668.32"
100290233,Learning Disabilities,Adults,Learning Disability 18 - 64,3rd Party Payments,Residential Care,AVON AUTISTIC FOUNDATION LTD,BS11,18/08/2023,"5,482.04"
101976233,Landscaping & Open Space,Culture & Heritage & Art,GWCF - Trees for Climate,Capital,Contractor Payments,AVON NEEDS TREES,BS7 ,30/08/2023,"14,357.26"
101386233,Homelessness and Travellers,Housing Services,Private Sector Landlords,Transfer Payments,Payment of Costs,AVONPARK PROPERTIES LTD,SN3 ,25/08/2023,615.00
101482233,Homelessness and Travellers,Housing Services,Private Sector Landlords,Transfer Payments,Payment of Costs,AVONPARK PROPERTIES LTD,SN3 ,25/08/2023,550.00
101093233,Organisational Resilience,"People, Culture and Organisational Resilience",Health & Safety,Supplies and Services,Accreditations,BACK CARE SOLUTIONS LTD,PR5 ,23/08/2023,813.00
099843233,Town Centre,"Economy, Growth and Place","No 7, 9 & 11 Carriage works @ Railway Village",Capital,Consultants,BAILEY PARTNERSHIP (CONSULTANTS) LLP,PL1 ,16/08/2023,"1,200.00"
097994233,Town Centre,"Economy, Growth and Place",Carriage Works Phase 3,Capital,Professional Fees,BAILEY PARTNERSHIP (CONSULTANTS) LLP,PL1 ,02/08/2023,"2,300.00"
098323233,Heritage,Culture,Lydiard House & Hotel Improvements,Capital,Contractor Payments,BAILEY PARTNERSHIP (CONSULTANTS) LLP,PL1 ,04/08/2023,"13,980.72"
098609233,Streetsmart,Streetsmart,Waste - Disposal,Supplies and Services,Materials,BALER OPTIONS LTD,DE55,07/08/2023,"9,440.00"
098007233,Social Care,"Children, Families and Community Health Services",Childrens Homefinding Team,Employees,Temporary / Agency - by Accounts Payable,REDACTED PERSONAL DATA,BS1 ,02/08/2023,"3,125.00"
101977234,Social Care,"Children, Families and Community Health Services",Childrens Homefinding Team,Employees,Temporary / Agency - by Accounts Payable,REDACTED PERSONAL DATA,BS1 ,30/08/2023,"3,125.00"
102179233,Social Care,"Children, Families and Community Health Services",Childrens Homefinding Team,Employees,Temporary / Agency - by Accounts Payable,REDACTED PERSONAL DATA,BS1 ,30/08/2023,"3,125.00"
098300233,Social Care,"Children, Families and Community Health Services",Childrens Homefinding Team,Employees,Temporary / Agency - by Accounts Payable,REDACTED PERSONAL DATA,BS1 ,04/08/2023,"1,500.00"
097836233,Social Care,"Children, Families and Community Health Services",Childrens Homefinding Team,Employees,Temporary / Agency - by Accounts Payable,REDACTED PERSONAL DATA,BS1 ,02/08/2023,"2,500.00"
102181233,Social Care,"Children, Families and Community Health Services",Childrens Homefinding Team,Employees,Temporary / Agency - by Accounts Payable,REDACTED PERSONAL DATA,BS1 ,30/08/2023,"1,500.00"
098299234,Social Care,"Children, Families and Community Health Services",Childrens Homefinding Team,Employees,Temporary / Agency - by Accounts Payable,REDACTED PERSONAL DATA,BS1 ,04/08/2023,"2,500.00"
101204233,Social Care,"Children, Families and Community Health Services",Childrens Homefinding Team,Employees,Temporary / Agency - by Accounts Payable,REDACTED PERSONAL DATA,BS1 ,23/08/2023,"1,500.00"
102180233,Social Care,"Children, Families and Community Health Services",Childrens Homefinding Team,Employees,Temporary / Agency - by Accounts Payable,REDACTED PERSONAL DATA,BS1 ,30/08/2023,"2,500.00"
101206233,Social Care,"Children, Families and Community Health Services",Childrens Homefinding Team,Employees,Temporary / Agency - by Accounts Payable,REDACTED PERSONAL DATA,BS1 ,23/08/2023,"3,125.00"
101958691,Physical Support,Adults,Physical Support 65 and over,Transfer Payments,Personal Budget - Direct Payments - Domiciliary Care,REDACTED PERSONAL DATA,2969,30/08/2023,864.26
099130233,Libraries,"Education, Inclusion and Skills",Library Shop,Supplies and Services,Goods for resale,BARNES COACHES LTD,SN3 ,09/08/2023,"1,793.44"
100075233,Streetsmart,Streetsmart,StreetSmart Contracts & Strategic Planning,Supplies and Services,Services,BARTEC MUNICIPAL TECHNOLOGIES LTD,S75 ,16/08/2023,"4,750.00"
098516234,Streetsmart,Streetsmart,StreetSmart Contracts & Strategic Planning,Supplies and Services,Services,BARTEC MUNICIPAL TECHNOLOGIES LTD,S75 ,04/08/2023,"2,796.00"
100074233,Streetsmart,Streetsmart,StreetSmart Contracts & Strategic Planning,Supplies and Services,Services,BARTEC MUNICIPAL TECHNOLOGIES LTD,S75 ,16/08/2023,"15,200.00"
102162233,Town Centre,"Economy, Growth and Place",Carriage Works Phase 3,Capital,Professional Fees,BBA ARCHITECTS LTD,BA2 ,30/08/2023,"10,000.00"
098516236,Streetsmart,Streetsmart,Waterside Fleet Workshops,Supplies and Services,Materials,BBL BATTERIES,BS2 ,04/08/2023,110.84
098516236,Streetsmart,Streetsmart,Waterside Fleet Workshops,Supplies and Services,Materials,BBL BATTERIES,BS2 ,04/08/2023,271.40
098188233,DSG Other Funding,DSG Skills and Attainment,DFE Additional Grants,Supplies and Services,Payments to Educational Bodies,BEECHCROFT INFANT SCHOOL,SN2 ,04/08/2023,"2,392.50"
098673233,High Needs Block,DSG Skills and Attainment,SEN Resourcing Assessment Panel,3rd Party Payments,Top up funding - Maintained providers Pre 16,BEECHCROFT INFANT SCHOOL,SN2 ,11/08/2023,"6,038.59"
101857271,Schools Block - Central,DSG Skills and Attainment,Universal Infant Free School Meals,Supplies and Services,Payments to Educational Bodies,BEECHCROFT INFANT SCHOOL,SN2 ,25/08/2023,"26,291.00"
100238250,Schools - Primary,DSG Skills and Attainment,Primary School Budgets,3rd Party Payments,Mainstream Delegated Funding,BEECHCROFT INFANT SCHOOL,SN2 ,18/08/2023,"96,891.00"
101860241,DSG Other Funding,DSG Skills and Attainment,LAC pupil premium,Supplies and Services,Services,BEECHCROFT INFANT SCHOOL,SN2 ,25/08/2023,600.00
100240248,DSG Other Funding,DSG Skills and Attainment,DFE Additional Grants,3rd Party Payments,Payment of Pupil Premium to school,BEECHCROFT INFANT SCHOOL,SN2 ,18/08/2023,"8,347.00"
101858250,Schools Block - Central,DSG Skills and Attainment,Universal Infant Free School Meals,Supplies and Services,Payments to Educational Bodies,BEECHCROFT INFANT SCHOOL,SN2 ,25/08/2023,"42,763.00"
100348233,Learning Disabilities,Adults,Learning Disability 18 - 64,3rd Party Payments,Residential Care,BEECHWOOD COURT LTD,CF10,18/08/2023,"29,947.84"
100348233,Learning Disabilities,Adults,Learning Disability 18 - 64,Income,Client Contribution - Residential,BEECHWOOD COURT LTD,CF10,18/08/2023,-322.56
100348233,Learning Disabilities,Adults,Learning Disability 18 - 64,3rd Party Payments,Residential Care,BEECHWOOD COURT LTD,CF10,18/08/2023,"20,830.56"
099165238,Supported Employment,Housing Services,EW - Timber,Supplies and Services,Equipment,BEESLEYS TOOLS,SN2 ,09/08/2023,"1,875.00"
100892233,Homelessness and Travellers,Housing Services,Bed and Breakfast Accommodation,Transfer Payments,Payment of Costs,BELLE MASION LIMITED T/A PARAMOUNT APARTMENTS BY STAYSERVE,SN25,23/08/2023,560.00
101131233,Parking & Bus lanes,Highway Operations and Car Parking,Car Parking,Supplies and Services,Equipment,BEMROSE BOOTH PARAGON LTD,HU7 ,25/08/2023,"3,260.00"
099049233,Libraries,"Education, Inclusion and Skills",Central,Premises Costs,Waste,BIFFA WASTE SERVICES LTD,HP12,09/08/2023,461.12
099137233,Highways Schemes,Strategic Planning and Highways,John Street car park redevelopment (Parade),Capital,Contractor Payments,BIR SERVICES HEREFORD LTD,HR1 ,09/08/2023,"1,950.00"
099138233,Highways Schemes,Strategic Planning and Highways,John Street car park redevelopment (Parade),Capital,Contractor Payments,BIR SERVICES HEREFORD LTD,HR1 ,09/08/2023,"3,009.00"
098180233,DSG Other Funding,DSG Skills and Attainment,DFE Additional Grants,Supplies and Services,Payments to Educational Bodies,BISHOPSTONE C E PRIMARY SCHOOL,SN6 ,04/08/2023,500.00
101857252,Schools Block - Central,DSG Skills and Attainment,Universal Infant Free School Meals,Supplies and Services,Payments to Educational Bodies,BISHOPSTONE C E PRIMARY SCHOOL,SN6 ,25/08/2023,"1,659.00"
101858243,Schools Block - Central,DSG Skills and Attainment,Universal Infant Free School Meals,Supplies and Services,Payments to Educational Bodies,BISHOPSTONE C E PRIMARY SCHOOL,SN6 ,25/08/2023,"3,225.00"
100238242,Schools - Primary,DSG Skills and Attainment,Primary School Budgets,3rd Party Payments,Mainstream Delegated Funding,BISHOPSTONE C E PRIMARY SCHOOL,SN6 ,18/08/2023,"27,037.00"
100240240,DSG Other Funding,DSG Skills and Attainment,DFE Additional Grants,3rd Party Payments,Payment of Pupil Premium to school,BISHOPSTONE C E PRIMARY SCHOOL,SN6 ,18/08/2023,"1,618.00"
097393233,Education,"Education, Inclusion and Skills",Homes for Ukraine - Education & Childcare,Supplies and Services,Payments to Educational Bodies,BISHOPSTONE C E PRIMARY SCHOOL,SN6 ,02/08/2023,"13,160.00"
Corporate Card Transaction,Social Care,"Children, Families and Community Health Services",Placement - Care Leaver Team,Supplies and Services,Materials,Bkg*hotel At Booking.C,,17/08/2023,"1,771.94"
Corporate Card Transaction,Homelessness and Travellers,Housing Services,Warm Welcome Project,Transfer Payments,Payment of Costs,Bkg*hotel At Booking.C,,22/08/2023,740.66
Corporate Card Transaction,Social Care,"Children, Families and Community Health Services",External Placements,3rd Party Payments,Care Packages,Bkg*hotel At Booking.C,,25/08/2023,"1,526.14"
Corporate Card Transaction,Learning Disabilities,Adults,Learning Disability 26 - 64,3rd Party Payments,Bed and Breakfast Accommodation,Bkg*hotel At Booking.C,,18/08/2023,"1,239.58"
Corporate Card Transaction,Learning Disabilities,Adults,Learning Disability 26 - 64,3rd Party Payments,Bed and Breakfast Accommodation,Bkg*hotel At Booking.C,,15/08/2023,629.71
Corporate Card Transaction,Social Care,"Children, Families and Community Health Services",CP & CIN Social Work - North,Supplies and Services,Materials,Bkg*hotel At Booking.C,,03/08/2023,"2,919.58"
098516235,Highways Inspections & Maintenance,Highway Operations and Car Parking,Highway Maintenance,Supplies and Services,Equipment,BLAKEDALE LTD,PR7 ,04/08/2023,"1,741.97"
097870233,Streetsmart,Streetsmart,Waterside Fleet Hires,Transport Costs,Vehicle Hire / Contract,BLAKEDALE LTD,PR7 ,02/08/2023,437.25
100226249,Social Care,"Children, Families and Community Health Services",Children's Resource and Home Finding Team,3rd Party Payments,Parent & Child Placements,BLUE SKY,HA1 ,18/08/2023,"1,776.00"
100226254,Social Care,"Children, Families and Community Health Services",Children's Resource and Home Finding Team,3rd Party Payments,Independent Fostering Agency Placements,BLUE SKY,HA1 ,18/08/2023,"6,510.00"
100226246,Social Care,"Children, Families and Community Health Services",Children's Resource and Home Finding Team,3rd Party Payments,Independent Fostering Agency Placements,BLUE SKY,HA1 ,18/08/2023,"6,456.68"
100226251,Social Care,"Children, Families and Community Health Services",Children's Resource and Home Finding Team,3rd Party Payments,Independent Fostering Agency Placements,BLUE SKY,HA1 ,18/08/2023,"5,934.02"
100226252,Social Care,"Children, Families and Community Health Services",Children's Resource and Home Finding Team,3rd Party Payments,Independent Fostering Agency Placements,BLUE SKY,HA1 ,18/08/2023,"5,934.02"
100226248,Social Care,"Children, Families and Community Health Services",Children's Resource and Home Finding Team,3rd Party Payments,Independent Fostering Agency Placements,BLUE SKY,HA1 ,18/08/2023,"6,456.68"
100226253,Social Care,"Children, Families and Community Health Services",Children's Resource and Home Finding Team,3rd Party Payments,Independent Fostering Agency Placements,BLUE SKY,HA1 ,18/08/2023,"6,510.00"
100226245,Social Care,"Children, Families and Community Health Services",Children's Resource and Home Finding Team,3rd Party Payments,Independent Fostering Agency Placements,BLUE SKY,HA1 ,18/08/2023,"6,456.68"
100226247,Social Care,"Children, Families and Community Health Services",Children's Resource and Home Finding Team,3rd Party Payments,Independent Fostering Agency Placements,BLUE SKY,HA1 ,18/08/2023,"6,456.68"
100226250,Social Care,"Children, Families and Community Health Services",Children's Resource and Home Finding Team,3rd Party Payments,Parent & Child Placements,BLUE SKY,HA1 ,18/08/2023,"6,882.00"
065296233,Learning Disabilities,Adults,Learning Disability 18 - 64,3rd Party Payments,Personal Budget - Domiciliary care,BLUEBIRD CARE (SWINDON),SN25,09/08/2023,627.44
099095248,Physical Support,Adults,Physical Support 65 and over,3rd Party Payments,Personal Budget - Domiciliary care,BLUEBIRD CARE (SWINDON),SN25,09/08/2023,"1,568.60"
099095245,Learning Disabilities,Adults,Learning Disability 18 - 64,3rd Party Payments,Personal Budget - Domiciliary care,BLUEBIRD CARE (SWINDON),SN25,09/08/2023,"1,092.96"
099095249,Physical Support,Adults,Physical Support 18 - 64,3rd Party Payments,Personal Budget - Domiciliary care,BLUEBIRD CARE (SWINDON),SN25,09/08/2023,971.52
099095250,Learning Disabilities,Adults,Learning Disability 18 - 64,3rd Party Payments,Personal Budget - Domiciliary care,BLUEBIRD CARE (SWINDON),SN25,09/08/2023,526.24
099095247,Learning Disabilities,Adults,Learning Disability 18 - 64,3rd Party Payments,Personal Budget - Domiciliary care,BLUEBIRD CARE (SWINDON),SN25,09/08/2023,728.64
099095244,Learning Disabilities,Adults,Learning Disability 18 - 64,3rd Party Payments,Personal Budget - Domiciliary care,BLUEBIRD CARE (SWINDON),SN25,09/08/2023,"1,092.96"
099095243,Physical Support,Adults,Physical Support 65 and over,3rd Party Payments,Carers,BLUEBIRD CARE (SWINDON),SN25,09/08/2023,"1,092.96"
099095251,Learning Disabilities,Adults,Learning Disability 18 - 64,3rd Party Payments,Personal Budget - Domiciliary care,BLUEBIRD CARE (SWINDON),SN25,09/08/2023,809.60
099095252,Physical Support,Adults,Physical Support 65 and over,3rd Party Payments,Carers,BLUEBIRD CARE (SWINDON),SN25,09/08/2023,837.10
100841233,Early Years Block,DSG Skills and Attainment,Free Nursery Education Commissioning - three & four  year olds,3rd Party Payments,Contracts - Child Care,REDACTED PERSONAL DATA,SN3 ,23/08/2023,"1,530.00"
101212233,Digital & Business Change,Digital & Business Change,IT Operations,Supplies and Services,MFD Charges,BNP PARIBAS LEASING SOLUTIONS,RG21,23/08/2023,882.12
100963235,Streetsmart,Streetsmart,Waterside Fleet Workshops,Supplies and Services,Equipment,BOC LTD,M28 ,23/08/2023,593.95
100374233,Mental Health,Adults,Mental Health 65 and over,3rd Party Payments,Residential Care,BOLEALLER HOUSE LTD,EX15,18/08/2023,"5,299.80"
097729234,Physical Support,Adults,Fessey House,Supplies and Services,Food,BOOKER LIMITED,CH5 ,02/08/2023,139.00
100871233,Physical Support,Adults,Fessey House,Supplies and Services,Food,BOOKER LIMITED,CH5 ,23/08/2023,104.18
097729234,Physical Support,Adults,Fessey House,Supplies and Services,Food,BOOKER LIMITED,CH5 ,02/08/2023,471.73
100871233,Physical Support,Adults,Fessey House,Supplies and Services,Food,BOOKER LIMITED,CH5 ,23/08/2023,388.33
100313233,Physical Support,Adults,Physical Support 65 and over,3rd Party Payments,Nursing Care,BOTHWELLS LTD,HA6 ,18/08/2023,-154.33
100313233,Physical Support,Adults,Physical Support 65 and over,Income,Client Contribution - Nursing,BOTHWELLS LTD,HA6 ,18/08/2023,-322.33
100313233,Physical Support,Adults,Physical Support 65 and over,Income,Client Contribution - Nursing,BOTHWELLS LTD,HA6 ,18/08/2023,49.37
100313233,Physical Support,Adults,Physical Support 18 - 64,3rd Party Payments,Nursing Care,BOTHWELLS LTD,HA6 ,18/08/2023,"2,867.32"
100313233,Physical Support,Adults,Physical Support 65 and over,3rd Party Payments,Nursing Care,BOTHWELLS LTD,HA6 ,18/08/2023,"2,813.23"
100313233,Physical Support,Adults,Physical Support 65 and over,3rd Party Payments,Nursing Care,BOTHWELLS LTD,HA6 ,18/08/2023,"2,867.32"
100313233,Physical Support,Adults,Physical Support 65 and over,3rd Party Payments,Nursing Care,BOTHWELLS LTD,HA6 ,18/08/2023,"3,763.24"
100313233,Physical Support,Adults,Physical Support 65 and over,3rd Party Payments,Nursing Care,BOTHWELLS LTD,HA6 ,18/08/2023,"5,120.21"
100313233,Physical Support,Adults,Physical Support 65 and over,3rd Party Payments,Nursing Care,BOTHWELLS LTD,HA6 ,18/08/2023,"-6,689.57"
100313233,Physical Support,Adults,Physical Support 65 and over,3rd Party Payments,Nursing Care,BOTHWELLS LTD,HA6 ,18/08/2023,"19,488.21"
100313233,Physical Support,Adults,Physical Support 65 and over,3rd Party Payments,Nursing Care,BOTHWELLS LTD,HA6 ,18/08/2023,"-3,879.95"
100313233,Physical Support,Adults,Physical Support 65 and over,Income,Client Contribution - Nursing,BOTHWELLS LTD,HA6 ,18/08/2023,"-1,182.84"
100313233,Physical Support,Adults,Physical Support 65 and over,Income,Client Contribution - Nursing,BOTHWELLS LTD,HA6 ,18/08/2023,-779.00
100313233,Physical Support,Adults,Physical Support 65 and over,Income,Client Contribution - Nursing,BOTHWELLS LTD,HA6 ,18/08/2023,-694.24
100313233,Physical Support,Adults,Physical Support 65 and over,Income,Client Contribution - Nursing,BOTHWELLS LTD,HA6 ,18/08/2023,"1,055.16"
100313233,Physical Support,Adults,Physical Support 65 and over,Income,Client Contribution - Nursing,BOTHWELLS LTD,HA6 ,18/08/2023,"-1,068.29"
100313233,Physical Support,Adults,Physical Support 18 - 64,Income,Client Contribution - Nursing,BOTHWELLS LTD,HA6 ,18/08/2023,-425.60
100313233,Physical Support,Adults,Physical Support 65 and over,3rd Party Payments,Nursing Care,BOTHWELLS LTD,HA6 ,18/08/2023,"-5,120.21"
100313233,Physical Support,Adults,Physical Support 65 and over,Income,Client Contribution - Nursing,BOTHWELLS LTD,HA6 ,18/08/2023,"-1,384.80"
100313233,Physical Support,Adults,Physical Support 65 and over,Income,Client Contribution - Nursing,BOTHWELLS LTD,HA6 ,18/08/2023,-781.40
100313233,Physical Support,Adults,Physical Support 65 and over,Income,Client Contribution - Nursing,BOTHWELLS LTD,HA6 ,18/08/2023,"-1,234.29"
100313233,Physical Support,Adults,Physical Support 65 and over,Income,Client Contribution - Nursing,BOTHWELLS LTD,HA6 ,18/08/2023,"-4,708.15"
100313233,Physical Support,Adults,Physical Support 65 and over,Income,Client Contribution - Nursing,BOTHWELLS LTD,HA6 ,18/08/2023,97.41
100313233,Physical Support,Adults,Physical Support 65 and over,Income,Client Contribution - Nursing,BOTHWELLS LTD,HA6 ,18/08/2023,32.47
100313233,Physical Support,Adults,Physical Support 65 and over,Income,Client Contribution - Nursing,BOTHWELLS LTD,HA6 ,18/08/2023,"-1,286.79"
100313233,Physical Support,Adults,Physical Support 65 and over,3rd Party Payments,Nursing Care,BOTHWELLS LTD,HA6 ,18/08/2023,"3,270.76"
100313233,Physical Support,Adults,Physical Support 65 and over,Income,Client Contribution - Nursing,BOTHWELLS LTD,HA6 ,18/08/2023,-691.20
100313233,Physical Support,Adults,Physical Support 65 and over,Income,Client Contribution - Nursing,BOTHWELLS LTD,HA6 ,18/08/2023,-909.16
100313233,Physical Support,Adults,Physical Support 65 and over,Income,Client Contribution - Nursing,BOTHWELLS LTD,HA6 ,18/08/2023,"-2,027.74"
100313233,Physical Support,Adults,Physical Support 65 and over,3rd Party Payments,Nursing Care,BOTHWELLS LTD,HA6 ,18/08/2023,"-2,992.40"
100313233,Physical Support,Adults,Physical Support 65 and over,3rd Party Payments,Nursing Care,BOTHWELLS LTD,HA6 ,18/08/2023,"2,969.72"
100313233,Physical Support,Adults,Physical Support 65 and over,3rd Party Payments,Nursing Care,BOTHWELLS LTD,HA6 ,18/08/2023,"-19,332.64"
100313233,Physical Support,Adults,Physical Support 65 and over,3rd Party Payments,Nursing Care,BOTHWELLS LTD,HA6 ,18/08/2023,"3,746.16"
100313233,Physical Support,Adults,Physical Support 65 and over,3rd Party Payments,Nursing Care,BOTHWELLS LTD,HA6 ,18/08/2023,-462.98
100313233,Physical Support,Adults,Physical Support 65 and over,Income,Client Contribution - Nursing,BOTHWELLS LTD,HA6 ,18/08/2023,277.75
100313233,Physical Support,Adults,Physical Support 65 and over,3rd Party Payments,Nursing Care,BOTHWELLS LTD,HA6 ,18/08/2023,393.74
100313233,Physical Support,Adults,Physical Support 65 and over,Income,Client Contribution - Nursing,BOTHWELLS LTD,HA6 ,18/08/2023,-608.80
100313233,Physical Support,Adults,Physical Support 65 and over,Income,Client Contribution - Nursing,BOTHWELLS LTD,HA6 ,18/08/2023,-659.80
100313233,Physical Support,Adults,Physical Support 65 and over,Income,Client Contribution - Nursing,BOTHWELLS LTD,HA6 ,18/08/2023,"4,578.27"
100313233,Physical Support,Adults,Physical Support 65 and over,Income,Client Contribution - Nursing,BOTHWELLS LTD,HA6 ,18/08/2023,-715.89
100313233,Physical Support,Adults,Physical Support 65 and over,Income,Client Contribution - Nursing,BOTHWELLS LTD,HA6 ,18/08/2023,691.20
100313233,Physical Support,Adults,Physical Support 65 and over,Income,Client Contribution - Nursing,BOTHWELLS LTD,HA6 ,18/08/2023,"1,234.29"
100313233,Physical Support,Adults,Physical Support 65 and over,3rd Party Payments,Nursing Care,BOTHWELLS LTD,HA6 ,18/08/2023,"-1,828.69"
100313233,Physical Support,Adults,Physical Support 65 and over,3rd Party Payments,Nursing Care,BOTHWELLS LTD,HA6 ,18/08/2023,"3,600.00"
100313233,Physical Support,Adults,Physical Support 65 and over,3rd Party Payments,Nursing Care,BOTHWELLS LTD,HA6 ,18/08/2023,"-21,760.13"
100313233,Physical Support,Adults,Physical Support 65 and over,3rd Party Payments,Nursing Care,BOTHWELLS LTD,HA6 ,18/08/2023,"7,160.96"
100313233,Physical Support,Adults,Physical Support 65 and over,3rd Party Payments,Nursing Care,BOTHWELLS LTD,HA6 ,18/08/2023,"6,428.57"
100313233,Physical Support,Adults,Physical Support 65 and over,3rd Party Payments,Nursing Care,BOTHWELLS LTD,HA6 ,18/08/2023,"22,377.44"
100313233,Physical Support,Adults,Physical Support 65 and over,3rd Party Payments,Nursing Care,BOTHWELLS LTD,HA6 ,18/08/2023,"4,013.74"
100313233,Physical Support,Adults,Physical Support 65 and over,3rd Party Payments,Nursing Care,BOTHWELLS LTD,HA6 ,18/08/2023,"-2,867.32"
100313233,Physical Support,Adults,Physical Support 65 and over,3rd Party Payments,Nursing Care,BOTHWELLS LTD,HA6 ,18/08/2023,"4,603.47"
099577236,Responsive Repairs,Repairs,Responsive Repairs,3rd Party Payments,Contract Payments,BOUNDARY SCAFFOLDING LTD,SN6 ,14/08/2023,720.00
099709233,Responsive Repairs,Repairs,Responsive Repairs,3rd Party Payments,Contract Payments,BOUNDARY SCAFFOLDING LTD,SN6 ,16/08/2023,614.00
099577237,Responsive Repairs,Repairs,Responsive Repairs,3rd Party Payments,Contract Payments,BOUNDARY SCAFFOLDING LTD,SN6 ,14/08/2023,890.00
101325237,Responsive Repairs,Repairs,Responsive Repairs,3rd Party Payments,Contract Payments,BOUNDARY SCAFFOLDING LTD,SN6 ,25/08/2023,580.00
099577238,Responsive Repairs,Repairs,Responsive Repairs,3rd Party Payments,Contract Payments,BOUNDARY SCAFFOLDING LTD,SN6 ,14/08/2023,810.00
099577234,Responsive Repairs,Repairs,Responsive Repairs,3rd Party Payments,Contract Payments,BOUNDARY SCAFFOLDING LTD,SN6 ,14/08/2023,"2,944.00"
101325238,Responsive Repairs,Repairs,Responsive Repairs,3rd Party Payments,Contract Payments,BOUNDARY SCAFFOLDING LTD,SN6 ,25/08/2023,660.00
099556235,Responsive Repairs,Repairs,Responsive Repairs,3rd Party Payments,Contract Payments,BOUNDARY SCAFFOLDING LTD,SN6 ,11/08/2023,216.00
099577235,Responsive Repairs,Repairs,Responsive Repairs,3rd Party Payments,Contract Payments,BOUNDARY SCAFFOLDING LTD,SN6 ,14/08/2023,580.00
101325239,Responsive Repairs,Repairs,Responsive Repairs,3rd Party Payments,Contract Payments,BOUNDARY SCAFFOLDING LTD,SN6 ,25/08/2023,960.00
099577233,Responsive Repairs,Repairs,Responsive Repairs,3rd Party Payments,Contract Payments,BOUNDARY SCAFFOLDING LTD,SN6 ,14/08/2023,880.00
099577239,Responsive Repairs,Repairs,Responsive Repairs,3rd Party Payments,Contract Payments,BOUNDARY SCAFFOLDING LTD,SN6 ,14/08/2023,940.00
099556235,Responsive Repairs,Repairs,Responsive Repairs,3rd Party Payments,Contract Payments,BOUNDARY SCAFFOLDING LTD,SN6 ,11/08/2023,144.00
099556235,Responsive Repairs,Repairs,Responsive Repairs,3rd Party Payments,Contract Payments,BOUNDARY SCAFFOLDING LTD,SN6 ,11/08/2023,288.00
099556235,Responsive Repairs,Repairs,Responsive Repairs,3rd Party Payments,Contract Payments,BOUNDARY SCAFFOLDING LTD,SN6 ,11/08/2023,72.00
099704233,Property Management,Property,Property Assets,Supplies and Services,Fees,BPE SOLICITORS LLP,GL50,16/08/2023,750.00
098407233,Responsive Repairs,Repairs,Responsive Repairs,3rd Party Payments,Contract Payments,BPM CONTRACTING SERVICES LTD,BA2 ,04/08/2023,462.48
101860244,DSG Other Funding,DSG Skills and Attainment,LAC pupil premium,Supplies and Services,Services,BRADON FOREST SCHOOL,SN5 ,25/08/2023,600.00
100847233,High Needs Block,DSG Skills and Attainment,SEN Resourcing Assessment Panel,3rd Party Payments,Top up funding - Maintained providers Pre 16,BRAMBLE HOUSE DAY NURSERY LTD,SN2 ,23/08/2023,900.00
101083233,Social Care,"Children, Families and Community Health Services",Children's Resource and Home Finding Team,3rd Party Payments,Residential Care,BRANAS ISAF LIMITED,EN6 ,23/08/2023,"24,578.66"
098610233,Museums & Heritage,Culture & Heritage,Steam:Income Generation,Supplies and Services,Goods for resale,BRAZIER & CO LTD,TQ14,07/08/2023,"2,298.00"
101860245,DSG Other Funding,DSG Skills and Attainment,LAC pupil premium,Supplies and Services,Services,BRENTSIDE HIGH SCHOOL,W7 1,25/08/2023,600.00
100860282,High Needs Block,DSG Skills and Attainment,SEN Resourcing Assessment Panel,3rd Party Payments,Top up funding - Maintained providers Pre 16,BRIGHT HORIZONS HARWELL DAY NURSERY,NN4 ,23/08/2023,"3,960.00"
097814233,Property Management,Property,Corporate Repairs & Maintenance Programme,Premises Costs,Maintenance - Buildings,BRISTOL FIRE,BS37,02/08/2023,697.25
097815233,Property Management,Property,Corporate Repairs & Maintenance Programme,Premises Costs,Maintenance - Buildings,BRISTOL FIRE,BS37,02/08/2023,"10,790.00"
098964234,Other Repairs,Repairs,Unallocated job costs from OPEN system,Premises Costs,Maintenance - Buildings,BRISTOL FIRE,BS37,09/08/2023,"6,721.45"
099346241,Property Management,Property,Corporate Repairs & Maintenance Programme,Premises Costs,Maintenance - Buildings,BRISTOL FIRE,BS37,23/08/2023,"24,750.75"
098986233,Revenues & Benefits,Revenues & Benefits,Swindon Emergency Assistance Fund,Supplies and Services,Materials,BRITISH HEART FOUNDATION,NW1 ,09/08/2023,"1,722.00"
101097233,Parking & Bus lanes,Highway Operations and Car Parking,Car Parking,Supplies and Services,Subscriptions,BRITISH PARKING ASSOCIATION,RH16,23/08/2023,"1,172.00"
099169233,Town Centre,"Economy, Growth and Place",Fleming Way Improvement Scheme,Capital,Contractor Payments,BRITISH TELECOMMUNICATIONS PLC,S1 3,09/08/2023,"41,244.30"
099841233,Lydiard Park,Culture & Heritage,Lydiard : Hotel Operations,Supplies and Services,Services,BRITISH TELECOMMUNICATIONS PLC,S98 ,16/08/2023,"1,887.00"
101560233,Corporate,Corporate Finance,Corporate Financial Management,Supplies and Services,Fees,BROADSTONE CONSULTANTS & ACTUARIES LTD,BS1 ,25/08/2023,"6,254.50"
098767233,High Needs Block,DSG Skills and Attainment,Post 16 - New Responsibilties,3rd Party Payments,Independent Service Provider- Post 16,BRUNEL EDUCATION,SN25,11/08/2023,"112,221.50"
098731233,High Needs Block,DSG Skills and Attainment,SEN Resourcing Assessment Panel,3rd Party Payments,Top up funding - Academies and Free Schools Pre 16,BRUNEL EDUCATION,SN25,11/08/2023,"15,471.26"
098733233,High Needs Block,DSG Skills and Attainment,SEN Resourcing Assessment Panel,3rd Party Payments,Top up funding - Academies and Free Schools Pre 16,REDACTED PERSONAL DATA,SN25,11/08/2023,"78,746.89"
098737233,High Needs Block,DSG Skills and Attainment,SEN Resourcing Assessment Panel,3rd Party Payments,Top up funding - Academies and Free Schools Pre 16,REDACTED PERSONAL DATA,SN25,11/08/2023,"153,517.70"
098745233,High Needs Block,DSG Skills and Attainment,SEN Resourcing Assessment Panel,3rd Party Payments,Top up funding - Academies and Free Schools Pre 16,REDACTED PERSONAL DATA,SN25,11/08/2023,"29,070.81"
098752233,High Needs Block,DSG Skills and Attainment,SEN Resourcing Assessment Panel,3rd Party Payments,Top up funding - Academies and Free Schools Pre 16,REDACTED PERSONAL DATA,SN25,11/08/2023,"9,249.73"
101860252,DSG Other Funding,DSG Skills and Attainment,LAC pupil premium,Supplies and Services,Services,REDACTED PERSONAL DATA,SN25,25/08/2023,600.00
098757233,High Needs Block,DSG Skills and Attainment,SEN Resourcing Assessment Panel,3rd Party Payments,Top up funding - Academies and Free Schools Pre 16,REDACTED PERSONAL DATA,SN25,11/08/2023,"21,422.08"
101860251,DSG Other Funding,DSG Skills and Attainment,LAC pupil premium,Supplies and Services,Services,REDACTED PERSONAL DATA,SN25,25/08/2023,600.00
100242241,High Needs Block,DSG Skills and Attainment,Advisory Teacher Services,Supplies and Services,Payments to Educational Bodies,REDACTED PERSONAL DATA,SN25,18/08/2023,"11,325.00"
100242239,High Needs Block,DSG Skills and Attainment,Advisory Teacher Services,Supplies and Services,Payments to Educational Bodies,REDACTED PERSONAL DATA,SN25,18/08/2023,"7,250.00"
098714233,High Needs Block,DSG Skills and Attainment,SEN Resourcing Assessment Panel,3rd Party Payments,Top up funding - Academies and Free Schools Pre 16,REDACTED PERSONAL DATA,SN25,11/08/2023,"6,485.01"
098730233,High Needs Block,DSG Skills and Attainment,SEN Resourcing Assessment Panel,3rd Party Payments,Top up funding - Academies and Free Schools Pre 16,REDACTED PERSONAL DATA,SN25,11/08/2023,"21,208.68"
099779336,Early Years Block,DSG Skills and Attainment,Free Nursery Education Commissioning - three & four  year olds,3rd Party Payments,Contracts - Child Care,REDACTED PERSONAL DATA,SN25,16/08/2023,"2,048.05"
101860253,DSG Other Funding,DSG Skills and Attainment,LAC pupil premium,Supplies and Services,Services,REDACTED PERSONAL DATA,SN25,25/08/2023,600.00
098760233,High Needs Block,DSG Skills and Attainment,SEN Resourcing Assessment Panel,3rd Party Payments,Top up funding - Academies and Free Schools Post 16,REDACTED PERSONAL DATA,SN25,11/08/2023,"66,769.49"
097410233,Education,"Education, Inclusion and Skills",Homes for Ukraine - Education & Childcare,Supplies and Services,Payments to Educational Bodies,REDACTED PERSONAL DATA,SN25,02/08/2023,"13,160.00"
098734233,High Needs Block,DSG Skills and Attainment,SEN Resourcing Assessment Panel,3rd Party Payments,Top up funding - Academies and Free Schools Pre 16,REDACTED PERSONAL DATA,SN25,11/08/2023,"177,117.47"
101860246,DSG Other Funding,DSG Skills and Attainment,LAC pupil premium,Supplies and Services,Services,REDACTED PERSONAL DATA,SN25,25/08/2023,600.00
098732233,High Needs Block,DSG Skills and Attainment,SEN Resourcing Assessment Panel,3rd Party Payments,Top up funding - Academies and Free Schools Pre 16,REDACTED PERSONAL DATA,SN25,11/08/2023,"30,080.00"
101860386,DSG Other Funding,DSG Skills and Attainment,LAC pupil premium,Supplies and Services,Services,REDACTED PERSONAL DATA,SN25,25/08/2023,600.00
098756233,High Needs Block,DSG Skills and Attainment,SEN Resourcing Assessment Panel,3rd Party Payments,Top up funding - Academies and Free Schools Pre 16,REDACTED PERSONAL DATA,SN25,11/08/2023,"32,281.78"
098729233,High Needs Block,DSG Skills and Attainment,SEN Resourcing Assessment Panel,3rd Party Payments,Top up funding - Academies and Free Schools Pre 16,REDACTED PERSONAL DATA,SN25,11/08/2023,"218,422.98"
099779337,Early Years Block,DSG Skills and Attainment,Free Nursery Education Commissioning - three & four  year olds,3rd Party Payments,Contracts - Child Care,REDACTED PERSONAL DATA,SN25,16/08/2023,"1,216.80"
098933233,SEND Funds,Skills & Attainment,Walsingham Road,Capital,Contractor Payments,REDACTED PERSONAL DATA,SN25,09/08/2023,"100,000.00"
100721233,Landscaping & Open Space,Culture & Heritage & Art,GWCF - Trees for Climate,Capital,Contractor Payments,BRUNEL SURVEYS LTD,CM20,18/08/2023,605.00
098241233,Landscaping & Open Space,Culture & Heritage & Art,GWCF - Trees for Climate,Capital,Contractor Payments,BRUNEL SURVEYS LTD,CM20,04/08/2023,605.00
097858233,Landscaping & Open Space,Culture & Heritage & Art,GWCF - Trees for Climate,Capital,Contractor Payments,BRUNEL SURVEYS LTD,CM20,02/08/2023,640.00
099181233,NEV,"Economy, Growth and Place",Southern Connector Road,Capital,Compensation Payments,BRUTON KNOWLES,GL2 ,09/08/2023,"10,798.79"
097985233,Streetsmart,Streetsmart,Waste - Processing,Supplies and Services,Repairs & Maintenance,BS ENGINEERING,DN21,02/08/2023,"1,656.09"
097983233,Streetsmart,Streetsmart,Waste - Processing,Supplies and Services,Repairs & Maintenance,BS ENGINEERING,DN21,02/08/2023,547.80
097984233,Streetsmart,Streetsmart,Waste - Processing,Supplies and Services,Repairs & Maintenance,BS ENGINEERING,DN21,02/08/2023,"1,285.11"
096419236,Supported Employment,Housing Services,EW - Timber,Supplies and Services,Materials,BSW TIMBER LIMITED,TD4 ,02/08/2023,"6,359.12"
099166237,Supported Employment,Housing Services,EW - Timber,Supplies and Services,Materials,BSW TIMBER LIMITED,TD4 ,09/08/2023,"9,947.18"
101324233,Neighbourhood Wardens,Special Services,Neighbourhood Wardens,Supplies and Services,Hire / Rental,BUNZL CLEANING & HYGIENE SUPPLIES,SL3 ,25/08/2023,740.55
100387266,Physical Support,Adults,Physical Support 65 and over,3rd Party Payments,Residential Care,BUPA CARE HOME (ANS) LTD,LS5 ,18/08/2023,"4,400.00"
102183233,Sheltered Accomodation,Special Services,Cockram Court,Supplies and Services,Equipment,BURDEN ELECTRONICS,SN1 ,30/08/2023,685.84
099619233,Disabled Children,"Children, Families and Community Health Services",DCT Daytime Short Breaks,Employees,Temporary / Agency - by Accounts Payable,BURMAN HR,DT1 ,14/08/2023,"2,329.05"
099817233,Human Resources and Organisational Development,"People, Culture and Organisational Resilience",HR Operations,Employees,Temporary / Agency - by Accounts Payable,BURMAN HR,DT1 ,16/08/2023,"2,675.67"
101109233,Human Resources and Organisational Development,"People, Culture and Organisational Resilience",HR Operations,Employees,Temporary / Agency - by Accounts Payable,BURMAN HR,DT1 ,23/08/2023,"1,714.86"
099737233,Early Years Block,DSG Skills and Attainment,Free Nursery Education Commissioning - two year olds,3rd Party Payments,Contracts - Child Care,"BUSY BEES, BROOME MANOR",SN3 ,16/08/2023,507.19
099738233,Early Years Block,DSG Skills and Attainment,Free Nursery Education Commissioning - three & four  year olds,3rd Party Payments,Contracts - Child Care,"BUSY BEES, BROOME MANOR",SN3 ,16/08/2023,"13,593.15"
099739233,Early Years Block,DSG Skills and Attainment,Free Nursery Education Commissioning - three & four  year olds,3rd Party Payments,Contracts - Child Care,"BUSY BEES, BROOME MANOR",SN3 ,16/08/2023,811.20
100849233,High Needs Block,DSG Skills and Attainment,SEN Resourcing Assessment Panel,3rd Party Payments,Top up funding - Maintained providers Pre 16,"BUSY BEES, BROOME MANOR",SN3 ,23/08/2023,624.00
099743233,Early Years Block,DSG Skills and Attainment,Free Nursery Education Commissioning - three & four  year olds,3rd Party Payments,Contracts - Child Care,"BUSY BEES, PEATMOOR",SN5 ,16/08/2023,815.10
100850233,High Needs Block,DSG Skills and Attainment,SEN Resourcing Assessment Panel,3rd Party Payments,Top up funding - Maintained providers Pre 16,"BUSY BEES, PEATMOOR",SN5 ,23/08/2023,624.00
099740233,Early Years Block,DSG Skills and Attainment,Free Nursery Education Commissioning - two year olds,3rd Party Payments,Contracts - Child Care,"BUSY BEES, PEATMOOR",SN5 ,16/08/2023,"2,761.39"
099742233,Early Years Block,DSG Skills and Attainment,Free Nursery Education Commissioning - three & four  year olds,3rd Party Payments,Contracts - Child Care,"BUSY BEES, PEATMOOR",SN5 ,16/08/2023,811.20
099735233,Early Years Block,DSG Skills and Attainment,Free Nursery Education Commissioning - three & four  year olds,3rd Party Payments,Contracts - Child Care,"BUSY BEES, ST ANDREWS RIDGE",SN25,16/08/2023,"13,579.32"
099734233,Early Years Block,DSG Skills and Attainment,Free Nursery Education Commissioning - two year olds,3rd Party Payments,Contracts - Child Care,"BUSY BEES, ST ANDREWS RIDGE",SN25,16/08/2023,507.19
098044234,Museums & Heritage,Culture & Heritage,Steam:Education & Curatorial,Supplies and Services,Discretionary Costs,REDACTED PERSONAL DATA,SO30,02/08/2023,614.90
100332233,Learning Disabilities,Adults,Learning Disability 18 - 64,3rd Party Payments,Residential Care,C.H.O.I.C.E LTD,RG12,18/08/2023,"9,887.36"
100327233,Learning Disabilities,Adults,Learning Disability 18 - 64,3rd Party Payments,Residential Care,C.H.O.I.C.E LTD,RG12,18/08/2023,"2,793.94"
100328233,Learning Disabilities,Adults,Learning Disability 18 - 64,Income,Client Contribution - Residential,C.H.O.I.C.E LTD,RG12,18/08/2023,-427.20
100333233,Physical Support,Adults,Physical Support 18 - 64,Income,Client Contribution - Residential,C.H.O.I.C.E LTD,RG12,18/08/2023,-483.20
100333233,Learning Disabilities,Adults,Learning Disability 18 - 64,3rd Party Payments,Residential Care,C.H.O.I.C.E LTD,RG12,18/08/2023,"12,844.16"
100326233,Learning Disabilities,Adults,Learning Disability 18 - 64,3rd Party Payments,Residential Care,C.H.O.I.C.E LTD,RG12,18/08/2023,"13,440.00"
100332233,Learning Disabilities,Adults,Learning Disability 18 - 64,Income,Client Contribution - Residential,C.H.O.I.C.E LTD,RG12,18/08/2023,-481.00
100333233,Physical Support,Adults,Physical Support 18 - 64,3rd Party Payments,Residential Care,C.H.O.I.C.E LTD,RG12,18/08/2023,"11,449.52"
100332233,Learning Disabilities,Adults,Learning Disability 65 and over,3rd Party Payments,Residential Care,C.H.O.I.C.E LTD,RG12,18/08/2023,"9,797.76"
100331233,Learning Disabilities,Adults,Learning Disability 65 and over,Income,Client Contribution - Residential,C.H.O.I.C.E LTD,RG12,18/08/2023,-773.20
100333233,Learning Disabilities,Adults,Learning Disability 18 - 64,3rd Party Payments,Residential Care,C.H.O.I.C.E LTD,RG12,18/08/2023,"7,126.54"
100333233,Learning Disabilities,Adults,Learning Disability 18 - 64,3rd Party Payments,Residential Care,C.H.O.I.C.E LTD,RG12,18/08/2023,"7,695.77"
100333233,Learning Disabilities,Adults,Learning Disability 18 - 64,3rd Party Payments,Residential Care,C.H.O.I.C.E LTD,RG12,18/08/2023,"13,870.08"
100329233,Learning Disabilities,Adults,Learning Disability 18 - 64,3rd Party Payments,Residential Care,C.H.O.I.C.E LTD,SO23,18/08/2023,"44,182.33"
100333233,Learning Disabilities,Adults,Learning Disability 18 - 64,Income,Client Contribution - Residential,C.H.O.I.C.E LTD,RG12,18/08/2023,-276.60
100326233,Learning Disabilities,Adults,Learning Disability 18 - 64,Income,Client Contribution - Residential,C.H.O.I.C.E LTD,RG12,18/08/2023,-298.20
100333233,Physical Support,Adults,Physical Support 18 - 64,3rd Party Payments,Residential Care,C.H.O.I.C.E LTD,RG12,18/08/2023,"6,352.66"
100332233,Learning Disabilities,Adults,Learning Disability 65 and over,Income,Client Contribution - Residential,C.H.O.I.C.E LTD,RG12,18/08/2023,-639.20
100328233,Learning Disabilities,Adults,Learning Disability 18 - 64,3rd Party Payments,Residential Care,C.H.O.I.C.E LTD,RG12,18/08/2023,"13,814.08"
100331233,Learning Disabilities,Adults,Learning Disability 65 and over,3rd Party Payments,Residential Care,C.H.O.I.C.E LTD,RG12,18/08/2023,"10,516.64"
100331233,Learning Disabilities,Adults,Learning Disability 65 and over,Income,Client Contribution - Residential,C.H.O.I.C.E LTD,RG12,18/08/2023,-607.60
100332233,Learning Disabilities,Adults,Learning Disability 65 and over,3rd Party Payments,Residential Care,C.H.O.I.C.E LTD,RG12,18/08/2023,"10,380.16"
100331233,Learning Disabilities,Adults,Learning Disability 65 and over,3rd Party Payments,Residential Care,C.H.O.I.C.E LTD,RG12,18/08/2023,"9,862.32"
100329233,Learning Disabilities,Adults,Learning Disability 18 - 64,3rd Party Payments,Residential Care,C.H.O.I.C.E LTD,SO23,18/08/2023,"-42,482.93"
100329233,Learning Disabilities,Adults,Learning Disability 18 - 64,3rd Party Payments,Residential Care,C.H.O.I.C.E LTD,SO23,18/08/2023,"8,531.76"
100327233,Learning Disabilities,Adults,Learning Disability 18 - 64,3rd Party Payments,Residential Care,C.H.O.I.C.E LTD,RG12,18/08/2023,"9,531.52"
100327233,Learning Disabilities,Adults,Learning Disability 18 - 64,Income,Client Contribution - Residential,C.H.O.I.C.E LTD,RG12,18/08/2023,-511.20
100332233,Learning Disabilities,Adults,Learning Disability 65 and over,Income,Client Contribution - Residential,C.H.O.I.C.E LTD,RG12,18/08/2023,-617.76
100333233,Learning Disabilities,Adults,Learning Disability 18 - 64,Income,Client Contribution - Residential,C.H.O.I.C.E LTD,RG12,18/08/2023,-454.80
101860292,DSG Other Funding,DSG Skills and Attainment,LAC pupil premium,Supplies and Services,Services,REDACTED PERSONAL DATA,BS15,25/08/2023,600.00
101860291,DSG Other Funding,DSG Skills and Attainment,LAC pupil premium,Supplies and Services,Services,REDACTED PERSONAL DATA,BS15,25/08/2023,600.00
101083235,Social Care,"Children, Families and Community Health Services",Children's Resource and Home Finding Team,3rd Party Payments,Residential Care,CALCOT SERVICES FOR CHILDREN LTD,RG7 ,23/08/2023,"29,892.68"
101083234,Social Care,"Children, Families and Community Health Services",Children's Resource and Home Finding Team,3rd Party Payments,Residential Care,CALCOT SERVICES FOR CHILDREN LTD,RG7 ,23/08/2023,"29,361.34"
098102233,Social Care,"Children, Families and Community Health Services",Children's Resource and Home Finding Team,3rd Party Payments,Independent Fostering Agency Placements,CALDECOTT FOSTERING LTD,TN25,04/08/2023,"7,146.52"
101084237,Social Care,"Children, Families and Community Health Services",Children's Resource and Home Finding Team,3rd Party Payments,Independent Fostering Agency Placements,CALDECOTT FOSTERING LTD,TN25,23/08/2023,"7,146.60"
098516246,Streetsmart,Streetsmart,Waterside Fleet Workshops,Supplies and Services,Equipment,CALIBRATION & CONSULTANCY SERVICES (UK) LTD,WN7 ,04/08/2023,"2,008.50"
101958529,Learning Disabilities,Adults,Learning Disability 18 - 64,Transfer Payments,Personal Budget - Direct Payments - Domiciliary Care,REDACTED PERSONAL DATA,SP11,30/08/2023,"2,053.88"
101958628,Learning Disabilities,Adults,Learning Disability 18 - 64,Transfer Payments,Personal Budget - Direct Payments - Domiciliary Care,REDACTED PERSONAL DATA,SP11,30/08/2023,707.37
100537233,Lydiard Park,Culture & Heritage,Lydiard : Hotel Operations,Premises Costs,Gas,CALOR GAS LTD,CV34,18/08/2023,"1,220.31"
100558233,Lydiard Park,Culture & Heritage,Lydiard : Hotel Operations,Premises Costs,Gas,CALOR GAS LTD,CV34,18/08/2023,"1,776.06"
100534233,Lydiard Park,Culture & Heritage,Lydiard : Hotel Operations,Premises Costs,Gas,CALOR GAS LTD,CV34,18/08/2023,"1,917.63"
101082240,Social Care,"Children, Families and Community Health Services",Children's Resource and Home Finding Team,3rd Party Payments,Residential Care,CAMBIAN CHILDCARE LTD,EN6 ,23/08/2023,"26,274.67"
101958273,Physical Support,Adults,Physical Support 18 - 64,Transfer Payments,Personal Budget - Direct Payments - Domiciliary Care,REDACTED PERSONAL DATA,SN25,30/08/2023,940.61
099649233,Planned Maintenance Programme,HRA Capital Financing,Bathrooms,Capital,Contractor Payments,CANTILLON GROUP LTD,SN25,16/08/2023,"1,512.09"
099649233,Void Repairs,Supervision & Management,Void Property Repairs,3rd Party Payments,Contract Payments,CANTILLON GROUP LTD,SN25,16/08/2023,442.06
099649233,Void Repairs,Supervision & Management,Void Property Repairs,3rd Party Payments,Contract Payments,CANTILLON GROUP LTD,SN25,16/08/2023,"2,217.65"
099649233,Acquisitions,HRA Capital Financing,HRA Acquisitions Programme,Capital,Contractor Payments,CANTILLON GROUP LTD,SN25,16/08/2023,"2,958.69"
099649233,Disabled Capital Codes,Disabled Codes 2,"Voids - Fencing, Concreting & Environmental Works",Capital,Contractor Payments,CANTILLON GROUP LTD,SN25,16/08/2023,"-30,000.00"
099649233,Disabled Capital Codes,Disabled Codes 2,"Voids - Fencing, Concreting & Environmental Works",Capital,Contractor Payments,CANTILLON GROUP LTD,SN25,16/08/2023,"30,000.00"
099649233,Planned Maintenance Programme,HRA Capital Financing,Bathrooms,Capital,Contractor Payments,CANTILLON GROUP LTD,SN25,16/08/2023,"2,456.01"
099649233,Planned Maintenance Programme,HRA Capital Financing,Kitchens,Capital,Contractor Payments,CANTILLON GROUP LTD,SN25,16/08/2023,"3,662.21"
099649233,Disabled Capital Codes,Disabled Codes 2,"Voids - Fencing, Concreting & Environmental Works",Capital,Contractor Payments,CANTILLON GROUP LTD,SN25,16/08/2023,"3,435.16"
099649233,Void Repairs,Supervision & Management,Void Property Repairs,3rd Party Payments,Contract Payments,CANTILLON GROUP LTD,SN25,16/08/2023,"19,028.07"
099429233,Other Repairs,Repairs,Cyclical Maintenance,Supplies and Services,Testing / Inspection,CANTILLON GROUP LTD,SN25,11/08/2023,428.05
099649233,Planned Maintenance Programme,HRA Capital Financing,Bathrooms,Capital,Contractor Payments,CANTILLON GROUP LTD,SN25,16/08/2023,"2,468.50"
099484235,Other Repairs,Repairs,Cyclical Maintenance,Supplies and Services,Testing / Inspection,CANTILLON GROUP LTD,SN25,11/08/2023,502.64
099433234,Other Repairs,Repairs,Cyclical Maintenance,Supplies and Services,Testing / Inspection,CANTILLON GROUP LTD,SN25,11/08/2023,463.52
099576250,Other Repairs,Repairs,Cyclical Maintenance,Supplies and Services,Testing / Inspection,CANTILLON GROUP LTD,SN25,14/08/2023,438.65
099649233,Void Repairs,Supervision & Management,Void Property Repairs,3rd Party Payments,Contract Payments,CANTILLON GROUP LTD,SN25,16/08/2023,"3,895.85"
099649233,Disabled Capital Codes,Disabled Codes 2,"Voids - Fencing, Concreting & Environmental Works",Capital,Contractor Payments,CANTILLON GROUP LTD,SN25,16/08/2023,"4,567.81"
099576249,Other Repairs,Repairs,Cyclical Maintenance,Supplies and Services,Testing / Inspection,CANTILLON GROUP LTD,SN25,14/08/2023,417.89
098327234,Other Repairs,Repairs,Cyclical Maintenance,Supplies and Services,Testing / Inspection,CANTILLON GROUP LTD,SN25,04/08/2023,551.24
099649233,Planned Maintenance Programme,HRA Capital Financing,Kitchens,Capital,Contractor Payments,CANTILLON GROUP LTD,SN25,16/08/2023,"3,927.71"
099649233,Disabled Capital Codes,Disabled Codes 2,"Voids - Fencing, Concreting & Environmental Works",Capital,Contractor Payments,CANTILLON GROUP LTD,SN25,16/08/2023,"4,558.09"
099649233,Planned Maintenance Programme,HRA Capital Financing,Kitchens,Capital,Contractor Payments,CANTILLON GROUP LTD,SN25,16/08/2023,"4,900.74"
099649233,Void Repairs,Supervision & Management,Void Property Repairs,3rd Party Payments,Contract Payments,CANTILLON GROUP LTD,SN25,16/08/2023,"9,173.81"
099649233,Void Repairs,Supervision & Management,Void Property Repairs,3rd Party Payments,Contract Payments,CANTILLON GROUP LTD,SN25,16/08/2023,"5,310.01"
098077234,Other Repairs,Repairs,Cyclical Maintenance,Supplies and Services,Testing / Inspection,CANTILLON GROUP LTD,SN25,02/08/2023,490.19
099649233,Void Repairs,Supervision & Management,Void Property Repairs,3rd Party Payments,Contract Payments,CANTILLON GROUP LTD,SN25,16/08/2023,"4,193.23"
098132233,Social Care,"Children, Families and Community Health Services",Children's Resource and Home Finding Team,3rd Party Payments,Independent Fostering Agency Placements,CAPSTONE FOSTER CARE (SW) LTD,TQ12,04/08/2023,"3,766.19"
098131233,Social Care,"Children, Families and Community Health Services",Children's Resource and Home Finding Team,3rd Party Payments,Independent Fostering Agency Placements,CAPSTONE FOSTER CARE (SW) LTD,TQ12,04/08/2023,"7,881.75"
098130233,Social Care,"Children, Families and Community Health Services",Children's Resource and Home Finding Team,3rd Party Payments,Independent Fostering Agency Placements,CAPSTONE FOSTER CARE (SW) LTD,TQ12,04/08/2023,"3,728.53"
100387254,Learning Disabilities,Adults,Learning Disability 18 - 64,3rd Party Payments,Supported Lodgings (Childrens)/Supported Living (Adults),CAREFORYOU LTD,N13 ,18/08/2023,"4,882.00"
101082239,Social Care,"Children, Families and Community Health Services",Children's Resource and Home Finding Team,3rd Party Payments,Semi Independent,CARETECH COMMUNITY SERVICES LTD,EN6 ,23/08/2023,"4,392.86"
101602233,Digital & Business Change,Digital & Business Change,IT Systems,Supplies and Services,License Costs,CAREWORKS LTD,SL3 ,25/08/2023,"1,899.90"
098067246,Public Health,Public Health,Health Checks,3rd Party Payments,Contract Payments,CARFAX HEALTH ENTERPRISE CIC,SN5 ,02/08/2023,"2,116.00"
098108233,Social Care,"Children, Families and Community Health Services",Placement - Care Leaver Team,3rd Party Payments,Semi Independent,CARING FOR COMMUNITIES AND PEOPLE (CCP),GL50,04/08/2023,"2,580.00"
098105233,Social Care,"Children, Families and Community Health Services",Placement - Care Leaver Team,3rd Party Payments,Semi Independent,CARING FOR COMMUNITIES AND PEOPLE (CCP),GL50,04/08/2023,"3,420.00"
098104233,Social Care,"Children, Families and Community Health Services",Placement - Care Leaver Team,3rd Party Payments,Semi Independent,CARING FOR COMMUNITIES AND PEOPLE (CCP),GL50,04/08/2023,"2,580.00"
098109233,Social Care,"Children, Families and Community Health Services",Children's Resource and Home Finding Team,3rd Party Payments,Semi Independent,CARING FOR COMMUNITIES AND PEOPLE (CCP),GL50,04/08/2023,"6,780.00"
099007233,Social Care,"Children, Families and Community Health Services",Unaccompanied Asylum Seeking Children (UASC),3rd Party Payments,Semi Independent,CARING FOR COMMUNITIES AND PEOPLE (CCP),GL50,11/08/2023,"3,410.33"
098106233,Social Care,"Children, Families and Community Health Services",Unaccompanied Asylum Seeking Children (UASC),3rd Party Payments,Semi Independent,CARING FOR COMMUNITIES AND PEOPLE (CCP),GL50,04/08/2023,"3,420.00"
099007233,Social Care,"Children, Families and Community Health Services",Unaccompanied Asylum Seeking Children (UASC),3rd Party Payments,Semi Independent,CARING FOR COMMUNITIES AND PEOPLE (CCP),GL50,11/08/2023,"3,410.35"
098918233,Social Care,"Children, Families and Community Health Services",Unaccompanied Asylum Seeking Children (UASC),3rd Party Payments,Semi Independent,CARING FOR COMMUNITIES AND PEOPLE (CCP),GL50,09/08/2023,"3,410.33"
098918233,Social Care,"Children, Families and Community Health Services",Unaccompanied Asylum Seeking Children (UASC),3rd Party Payments,Semi Independent,CARING FOR COMMUNITIES AND PEOPLE (CCP),GL50,09/08/2023,"4,009.96"
099007233,Social Care,"Children, Families and Community Health Services",Unaccompanied Asylum Seeking Children (UASC),3rd Party Payments,Semi Independent,CARING FOR COMMUNITIES AND PEOPLE (CCP),GL50,11/08/2023,"3,410.33"
099007233,Social Care,"Children, Families and Community Health Services",Unaccompanied Asylum Seeking Children (UASC),3rd Party Payments,Semi Independent,CARING FOR COMMUNITIES AND PEOPLE (CCP),GL50,11/08/2023,"3,410.33"
098918233,Social Care,"Children, Families and Community Health Services",Unaccompanied Asylum Seeking Children (UASC),3rd Party Payments,Semi Independent,CARING FOR COMMUNITIES AND PEOPLE (CCP),GL50,09/08/2023,"3,410.33"
098107233,Social Care,"Children, Families and Community Health Services",Placement - Care Leaver Team,3rd Party Payments,Semi Independent,CARING FOR COMMUNITIES AND PEOPLE (CCP),GL50,04/08/2023,"2,580.00"
098103233,Social Care,"Children, Families and Community Health Services",Placement - Care Leaver Team,3rd Party Payments,Semi Independent,CARING FOR COMMUNITIES AND PEOPLE (CCP),GL50,04/08/2023,"2,580.00"
098918233,Social Care,"Children, Families and Community Health Services",Unaccompanied Asylum Seeking Children (UASC),3rd Party Payments,Semi Independent,CARING FOR COMMUNITIES AND PEOPLE (CCP),GL50,09/08/2023,"1,011.86"
098918233,Social Care,"Children, Families and Community Health Services",Unaccompanied Asylum Seeking Children (UASC),3rd Party Payments,Semi Independent,CARING FOR COMMUNITIES AND PEOPLE (CCP),GL50,09/08/2023,"3,410.33"
098918233,Social Care,"Children, Families and Community Health Services",Unaccompanied Asylum Seeking Children (UASC),3rd Party Payments,Semi Independent,CARING FOR COMMUNITIES AND PEOPLE (CCP),GL50,09/08/2023,"3,410.33"
098918233,Social Care,"Children, Families and Community Health Services",Unaccompanied Asylum Seeking Children (UASC),3rd Party Payments,Semi Independent,CARING FOR COMMUNITIES AND PEOPLE (CCP),GL50,09/08/2023,"1,798.86"
099007233,Social Care,"Children, Families and Community Health Services",Unaccompanied Asylum Seeking Children (UASC),3rd Party Payments,Semi Independent,CARING FOR COMMUNITIES AND PEOPLE (CCP),GL50,11/08/2023,"3,410.33"
101208233,Disabled Children,"Children, Families and Community Health Services",DCT Daytime Short Breaks,3rd Party Payments,Nursing Care,CARING FOR COMMUNITIES AND PEOPLE (CCP),GL50,23/08/2023,"1,291.15"
100014233,Social Care,"Children, Families and Community Health Services",Placement - Care Leaver Team,3rd Party Payments,Personal Needs,CARING FOR COMMUNITIES AND PEOPLE (CCP),GL50,16/08/2023,"1,386.10"
099007233,Social Care,"Children, Families and Community Health Services",Unaccompanied Asylum Seeking Children (UASC),3rd Party Payments,Semi Independent,CARING FOR COMMUNITIES AND PEOPLE (CCP),GL50,11/08/2023,"3,410.33"
100186233,Physical Support,Adults,Physical Support 65 and over,3rd Party Payments,Personal Budget - Domiciliary care,CARING HEART CARERS LIMITED,SN25,18/08/2023,"1,152.00"
100188233,Physical Support,Adults,Physical Support 18 - 64,3rd Party Payments,Personal Budget - Domiciliary care,CARING HEART CARERS LIMITED,SN25,18/08/2023,"1,290.24"
101958327,Learning Disabilities,Adults,Learning Disability 18 - 64,Transfer Payments,Personal Budget - Direct Payments - Domiciliary Care,REDACTED PERSONAL DATA,SN2 ,30/08/2023,"2,640.28"
101958576,Physical Support,Adults,Physical Support 65 and over,3rd Party Payments,Carers,REDACTED PERSONAL DATA,SP11,30/08/2023,591.27
098645233,High Needs Block,DSG Skills and Attainment,SEN Resourcing Assessment Panel,Supplies and Services,Services,REDACTED PERSONAL DATA,SN3 ,11/08/2023,"1,557.82"
101958579,Learning Disabilities,Adults,Learning Disability 18 - 64,Transfer Payments,Personal Budget - Direct Payments - Other,REDACTED PERSONAL DATA,SN2 ,30/08/2023,"2,840.89"
101958578,Learning Disabilities,Adults,Learning Disability 18 - 64,Transfer Payments,Personal Budget - Direct Payments - Domiciliary Care,REDACTED PERSONAL DATA,SN2 ,30/08/2023,"1,572.42"
099744233,Early Years Block,DSG Skills and Attainment,Free Nursery Education Commissioning - three & four  year olds,3rd Party Payments,Contracts - Child Care,REDACTED PERSONAL DATA,SN3 ,16/08/2023,534.69
099346235,Responsive Repairs,Repairs,Responsive Repairs,3rd Party Payments,Contract Payments,CARPET WAREHOUSE SWINDON LTD,SN2 ,23/08/2023,"1,150.00"
099346238,Responsive Repairs,Repairs,Responsive Repairs,3rd Party Payments,Contract Payments,CARPET WAREHOUSE SWINDON LTD,SN2 ,23/08/2023,"1,849.68"
099344233,Responsive Repairs,Repairs,Responsive Repairs,3rd Party Payments,Contract Payments,CARPET WAREHOUSE SWINDON LTD,SN2 ,23/08/2023,"1,572.87"
099346237,Responsive Repairs,Repairs,Responsive Repairs,3rd Party Payments,Contract Payments,CARPET WAREHOUSE SWINDON LTD,SN2 ,23/08/2023,930.00
099345233,Responsive Repairs,Repairs,Responsive Repairs,3rd Party Payments,Contract Payments,CARPET WAREHOUSE SWINDON LTD,SN2 ,23/08/2023,906.86
099554234,Responsive Repairs,Repairs,Responsive Repairs,3rd Party Payments,Contract Payments,CARPET WAREHOUSE SWINDON LTD,SN2 ,16/08/2023,856.48
100795234,Social Care,"Children, Families and Community Health Services",Legal Fees,Supplies and Services,Fees,CARTER BROWN LTD,B15 ,21/08/2023,559.80
100795235,Social Care,"Children, Families and Community Health Services",Legal Fees,Supplies and Services,Fees,CARTER BROWN LTD,B15 ,21/08/2023,"2,523.00"
100800238,Other Repairs,Repairs,Unallocated job costs from OPEN system,Premises Costs,Maintenance - Buildings,CARTER PUMPS LTD,SN10,21/08/2023,"1,090.00"
101958346,Learning Disabilities,Adults,Learning Disability 18 - 64,Transfer Payments,Personal Budget - Direct Payments - Domiciliary Care,REDACTED PERSONAL DATA,SN6 ,30/08/2023,"2,744.96"
101144233,Treasury,Corporate Finance,Private Finance Initiatives (PFI),Supplies and Services,Services,CASTLE GATE LEGAL & COMMERCIAL LTD,NG12,23/08/2023,"2,000.00"
100943233,Treasury,Corporate Finance,Private Finance Initiatives (PFI),Supplies and Services,Services,CASTLE GATE LEGAL & COMMERCIAL LTD,NG12,23/08/2023,"3,500.00"
100301233,Learning Disabilities,Adults,Learning Disability 18 - 64,3rd Party Payments,Supported Lodgings (Childrens)/Supported Living (Adults),CATHEDRAL HOMES,GL1 ,18/08/2023,"2,325.00"
100301233,Learning Disabilities,Adults,Learning Disability 18 - 64,3rd Party Payments,Supported Lodgings (Childrens)/Supported Living (Adults),CATHEDRAL HOMES,GL1 ,18/08/2023,"4,462.52"
100301233,Learning Disabilities,Adults,Learning Disability 18 - 64,3rd Party Payments,Supported Lodgings (Childrens)/Supported Living (Adults),CATHEDRAL HOMES,GL1 ,18/08/2023,675.00
100301233,Learning Disabilities,Adults,Learning Disability 18 - 64,3rd Party Payments,Supported Lodgings (Childrens)/Supported Living (Adults),CATHEDRAL HOMES,GL1 ,18/08/2023,"1,706.28"
100301233,Learning Disabilities,Adults,Learning Disability 18 - 64,3rd Party Payments,Supported Lodgings (Childrens)/Supported Living (Adults),CATHEDRAL HOMES,GL1 ,18/08/2023,"3,225.00"
100301233,Learning Disabilities,Adults,Learning Disability 18 - 64,Income,Client Contribution - Supported Living,CATHEDRAL HOMES,GL1 ,18/08/2023,-414.20
100301233,Learning Disabilities,Adults,Learning Disability 18 - 64,Income,Client Contribution - Personal Budget - Fairer Charging,CATHEDRAL HOMES,GL1 ,18/08/2023,-181.60
097940233,Early Help,Early Intervention & Prevention,"Holiday, Activities & Food Grant",3rd Party Payments,Contracts - Child Care,REDACTED PERSONAL DATA,SN5 ,02/08/2023,640.00
100455244,Learning Disabilities,Adults,Learning Disability 18 - 64,3rd Party Payments,Supported Accommodation Scheme,REDACTED PERSONAL DATA,SN6 ,23/08/2023,"1,480.00"
100455244,Learning Disabilities,Adults,Learning Disability 18 - 64,3rd Party Payments,Supported Accommodation Scheme,REDACTED PERSONAL DATA,SN6 ,23/08/2023,"2,280.00"
099470233,Town Centre,"Economy, Growth and Place",Kimmerfields enabling works,Capital,Professional Fees,CC GROUND INVESTIGATIONS LTD,GL3 ,11/08/2023,"1,765.00"
100484233,Physical Support,Adults,Physical Support 65 and over,3rd Party Payments,Personal Budget - Domiciliary care,CELTIC CARE SERVICES LTD,SN15,18/08/2023,"1,612.80"
100483233,Mental Health,Adults,Mental Health 65 and over,3rd Party Payments,Personal Budget - Domiciliary care,CELTIC CARE SERVICES LTD,SN15,18/08/2023,645.12
100482233,Physical Support,Adults,Physical Support 65 and over,3rd Party Payments,Personal Budget - Domiciliary care,CELTIC CARE SERVICES LTD,SN15,18/08/2023,"2,903.04"
100058233,Streetsmart,Streetsmart,Waste - Disposal,Supplies and Services,Repairs & Maintenance,CENTRAL CONVEYOR BELTING SERVICES LTD,RG19,16/08/2023,904.96
101519233,Public Health,Public Health,Child 0-19 Public Health Programmes,3rd Party Payments,Contract Payments,CHAMELEON PDE LTD,CA6 ,25/08/2023,"2,000.00"
101187233,Museums & Heritage,Culture & Heritage,Steam:Income Generation,Supplies and Services,Discretionary Costs,CHAMPIONS (UK) PLC,LE12,23/08/2023,"1,500.00"
101002233,Public Health,Public Health,Supplementary SMTR Grant,3rd Party Payments,Contract Payments,CHANGE GROW LIVE SERVICES LTD,BN1 ,23/08/2023,"2,409.00"
102164234,Lydiard Park,Culture & Heritage,Lydiard : Forest Caf�,Supplies and Services,Confectionary,CHAPPLE & JENKINS LTD,BS15,30/08/2023,551.93
099198233,Lydiard Park,Culture & Heritage,Lydiard : Forest Caf�,Supplies and Services,Food,CHAPPLE & JENKINS LTD,BS15,11/08/2023,19.42
100962266,Lydiard Park,Culture & Heritage,Lydiard : Forest Caf�,Supplies and Services,Food,CHAPPLE & JENKINS LTD,BS15,23/08/2023,23.43
099873233,Streetsmart,Streetsmart,Waterside Canteen,Supplies and Services,Confectionary,CHAPPLE & JENKINS LTD,BS15,16/08/2023,618.08
099781233,Lydiard Park,Culture & Heritage,Lydiard : Forest Caf�,Supplies and Services,Confectionary,CHAPPLE & JENKINS LTD,BS15,16/08/2023,831.52
100882233,Streetsmart,Streetsmart,Waterside Canteen,Supplies and Services,Confectionary,CHAPPLE & JENKINS LTD,BS15,23/08/2023,849.47
099198233,Lydiard Park,Culture & Heritage,Lydiard : Forest Caf�,Supplies and Services,Confectionary,CHAPPLE & JENKINS LTD,BS15,11/08/2023,33.44
100962266,Lydiard Park,Culture & Heritage,Lydiard : Forest Caf�,Supplies and Services,Confectionary,CHAPPLE & JENKINS LTD,BS15,23/08/2023,544.95
099781233,Lydiard Park,Culture & Heritage,Lydiard : Forest Caf�,Supplies and Services,Food,CHAPPLE & JENKINS LTD,BS15,16/08/2023,120.73
102164234,Lydiard Park,Culture & Heritage,Lydiard : Forest Caf�,Supplies and Services,Food,CHAPPLE & JENKINS LTD,BS15,30/08/2023,17.68
099781233,Lydiard Park,Culture & Heritage,Lydiard : Forest Caf�,Supplies and Services,Confectionary,CHAPPLE & JENKINS LTD,BS15,16/08/2023,82.46
099877233,Lydiard Park,Culture & Heritage,Lydiard : Forest Caf�,Supplies and Services,Confectionary,CHAPPLE & JENKINS LTD,BS15,16/08/2023,38.46
099198233,Lydiard Park,Culture & Heritage,Lydiard : Forest Caf�,Supplies and Services,Confectionary,CHAPPLE & JENKINS LTD,BS15,11/08/2023,477.78
099877233,Lydiard Park,Culture & Heritage,Lydiard : Forest Caf�,Supplies and Services,Confectionary,CHAPPLE & JENKINS LTD,BS15,16/08/2023,703.90
100962266,Lydiard Park,Culture & Heritage,Lydiard : Forest Caf�,Supplies and Services,Confectionary,CHAPPLE & JENKINS LTD,BS15,23/08/2023,42.92
102164234,Lydiard Park,Culture & Heritage,Lydiard : Forest Caf�,Supplies and Services,Confectionary,CHAPPLE & JENKINS LTD,BS15,30/08/2023,40.89
099875233,Streetsmart,Streetsmart,Waterside Canteen,Supplies and Services,Confectionary,CHAPPLE & JENKINS LTD,BS15,16/08/2023,484.49
101860250,DSG Other Funding,DSG Skills and Attainment,LAC pupil premium,Supplies and Services,Services,CHARBOROUGH ROAD PRIMARY SCHOOL,BS32,25/08/2023,600.00
098047245,Other Repairs,Repairs,Unallocated job costs from OPEN system,Premises Costs,Maintenance - Buildings,CHARLES HARDING ESTATE AGENTS LIMITED,SN1 ,02/08/2023,30.00
101952233,Homelessness and Travellers,Housing Services,Homelessness Prevention,Transfer Payments,Payment of Costs,CHARLES HARDING LETTINGS AND PROPERTY MANAGEMENT,SN1 ,30/08/2023,"2,400.00"
101305233,Homelessness and Travellers,Housing Services,Bed and Breakfast Accommodation,Transfer Payments,Payment of Costs,CHARLES HOPES HOLDINGS LIMITED,SO15,25/08/2023,"4,500.00"
101267233,Homelessness and Travellers,Housing Services,Bed and Breakfast Accommodation,Transfer Payments,Payment of Costs,CHARLES HOPES HOLDINGS LIMITED,SO15,25/08/2023,"2,100.00"
101905233,Homelessness and Travellers,Housing Services,Bed and Breakfast Accommodation,Transfer Payments,Payment of Costs,CHARLES HOPES HOLDINGS LIMITED,SO15,30/08/2023,"11,250.00"
101309234,Homelessness and Travellers,Housing Services,Bed and Breakfast Accommodation,Transfer Payments,Payment of Costs,CHARLES HOPES HOLDINGS LIMITED,SO15,25/08/2023,"2,100.00"
101611233,Homelessness and Travellers,Housing Services,Bed and Breakfast Accommodation,Transfer Payments,Payment of Costs,CHARLES HOPES HOLDINGS LIMITED,SO15,25/08/2023,"2,250.00"
101300233,Homelessness and Travellers,Housing Services,Bed and Breakfast Accommodation,Transfer Payments,Payment of Costs,CHARLES HOPES HOLDINGS LIMITED,SO15,25/08/2023,"4,500.00"
101306233,Homelessness and Travellers,Housing Services,Bed and Breakfast Accommodation,Transfer Payments,Payment of Costs,CHARLES HOPES HOLDINGS LIMITED,SO15,25/08/2023,"9,000.00"
101301233,Homelessness and Travellers,Housing Services,Bed and Breakfast Accommodation,Transfer Payments,Payment of Costs,CHARLES HOPES HOLDINGS LIMITED,SO15,25/08/2023,"2,250.00"
101904233,Homelessness and Travellers,Housing Services,Bed and Breakfast Accommodation,Transfer Payments,Payment of Costs,CHARLES HOPES HOLDINGS LIMITED,SO15,30/08/2023,"6,300.00"
101303233,Homelessness and Travellers,Housing Services,Bed and Breakfast Accommodation,Transfer Payments,Payment of Costs,CHARLES HOPES HOLDINGS LIMITED,SO15,25/08/2023,"9,000.00"
101264233,Homelessness and Travellers,Housing Services,Bed and Breakfast Accommodation,Transfer Payments,Payment of Costs,CHARLES HOPES HOLDINGS LIMITED,SO15,25/08/2023,"2,250.00"
101310233,Homelessness and Travellers,Housing Services,Bed and Breakfast Accommodation,Transfer Payments,Payment of Costs,CHARLES HOPES HOLDINGS LIMITED,SO15,25/08/2023,"6,750.00"
101304233,Homelessness and Travellers,Housing Services,Bed and Breakfast Accommodation,Transfer Payments,Payment of Costs,CHARLES HOPES HOLDINGS LIMITED,SO15,25/08/2023,"2,250.00"
101903233,Homelessness and Travellers,Housing Services,Bed and Breakfast Accommodation,Transfer Payments,Payment of Costs,CHARLES HOPES HOLDINGS LIMITED,SO15,30/08/2023,"2,100.00"
101265233,Homelessness and Travellers,Housing Services,Bed and Breakfast Accommodation,Transfer Payments,Payment of Costs,CHARLES HOPES HOLDINGS LIMITED,SO15,25/08/2023,"2,100.00"
098297233,Homelessness and Travellers,Housing Services,Bed and Breakfast Accommodation,Transfer Payments,Payment of Costs,CHARLES HOPES HOLDINGS LIMITED,SO15,25/08/2023,"-2,700.00"
101302234,Homelessness and Travellers,Housing Services,Bed and Breakfast Accommodation,Transfer Payments,Payment of Costs,CHARLES HOPES HOLDINGS LIMITED,SO15,25/08/2023,"2,250.00"
101308233,Homelessness and Travellers,Housing Services,Bed and Breakfast Accommodation,Transfer Payments,Payment of Costs,CHARLES HOPES HOLDINGS LIMITED,SO15,25/08/2023,"2,163.46"
101299233,Homelessness and Travellers,Housing Services,Bed and Breakfast Accommodation,Transfer Payments,Payment of Costs,CHARLES HOPES HOLDINGS LIMITED,SO15,25/08/2023,"6,750.00"
100065233,Lydiard Park,Culture & Heritage,Lydiard : Forest Caf�,Supplies and Services,Confectionary,CHARLES SAUNDERS LTD,BS37,16/08/2023,187.26
102102233,Lydiard Park,Culture & Heritage,Lydiard : Forest Caf�,Supplies and Services,Food,CHARLES SAUNDERS LTD,BS37,30/08/2023,335.40
099911233,Lydiard Park,Culture & Heritage,Lydiard : Forest Caf�,Supplies and Services,Confectionary,CHARLES SAUNDERS LTD,BS37,16/08/2023,116.31
102097233,Lydiard Park,Culture & Heritage,Lydiard : Coach House Caf�,Supplies and Services,Materials,CHARLES SAUNDERS LTD,BS37,30/08/2023,9.91
099710233,Lydiard Park,Culture & Heritage,Lydiard : Coach House Caf�,Supplies and Services,Food,CHARLES SAUNDERS LTD,BS37,16/08/2023,156.45
099712233,Lydiard Park,Culture & Heritage,Lydiard : Coach House Caf�,Supplies and Services,Food,CHARLES SAUNDERS LTD,BS37,16/08/2023,354.73
102093233,Lydiard Park,Culture & Heritage,Lydiard : Coach House Caf�,Supplies and Services,Confectionary,CHARLES SAUNDERS LTD,BS37,30/08/2023,640.72
099710233,Lydiard Park,Culture & Heritage,Lydiard : Coach House Caf�,Supplies and Services,Confectionary,CHARLES SAUNDERS LTD,BS37,16/08/2023,"1,110.40"
099712233,Lydiard Park,Culture & Heritage,Lydiard : Coach House Caf�,Supplies and Services,Confectionary,CHARLES SAUNDERS LTD,BS37,16/08/2023,95.52
100868233,Lydiard Park,Culture & Heritage,Lydiard : Forest Caf�,Supplies and Services,Materials,CHARLES SAUNDERS LTD,BS37,23/08/2023,9.72
102095233,Lydiard Park,Culture & Heritage,Lydiard : Forest Caf�,Supplies and Services,Confectionary,CHARLES SAUNDERS LTD,BS37,30/08/2023,91.11
102084233,Lydiard Park,Culture & Heritage,Lydiard : Forest Caf�,Supplies and Services,Confectionary,CHARLES SAUNDERS LTD,BS37,30/08/2023,95.52
099783233,Lydiard Park,Culture & Heritage,Lydiard : Forest Caf�,Supplies and Services,Confectionary,CHARLES SAUNDERS LTD,BS37,16/08/2023,201.18
099911233,Lydiard Park,Culture & Heritage,Lydiard : Forest Caf�,Supplies and Services,Food,CHARLES SAUNDERS LTD,BS37,16/08/2023,672.46
102097233,Lydiard Park,Culture & Heritage,Lydiard : Coach House Caf�,Supplies and Services,Food,CHARLES SAUNDERS LTD,BS37,30/08/2023,310.61
102097233,Lydiard Park,Culture & Heritage,Lydiard : Coach House Caf�,Supplies and Services,Confectionary,CHARLES SAUNDERS LTD,BS37,30/08/2023,168.32
099795233,Lydiard Park,Culture & Heritage,Lydiard : Coach House Caf�,Supplies and Services,Confectionary,CHARLES SAUNDERS LTD,BS37,16/08/2023,"1,052.30"
099783233,Lydiard Park,Culture & Heritage,Lydiard : Forest Caf�,Supplies and Services,Materials,CHARLES SAUNDERS LTD,BS37,16/08/2023,13.12
100065233,Lydiard Park,Culture & Heritage,Lydiard : Forest Caf�,Supplies and Services,Food,CHARLES SAUNDERS LTD,BS37,16/08/2023,643.07
100009233,Lydiard Park,Culture & Heritage,Lydiard : Forest Caf�,Supplies and Services,Food,CHARLES SAUNDERS LTD,BS37,16/08/2023,313.17
102093233,Lydiard Park,Culture & Heritage,Lydiard : Coach House Caf�,Supplies and Services,Food,CHARLES SAUNDERS LTD,BS37,30/08/2023,30.99
102093233,Lydiard Park,Culture & Heritage,Lydiard : Coach House Caf�,Supplies and Services,Confectionary,CHARLES SAUNDERS LTD,BS37,30/08/2023,159.08
100875235,Lydiard Park,Culture & Heritage,Lydiard : Coach House Caf�,Supplies and Services,Confectionary,CHARLES SAUNDERS LTD,BS37,23/08/2023,345.70
099795233,Lydiard Park,Culture & Heritage,Lydiard : Coach House Caf�,Supplies and Services,Confectionary,CHARLES SAUNDERS LTD,BS37,16/08/2023,158.23
102102233,Lydiard Park,Culture & Heritage,Lydiard : Forest Caf�,Supplies and Services,Materials,CHARLES SAUNDERS LTD,BS37,30/08/2023,9.72
100866233,Lydiard Park,Culture & Heritage,Lydiard : Forest Caf�,Supplies and Services,Confectionary,CHARLES SAUNDERS LTD,BS37,23/08/2023,642.74
100868233,Lydiard Park,Culture & Heritage,Lydiard : Forest Caf�,Supplies and Services,Food,CHARLES SAUNDERS LTD,BS37,23/08/2023,473.39
099783233,Lydiard Park,Culture & Heritage,Lydiard : Forest Caf�,Supplies and Services,Food,CHARLES SAUNDERS LTD,BS37,16/08/2023,535.04
100549233,Lydiard Park,Culture & Heritage,Lydiard : Hotel Operations,Supplies and Services,Materials,CHARLES SAUNDERS LTD,BS37,18/08/2023,215.64
100875235,Lydiard Park,Culture & Heritage,Lydiard : Coach House Caf�,Supplies and Services,Food,CHARLES SAUNDERS LTD,BS37,23/08/2023,136.39
099710233,Lydiard Park,Culture & Heritage,Lydiard : Coach House Caf�,Supplies and Services,Confectionary,CHARLES SAUNDERS LTD,BS37,16/08/2023,158.23
100866233,Lydiard Park,Culture & Heritage,Lydiard : Forest Caf�,Supplies and Services,Confectionary,CHARLES SAUNDERS LTD,BS37,23/08/2023,47.76
100009233,Lydiard Park,Culture & Heritage,Lydiard : Forest Caf�,Supplies and Services,Confectionary,CHARLES SAUNDERS LTD,BS37,16/08/2023,"1,005.34"
102095233,Lydiard Park,Culture & Heritage,Lydiard : Forest Caf�,Supplies and Services,Food,CHARLES SAUNDERS LTD,BS37,30/08/2023,383.79
102084233,Lydiard Park,Culture & Heritage,Lydiard : Forest Caf�,Supplies and Services,Food,CHARLES SAUNDERS LTD,BS37,30/08/2023,170.92
102095233,Lydiard Park,Culture & Heritage,Lydiard : Forest Caf�,Supplies and Services,Confectionary,CHARLES SAUNDERS LTD,BS37,30/08/2023,365.64
102084233,Lydiard Park,Culture & Heritage,Lydiard : Forest Caf�,Supplies and Services,Confectionary,CHARLES SAUNDERS LTD,BS37,30/08/2023,"1,283.29"
100065233,Lydiard Park,Culture & Heritage,Lydiard : Forest Caf�,Supplies and Services,Confectionary,CHARLES SAUNDERS LTD,BS37,16/08/2023,39.96
100866233,Lydiard Park,Culture & Heritage,Lydiard : Forest Caf�,Supplies and Services,Food,CHARLES SAUNDERS LTD,BS37,23/08/2023,787.34
099783233,Lydiard Park,Culture & Heritage,Lydiard : Forest Caf�,Supplies and Services,Confectionary,CHARLES SAUNDERS LTD,BS37,16/08/2023,50.96
100549233,Lydiard Park,Culture & Heritage,Lydiard : Hotel Operations,Supplies and Services,Food,CHARLES SAUNDERS LTD,BS37,18/08/2023,484.88
098916233,Lydiard Park,Culture & Heritage,Lydiard House & Park,Supplies and Services,Materials,CHARLES SAUNDERS LTD,BS37,09/08/2023,466.04
100875235,Lydiard Park,Culture & Heritage,Lydiard : Coach House Caf�,Supplies and Services,Confectionary,CHARLES SAUNDERS LTD,BS37,23/08/2023,349.27
099712233,Lydiard Park,Culture & Heritage,Lydiard : Coach House Caf�,Supplies and Services,Confectionary,CHARLES SAUNDERS LTD,BS37,16/08/2023,70.16
102102233,Lydiard Park,Culture & Heritage,Lydiard : Forest Caf�,Supplies and Services,Confectionary,CHARLES SAUNDERS LTD,BS37,30/08/2023,201.18
100868233,Lydiard Park,Culture & Heritage,Lydiard : Forest Caf�,Supplies and Services,Confectionary,CHARLES SAUNDERS LTD,BS37,23/08/2023,19.98
097993234,Customer Strategy & Operations,"People, Culture and Organisational Resilience",Cemeteries & Crematoria,Premises Costs,Maintenance - Grounds,CHARLTON ENVIRONMENTAL LTD,OX12,02/08/2023,"1,025.00"
099779250,Early Years Block,DSG Skills and Attainment,Free Nursery Education Commissioning - three & four  year olds,3rd Party Payments,Contracts - Child Care,REDACTED PERSONAL DATA,SN4 ,16/08/2023,"1,050.00"
099779339,Early Years Block,DSG Skills and Attainment,Free Nursery Education Commissioning - three & four  year olds,3rd Party Payments,Contracts - Child Care,CHILD BASE NURSERIES,MK16,16/08/2023,"10,910.43"
099779340,Early Years Block,DSG Skills and Attainment,Free Nursery Education Commissioning - three & four  year olds,3rd Party Payments,Contracts - Child Care,CHILD BASE NURSERIES,MK16,16/08/2023,914.16
099434236,Responsive Repairs,Repairs,Responsive Repairs,3rd Party Payments,Contract Payments,CHILD SCAFFOLDING LTD,SN1 ,11/08/2023,580.00
099498241,Responsive Repairs,Repairs,Responsive Repairs,3rd Party Payments,Contract Payments,CHILD SCAFFOLDING LTD,SN1 ,11/08/2023,"1,150.00"
099498234,Responsive Repairs,Repairs,Responsive Repairs,3rd Party Payments,Contract Payments,CHILD SCAFFOLDING LTD,SN1 ,11/08/2023,720.00
099498233,Responsive Repairs,Repairs,Responsive Repairs,3rd Party Payments,Contract Payments,CHILD SCAFFOLDING LTD,SN1 ,11/08/2023,820.00
099498244,Responsive Repairs,Repairs,Responsive Repairs,3rd Party Payments,Contract Payments,CHILD SCAFFOLDING LTD,SN1 ,11/08/2023,"1,650.00"
099556234,Responsive Repairs,Repairs,Responsive Repairs,3rd Party Payments,Contract Payments,CHILD SCAFFOLDING LTD,SN1 ,11/08/2023,195.00
099434237,Responsive Repairs,Repairs,Responsive Repairs,3rd Party Payments,Contract Payments,CHILD SCAFFOLDING LTD,SN1 ,11/08/2023,480.00
099498242,Responsive Repairs,Repairs,Responsive Repairs,3rd Party Payments,Contract Payments,CHILD SCAFFOLDING LTD,SN1 ,11/08/2023,880.00
100126241,Responsive Repairs,Repairs,Responsive Repairs,3rd Party Payments,Contract Payments,CHILD SCAFFOLDING LTD,SN1 ,16/08/2023,480.00
101325235,Responsive Repairs,Repairs,Responsive Repairs,3rd Party Payments,Contract Payments,CHILD SCAFFOLDING LTD,SN1 ,25/08/2023,760.00
102079236,Responsive Repairs,Repairs,Responsive Repairs,3rd Party Payments,Contract Payments,CHILD SCAFFOLDING LTD,SN1 ,30/08/2023,680.00
099498239,Planned Maintenance Programme,HRA Capital Financing,Central Heating,Capital,Contractor Payments,CHILD SCAFFOLDING LTD,SN1 ,11/08/2023,"1,100.00"
099498247,Responsive Repairs,Repairs,Responsive Repairs,3rd Party Payments,Contract Payments,CHILD SCAFFOLDING LTD,SN1 ,11/08/2023,680.00
099498250,Responsive Repairs,Repairs,Responsive Repairs,3rd Party Payments,Contract Payments,CHILD SCAFFOLDING LTD,SN1 ,11/08/2023,880.00
099498248,Responsive Repairs,Repairs,Responsive Repairs,3rd Party Payments,Contract Payments,CHILD SCAFFOLDING LTD,SN1 ,11/08/2023,480.00
099556234,Responsive Repairs,Repairs,Responsive Repairs,3rd Party Payments,Contract Payments,CHILD SCAFFOLDING LTD,SN1 ,11/08/2023,65.00
099556234,Responsive Repairs,Repairs,Responsive Repairs,3rd Party Payments,Contract Payments,CHILD SCAFFOLDING LTD,SN1 ,11/08/2023,130.00
099484246,Streetsmart,Streetsmart,Waste - Disposal,Supplies and Services,Materials,CHIPPENHAM PALLET COMPANY LTD (CPC PRODUCTS LTD),SN14,11/08/2023,"1,125.00"
101105233,Parking & Bus lanes,Highway Operations and Car Parking,Street Parking,Supplies and Services,Fees,CHIPSIDE LTD,SN15,23/08/2023,968.24
101103233,Parking & Bus lanes,Highway Operations and Car Parking,Street Parking,Supplies and Services,Materials,CHIPSIDE LTD,SN15,23/08/2023,650.94
101103233,Parking & Bus lanes,Highway Operations and Car Parking,Street Parking,Supplies and Services,Materials,CHIPSIDE LTD,SN15,23/08/2023,222.60
101103233,Parking & Bus lanes,Highway Operations and Car Parking,Bus Lane Enforcement,Supplies and Services,Materials,CHIPSIDE LTD,SN15,23/08/2023,287.70
101104233,Parking & Bus lanes,Highway Operations and Car Parking,Car Parking,Supplies and Services,Fees,CHIPSIDE LTD,SN15,23/08/2023,600.00
101103233,Parking & Bus lanes,Highway Operations and Car Parking,Bus Lane Enforcement,Supplies and Services,Materials,CHIPSIDE LTD,SN15,23/08/2023,"2,339.28"
100238243,Schools - Primary,DSG Skills and Attainment,Primary School Budgets,3rd Party Payments,Mainstream Delegated Funding,CHISELDON PRIMARY SCHOOL,SN4 ,18/08/2023,"71,288.00"
101858244,Schools Block - Central,DSG Skills and Attainment,Universal Infant Free School Meals,Supplies and Services,Payments to Educational Bodies,CHISELDON PRIMARY SCHOOL,SN4 ,25/08/2023,"9,675.00"
100240241,DSG Other Funding,DSG Skills and Attainment,DFE Additional Grants,3rd Party Payments,Payment of Pupil Premium to school,CHISELDON PRIMARY SCHOOL,SN4 ,18/08/2023,"5,441.00"
099748233,Early Years Block,DSG Skills and Attainment,Free Nursery Education Commissioning - two year olds,3rd Party Payments,Contracts - Child Care,CHISELDON PRIMARY SCHOOL,SN4 ,16/08/2023,"1,024.79"
098181233,DSG Other Funding,DSG Skills and Attainment,DFE Additional Grants,Supplies and Services,Payments to Educational Bodies,CHISELDON PRIMARY SCHOOL,SN4 ,04/08/2023,"1,558.75"
099749233,Early Years Block,DSG Skills and Attainment,Free Nursery Education Commissioning - three & four  year olds,3rd Party Payments,Contracts - Child Care,CHISELDON PRIMARY SCHOOL,SN4 ,16/08/2023,"2,843.57"
101857254,Schools Block - Central,DSG Skills and Attainment,Universal Infant Free School Meals,Supplies and Services,Payments to Educational Bodies,CHISELDON PRIMARY SCHOOL,SN4 ,25/08/2023,"6,715.00"
100314233,Learning Disabilities,Adults,Learning Disability 65 and over,3rd Party Payments,Residential Care,CHOSEN CARE LTD,GL3 ,18/08/2023,"7,802.16"
100314233,Learning Disabilities,Adults,Learning Disability 18 - 64,Income,Client Contribution - Residential,CHOSEN CARE LTD,GL3 ,18/08/2023,-400.48
100314233,Learning Disabilities,Adults,Learning Disability 18 - 64,3rd Party Payments,Residential Care,CHOSEN CARE LTD,GL3 ,18/08/2023,"7,631.68"
100314233,Learning Disabilities,Adults,Learning Disability 65 and over,Income,Client Contribution - Residential,CHOSEN CARE LTD,GL3 ,18/08/2023,-779.20
100314233,Learning Disabilities,Adults,Learning Disability 18 - 64,3rd Party Payments,Residential Care,CHOSEN CARE LTD,GL3 ,18/08/2023,"7,639.52"
101958427,Physical Support,Adults,Physical Support 18 - 64,Transfer Payments,Personal Budget - Direct Payments - Domiciliary Care,REDACTED PERSONAL DATA,SN25,30/08/2023,874.61
099588349,Social Care,"Children, Families and Community Health Services",Placement Adoption Service,3rd Party Payments,Adoption Allowances,REDACTED PERSONAL DATA,SN6 ,14/08/2023,699.84
101729233,Social Care,"Children, Families and Community Health Services",Placement Adoption Service,3rd Party Payments,Adoption Allowances,REDACTED PERSONAL DATA,SN6 ,25/08/2023,"1,055.64"
101728233,Social Care,"Children, Families and Community Health Services",Placement Adoption Service,3rd Party Payments,Adoption Allowances,REDACTED PERSONAL DATA,SN6 ,25/08/2023,699.84
099588350,Social Care,"Children, Families and Community Health Services",Placement Adoption Service,3rd Party Payments,Adoption Allowances,REDACTED PERSONAL DATA,SN6 ,14/08/2023,"1,055.64"
099081233,Social Care,"Children, Families and Community Health Services",Children's Resource and Home Finding Team,3rd Party Payments,Independent Fostering Agency Placements,CHRYSALISCARE LTD,DA7 ,09/08/2023,"6,377.10"
099082233,Social Care,"Children, Families and Community Health Services",Children's Resource and Home Finding Team,3rd Party Payments,Independent Fostering Agency Placements,CHRYSALISCARE LTD,DA7 ,09/08/2023,"5,691.30"
099272233,Sheltered Accomodation,Special Services,Sheltered Housing Management General,Supplies and Services,Equipment,CHUBB FIRE & SECURITY T/A CHUBB COMMUNITY CARE,BB1 ,11/08/2023,"2,046.50"
100352234,Physical Support,Adults,Physical Support 65 and over,3rd Party Payments,Nursing Care,CHURCH VIEW,SN3 ,18/08/2023,"6,272.79"
100352234,Physical Support,Adults,Physical Support 65 and over,3rd Party Payments,Nursing Care,CHURCH VIEW,SN3 ,18/08/2023,"6,694.84"
100352234,Physical Support,Adults,Physical Support 65 and over,3rd Party Payments,Nursing Care,CHURCH VIEW,SN3 ,18/08/2023,"-13,389.68"
100352234,Physical Support,Adults,Physical Support 65 and over,3rd Party Payments,Nursing Care,CHURCH VIEW,SN3 ,18/08/2023,-239.10
100352234,Physical Support,Adults,Physical Support 65 and over,3rd Party Payments,Nursing Care,CHURCH VIEW,SN3 ,18/08/2023,363.95
100352234,Physical Support,Adults,Physical Support 65 and over,Income,Client Contribution - Nursing,CHURCH VIEW,SN3 ,18/08/2023,-709.76
100352234,Physical Support,Adults,Physical Support 65 and over,Income,Client Contribution - Nursing,CHURCH VIEW,SN3 ,18/08/2023,"-1,196.61"
100352234,Physical Support,Adults,Physical Support 65 and over,3rd Party Payments,Nursing Care,CHURCH VIEW,SN3 ,18/08/2023,-121.32
100352234,Physical Support,Adults,Physical Support 65 and over,Income,Client Contribution - Nursing,CHURCH VIEW,SN3 ,18/08/2023,-999.64
100352234,Physical Support,Adults,Physical Support 65 and over,Income,Client Contribution - Nursing,CHURCH VIEW,SN3 ,18/08/2023,-744.56
100352234,Physical Support,Adults,Physical Support 65 and over,Income,Client Contribution - Nursing,CHURCH VIEW,SN3 ,18/08/2023,382.77
100352234,Physical Support,Adults,Physical Support 18 - 64,Income,Client Contribution - Nursing,CHURCH VIEW,SN3 ,18/08/2023,-552.52
100352234,Physical Support,Adults,Physical Support 65 and over,3rd Party Payments,Nursing Care,CHURCH VIEW,SN3 ,18/08/2023,"2,988.96"
100352234,Physical Support,Adults,Physical Support 65 and over,3rd Party Payments,Nursing Care,CHURCH VIEW,SN3 ,18/08/2023,-267.01
100352234,Physical Support,Adults,Physical Support 65 and over,3rd Party Payments,Nursing Care,CHURCH VIEW,SN3 ,18/08/2023,-56.94
100352234,Physical Support,Adults,Physical Support 65 and over,Income,Client Contribution - Nursing,CHURCH VIEW,SN3 ,18/08/2023,974.76
100352234,Physical Support,Adults,Physical Support 18 - 64,3rd Party Payments,Nursing Care,CHURCH VIEW,SN3 ,18/08/2023,"2,988.96"
100352234,Physical Support,Adults,Physical Support 65 and over,3rd Party Payments,Nursing Care,CHURCH VIEW,SN3 ,18/08/2023,"-2,048.09"
100352234,Physical Support,Adults,Physical Support 65 and over,Income,Client Contribution - Nursing,CHURCH VIEW,SN3 ,18/08/2023,"-1,288.96"
100352234,Physical Support,Adults,Physical Support 65 and over,Income,Client Contribution - Nursing,CHURCH VIEW,SN3 ,18/08/2023,-741.88
100352234,Physical Support,Adults,Physical Support 65 and over,Income,Client Contribution - Nursing,CHURCH VIEW,SN3 ,18/08/2023,-620.28
100352234,Physical Support,Adults,Physical Support 18 - 64,Income,Client Contribution - Nursing,CHURCH VIEW,SN3 ,18/08/2023,-592.17
100352234,Physical Support,Adults,Physical Support 18 - 64,3rd Party Payments,Nursing Care,CHURCH VIEW,SN3 ,18/08/2023,"-8,931.71"
100352234,Physical Support,Adults,Physical Support 65 and over,3rd Party Payments,Nursing Care,CHURCH VIEW,SN3 ,18/08/2023,-113.88
100352234,Physical Support,Adults,Physical Support 65 and over,Income,Client Contribution - Nursing,CHURCH VIEW,SN3 ,18/08/2023,-984.92
100352234,Physical Support,Adults,Physical Support 65 and over,Income,Client Contribution - Nursing,CHURCH VIEW,SN3 ,18/08/2023,-610.00
100352234,Physical Support,Adults,Physical Support 18 - 64,Income,Client Contribution - Nursing,CHURCH VIEW,SN3 ,18/08/2023,-385.60
100352234,Physical Support,Adults,Physical Support 65 and over,3rd Party Payments,Nursing Care,CHURCH VIEW,SN3 ,18/08/2023,"2,867.32"
100352234,Physical Support,Adults,Physical Support 65 and over,3rd Party Payments,Nursing Care,CHURCH VIEW,SN3 ,18/08/2023,"6,496.00"
100352234,Physical Support,Adults,Physical Support 65 and over,3rd Party Payments,Nursing Care,CHURCH VIEW,SN3 ,18/08/2023,"11,839.71"
100352234,Physical Support,Adults,Physical Support 65 and over,3rd Party Payments,Nursing Care,CHURCH VIEW,SN3 ,18/08/2023,-299.24
100352234,Physical Support,Adults,Physical Support 18 - 64,3rd Party Payments,Nursing Care,CHURCH VIEW,SN3 ,18/08/2023,-239.10
100352234,Physical Support,Adults,Physical Support 65 and over,3rd Party Payments,Nursing Care,CHURCH VIEW,SN3 ,18/08/2023,"4,878.84"
100352234,Physical Support,Adults,Physical Support 65 and over,3rd Party Payments,Nursing Care,CHURCH VIEW,SN3 ,18/08/2023,"4,971.40"
100352234,Physical Support,Adults,Physical Support 65 and over,3rd Party Payments,Nursing Care,CHURCH VIEW,SN3 ,18/08/2023,"5,816.00"
100352234,Physical Support,Adults,Physical Support 65 and over,Income,Client Contribution - Nursing,CHURCH VIEW,SN3 ,18/08/2023,-800.96
100352234,Physical Support,Adults,Physical Support 65 and over,Income,Client Contribution - Nursing,CHURCH VIEW,SN3 ,18/08/2023,38.28
100352234,Physical Support,Adults,Physical Support 18 - 64,3rd Party Payments,Nursing Care,CHURCH VIEW,SN3 ,18/08/2023,"5,816.00"
100352234,Mental Health,Adults,Mental Health 65 and over,3rd Party Payments,Nursing Care,CHURCH VIEW,SN3 ,18/08/2023,"-1,905.82"
100352234,Physical Support,Adults,Physical Support 65 and over,3rd Party Payments,Nursing Care,CHURCH VIEW,SN3 ,18/08/2023,"-2,548.93"
100352234,Physical Support,Adults,Physical Support 65 and over,3rd Party Payments,Nursing Care,CHURCH VIEW,SN3 ,18/08/2023,-29.88
100352234,Physical Support,Adults,Physical Support 65 and over,Income,Client Contribution - Nursing,CHURCH VIEW,SN3 ,18/08/2023,-763.24
100352234,Physical Support,Adults,Physical Support 65 and over,Income,Client Contribution - Nursing,CHURCH VIEW,SN3 ,18/08/2023,-930.44
100352234,Physical Support,Adults,Physical Support 18 - 64,3rd Party Payments,Nursing Care,CHURCH VIEW,SN3 ,18/08/2023,"8,931.71"
100352234,Physical Support,Adults,Physical Support 65 and over,3rd Party Payments,Nursing Care,CHURCH VIEW,SN3 ,18/08/2023,"5,863.96"
100352234,Physical Support,Adults,Physical Support 65 and over,3rd Party Payments,Nursing Care,CHURCH VIEW,SN3 ,18/08/2023,-187.03
100352234,Physical Support,Adults,Physical Support 65 and over,Income,Client Contribution - Nursing,CHURCH VIEW,SN3 ,18/08/2023,-979.88
100352234,Physical Support,Adults,Physical Support 65 and over,Income,Client Contribution - Nursing,CHURCH VIEW,SN3 ,18/08/2023,-491.76
100379233,Learning Disabilities,Adults,Learning Disability 18 - 64,Income,Client Contribution - Residential,CIDERSTONE HOUSE,SN25,18/08/2023,-425.60
100379233,Learning Disabilities,Adults,Learning Disability 18 - 64,Income,Client Contribution - Residential,CIDERSTONE HOUSE,SN25,18/08/2023,-414.20
100379233,Learning Disabilities,Adults,Learning Disability 18 - 64,Income,Client Contribution - Residential,CIDERSTONE HOUSE,SN25,18/08/2023,"-3,887.66"
100379233,Learning Disabilities,Adults,Learning Disability 18 - 64,3rd Party Payments,Residential Care,CIDERSTONE HOUSE,SN25,18/08/2023,"12,163.20"
100379233,Learning Disabilities,Adults,Learning Disability 18 - 64,Income,Client Contribution - Residential,CIDERSTONE HOUSE,SN25,18/08/2023,"3,339.60"
100379233,Learning Disabilities,Adults,Learning Disability 18 - 64,3rd Party Payments,Residential Care,CIDERSTONE HOUSE,SN25,18/08/2023,"11,782.40"
100379233,Learning Disabilities,Adults,Learning Disability 18 - 64,Income,Client Contribution - Residential,CIDERSTONE HOUSE,SN25,18/08/2023,-423.00
100379233,Learning Disabilities,Adults,Learning Disability 18 - 64,Income,Client Contribution - Residential,CIDERSTONE HOUSE,SN25,18/08/2023,-438.80
100379233,Learning Disabilities,Adults,Learning Disability 18 - 64,Income,Client Contribution - Residential,CIDERSTONE HOUSE,SN25,18/08/2023,-788.80
098770233,High Needs Block,DSG Skills and Attainment,Post 16 - New Responsibilties,3rd Party Payments,FE Colleges,CIRENCESTER COLLEGE,GL7 ,11/08/2023,"3,255.08"
098766233,High Needs Block,DSG Skills and Attainment,Out of Borough School Fees,3rd Party Payments,Other Local Authority Mainstream Schools- Pre 16,CIRENCESTER KINGSHILL SCHOOL,GL7 ,11/08/2023,609.58
098765233,High Needs Block,DSG Skills and Attainment,Out of Borough School Fees,3rd Party Payments,Other Local Authority Mainstream Schools- Pre 16,CIRENCESTER KINGSHILL SCHOOL,GL7 ,11/08/2023,609.58
101336233,Homelessness and Travellers,Housing Services,Private Sector Landlords,Transfer Payments,Payment of Costs,REDACTED PERSONAL DATA,SN5 ,25/08/2023,575.00
Corporate Card Transaction,Social Care,"Children, Families and Community Health Services",Placement - Care Leaver Team,Supplies and Services,Materials,City Carpets Bristol,,31/07/2023,950.00
097996233,Elections & Democracy,Elections and Democracy,Register of Electors,Supplies and Services,Materials,CIVICA ELECTION SERVICES LIMITED,N8 0,02/08/2023,217.43
097996233,Elections & Democracy,Elections and Democracy,Register of Electors,Supplies and Services,Post,CIVICA ELECTION SERVICES LIMITED,N8 0,02/08/2023,491.54
100536233,Human Resources and Organisational Development,"People, Culture and Organisational Resilience",HR Systems & Strategy,Supplies and Services,License Costs,CIVICA UK LTD,SE1 ,18/08/2023,"40,650.29"
102082233,Elections & Democracy,Elections and Democracy,Register of Electors,Supplies and Services,Services,CIVICA UK LTD,SE1 ,30/08/2023,"14,955.82"
100535233,Human Resources and Organisational Development,"People, Culture and Organisational Resilience",HR Systems & Strategy,Supplies and Services,License Costs,CIVICA UK LTD,SE1 ,18/08/2023,"1,410.00"
097989233,Planning & Regulatory,Strategic Planning,Economy & Development Management,Employees,Temporary / Agency - by Accounts Payable,REDACTED PERSONAL DATA,BS37,02/08/2023,"11,348.90"
101124233,Property Management,Property,Property Assets,Supplies and Services,Fees,CLARKE WILLMOTT LLP,BS1 ,23/08/2023,"1,139.70"
100839233,Early Years Block,DSG Skills and Attainment,Free Nursery Education Commissioning - three & four  year olds,3rd Party Payments,Contracts - Child Care,CLIFTON ST PRE-SCHOOL,SN1 ,23/08/2023,"2,280.00"
100344233,Physical Support,Adults,Physical Support 65 and over,Income,Client Contribution - Residential,COATE WATER CARE CO LTD,SN3 ,18/08/2023,-933.04
100344233,Mental Health,Adults,Mental Health 65 and over,3rd Party Payments,Residential Care,COATE WATER CARE CO LTD,SN3 ,18/08/2023,344.00
100344233,Physical Support,Adults,Physical Support 65 and over,Income,Client Contribution - Residential,COATE WATER CARE CO LTD,SN3 ,18/08/2023,-644.56
100344233,Physical Support,Adults,Physical Support 65 and over,3rd Party Payments,Residential Care,COATE WATER CARE CO LTD,SN3 ,18/08/2023,"3,900.00"
100344233,Physical Support,Adults,Physical Support 65 and over,3rd Party Payments,Residential Care,COATE WATER CARE CO LTD,SN3 ,18/08/2023,-102.40
100344233,Physical Support,Adults,Physical Support 65 and over,3rd Party Payments,Residential Care,COATE WATER CARE CO LTD,SN3 ,18/08/2023,182.87
100344233,Physical Support,Adults,Physical Support 18 - 64,3rd Party Payments,Residential Care,COATE WATER CARE CO LTD,SN3 ,18/08/2023,"2,867.32"
100344233,Mental Health,Adults,Mental Health 65 and over,Income,Client Contribution - Residential,COATE WATER CARE CO LTD,SN3 ,18/08/2023,-691.20
100344233,Physical Support,Adults,Physical Support 65 and over,Income,Client Contribution - Residential,COATE WATER CARE CO LTD,SN3 ,18/08/2023,"3,173.23"
100344233,Physical Support,Adults,Physical Support 65 and over,Income,Client Contribution - Residential,COATE WATER CARE CO LTD,SN3 ,18/08/2023,"-1,328.68"
100344233,Physical Support,Adults,Physical Support 65 and over,Income,Client Contribution - Residential,COATE WATER CARE CO LTD,SN3 ,18/08/2023,"-1,175.40"
100344233,Physical Support,Adults,Physical Support 65 and over,Income,Client Contribution - Residential,COATE WATER CARE CO LTD,SN3 ,18/08/2023,-895.60
100344233,Physical Support,Adults,Physical Support 65 and over,Income,Client Contribution - Residential,COATE WATER CARE CO LTD,SN3 ,18/08/2023,-847.96
100344233,Physical Support,Adults,Physical Support 65 and over,Income,Client Contribution - Residential,COATE WATER CARE CO LTD,SN3 ,18/08/2023,-760.96
100344233,Physical Support,Adults,Physical Support 65 and over,3rd Party Payments,Residential Care,COATE WATER CARE CO LTD,SN3 ,18/08/2023,-84.54
100344233,Physical Support,Adults,Physical Support 65 and over,3rd Party Payments,Residential Care,COATE WATER CARE CO LTD,SN3 ,18/08/2023,"1,920.09"
100344233,Mental Health,Adults,Mental Health 65 and over,3rd Party Payments,Residential Care,COATE WATER CARE CO LTD,SN3 ,18/08/2023,"2,867.32"
100344233,Mental Health,Adults,Mental Health 65 and over,3rd Party Payments,Residential Care,COATE WATER CARE CO LTD,SN3 ,18/08/2023,"3,900.00"
100344233,Mental Health,Adults,Mental Health 65 and over,3rd Party Payments,Residential Care,COATE WATER CARE CO LTD,SN3 ,18/08/2023,"3,136.00"
100344233,Physical Support,Adults,Physical Support 65 and over,Income,Client Contribution - Residential,COATE WATER CARE CO LTD,SN3 ,18/08/2023,"-1,135.54"
100344233,Physical Support,Adults,Physical Support 65 and over,Income,Client Contribution - Residential,COATE WATER CARE CO LTD,SN3 ,18/08/2023,-675.20
100344233,Physical Support,Adults,Physical Support 65 and over,3rd Party Payments,Residential Care,COATE WATER CARE CO LTD,SN3 ,18/08/2023,"4,400.00"
100344233,Physical Support,Adults,Physical Support 65 and over,3rd Party Payments,Residential Care,COATE WATER CARE CO LTD,SN3 ,18/08/2023,171.43
100344233,Physical Support,Adults,Physical Support 65 and over,Income,Client Contribution - Residential,COATE WATER CARE CO LTD,SN3 ,18/08/2023,"-1,243.08"
100344233,Physical Support,Adults,Physical Support 65 and over,Income,Client Contribution - Residential,COATE WATER CARE CO LTD,SN3 ,18/08/2023,976.24
100344233,Physical Support,Adults,Physical Support 65 and over,Income,Client Contribution - Residential,COATE WATER CARE CO LTD,SN3 ,18/08/2023,"-1,395.32"
100344233,Physical Support,Adults,Physical Support 65 and over,Income,Client Contribution - Residential,COATE WATER CARE CO LTD,SN3 ,18/08/2023,-954.00
100344233,Physical Support,Adults,Physical Support 65 and over,3rd Party Payments,Residential Care,COATE WATER CARE CO LTD,SN3 ,18/08/2023,-512.02
100344233,Physical Support,Adults,Physical Support 65 and over,3rd Party Payments,Residential Care,COATE WATER CARE CO LTD,SN3 ,18/08/2023,278.55
100344233,Physical Support,Adults,Physical Support 18 - 64,3rd Party Payments,Residential Care,COATE WATER CARE CO LTD,SN3 ,18/08/2023,"-4,098.39"
100344233,Physical Support,Adults,Physical Support 65 and over,Income,Client Contribution - Residential,COATE WATER CARE CO LTD,SN3 ,18/08/2023,"-2,644.65"
100344233,Physical Support,Adults,Physical Support 65 and over,Income,Client Contribution - Residential,COATE WATER CARE CO LTD,SN3 ,18/08/2023,64.11
100344233,Physical Support,Adults,Physical Support 65 and over,Income,Client Contribution - Residential,COATE WATER CARE CO LTD,SN3 ,18/08/2023,"-1,434.76"
100344233,Physical Support,Adults,Physical Support 65 and over,Income,Client Contribution - Residential,COATE WATER CARE CO LTD,SN3 ,18/08/2023,"1,555.20"
100344233,Physical Support,Adults,Physical Support 65 and over,Income,Client Contribution - Residential,COATE WATER CARE CO LTD,SN3 ,18/08/2023,"2,327.48"
100344233,Physical Support,Adults,Physical Support 65 and over,Income,Client Contribution - Residential,COATE WATER CARE CO LTD,SN3 ,18/08/2023,-523.80
100344233,Physical Support,Adults,Physical Support 65 and over,Income,Client Contribution - Residential,COATE WATER CARE CO LTD,SN3 ,18/08/2023,-691.20
100344233,Physical Support,Adults,Physical Support 65 and over,3rd Party Payments,Residential Care,COATE WATER CARE CO LTD,SN3 ,18/08/2023,"-10,138.02"
100344233,Physical Support,Adults,Physical Support 65 and over,Income,Client Contribution - Residential,COATE WATER CARE CO LTD,SN3 ,18/08/2023,"-1,120.52"
100344233,Physical Support,Adults,Physical Support 65 and over,Income,Client Contribution - Residential,COATE WATER CARE CO LTD,SN3 ,18/08/2023,967.29
100344233,Physical Support,Adults,Physical Support 65 and over,Income,Client Contribution - Residential,COATE WATER CARE CO LTD,SN3 ,18/08/2023,"-2,365.92"
100344233,Physical Support,Adults,Physical Support 65 and over,Income,Client Contribution - Residential,COATE WATER CARE CO LTD,SN3 ,18/08/2023,-713.24
100344233,Physical Support,Adults,Physical Support 65 and over,3rd Party Payments,Residential Care,COATE WATER CARE CO LTD,SN3 ,18/08/2023,-66.86
100344233,Physical Support,Adults,Physical Support 65 and over,3rd Party Payments,Residential Care,COATE WATER CARE CO LTD,SN3 ,18/08/2023,"7,228.57"
100344233,Physical Support,Adults,Physical Support 65 and over,3rd Party Payments,Residential Care,COATE WATER CARE CO LTD,SN3 ,18/08/2023,-12.19
100344233,Physical Support,Adults,Physical Support 65 and over,3rd Party Payments,Residential Care,COATE WATER CARE CO LTD,SN3 ,18/08/2023,"2,988.96"
100344233,Physical Support,Adults,Physical Support 65 and over,3rd Party Payments,Residential Care,COATE WATER CARE CO LTD,SN3 ,18/08/2023,"2,867.32"
100344233,Physical Support,Adults,Physical Support 18 - 64,Income,Client Contribution - Residential,COATE WATER CARE CO LTD,SN3 ,18/08/2023,-359.00
100344233,Physical Support,Adults,Physical Support 65 and over,Income,Client Contribution - Residential,COATE WATER CARE CO LTD,SN3 ,18/08/2023,-727.20
100299233,Learning Disabilities,Adults,Learning Disability 18 - 64,3rd Party Payments,Residential Care,COCKLEBURY FARMHOUSE,SN15,18/08/2023,"10,364.00"
100299233,Learning Disabilities,Adults,Learning Disability 18 - 64,Income,Client Contribution - Residential,COCKLEBURY FARMHOUSE,SN15,18/08/2023,-425.60
098632234,Streetsmart,Streetsmart,Waste - Disposal,3rd Party Payments,Contract Payments,CODFORD BIOGAS LTD,NR7 ,07/08/2023,510.60
101197233,Town Centre,"Economy, Growth and Place",Fleming Way Improvement Scheme,Capital,Contractor Payments,COLAS LTD,B37 ,23/08/2023,"320,323.88"
101152240,Highways Inspections & Maintenance,Highway Operations and Car Parking,Highway Maintenance,Supplies and Services,Materials,COLAS LTD,B37 ,23/08/2023,780.00
101178233,Disabled Children,"Children, Families and Community Health Services",DCT Daytime Short Breaks,3rd Party Payments,Respite Care,COLLABORATIVE CARE SERVICES LTD,SN2 ,23/08/2023,"29,304.00"
100288233,Learning Disabilities,Adults,Learning Disability 18 - 64,Income,Client Contribution - Supported Living,COMMUNITY ACCESS NETWORK LTD,SN25,18/08/2023,-142.80
100288233,Learning Disabilities,Adults,Learning Disability 18 - 64,3rd Party Payments,Supported Lodgings (Childrens)/Supported Living (Adults),COMMUNITY ACCESS NETWORK LTD,SN25,18/08/2023,"1,503.88"
100288233,Learning Disabilities,Adults,Learning Disability 18 - 64,3rd Party Payments,Supported Lodgings (Childrens)/Supported Living (Adults),COMMUNITY ACCESS NETWORK LTD,SN25,18/08/2023,"4,120.00"
100287233,Learning Disabilities,Adults,Learning Disability 18 - 64,3rd Party Payments,Residential Care,COMMUNITY ACCESS NETWORK LTD,SN25,18/08/2023,"7,036.52"
100287233,Learning Disabilities,Adults,Learning Disability 18 - 64,Income,Client Contribution - Residential,COMMUNITY ACCESS NETWORK LTD,SN25,18/08/2023,-293.60
100288233,Learning Disabilities,Adults,Learning Disability 18 - 64,3rd Party Payments,Supported Lodgings (Childrens)/Supported Living (Adults),COMMUNITY ACCESS NETWORK LTD,SN25,18/08/2023,27.76
100288233,Learning Disabilities,Adults,Learning Disability 18 - 64,3rd Party Payments,Supported Lodgings (Childrens)/Supported Living (Adults),COMMUNITY ACCESS NETWORK LTD,SN25,18/08/2023,24.00
100287233,Learning Disabilities,Adults,Learning Disability 65 and over,3rd Party Payments,Supported Lodgings (Childrens)/Supported Living (Adults),COMMUNITY ACCESS NETWORK LTD,SN25,18/08/2023,907.60
100288233,Learning Disabilities,Adults,Learning Disability 18 - 64,3rd Party Payments,Supported Lodgings (Childrens)/Supported Living (Adults),COMMUNITY ACCESS NETWORK LTD,SN25,18/08/2023,560.00
100288233,Learning Disabilities,Adults,Learning Disability 18 - 64,3rd Party Payments,Supported Lodgings (Childrens)/Supported Living (Adults),COMMUNITY ACCESS NETWORK LTD,SN25,18/08/2023,"1,360.00"
099836233,Town Centre,"Economy, Growth and Place",Uk shared Properity Fund,Supplies and Services,Fees,COMMUNITY FIRST,SN10,16/08/2023,"40,750.00"
099593253,Social Care,"Children, Families and Community Health Services",Children's Resource and Home Finding Team,3rd Party Payments,Independent Fostering Agency Placements,COMMUNITY FOSTER CARE,GL1 ,14/08/2023,"6,264.90"
099593252,Social Care,"Children, Families and Community Health Services",Children's Resource and Home Finding Team,3rd Party Payments,Independent Fostering Agency Placements,COMMUNITY FOSTER CARE,GL1 ,14/08/2023,"3,927.30"
100345233,Learning Disabilities,Adults,Learning Disability 18 - 64,3rd Party Payments,Residential Care,COMMUNITY THERAPEUTIC SERVICES LTD,BS22,18/08/2023,"12,423.92"
099079233,Social Care,"Children, Families and Community Health Services",Children's Resource and Home Finding Team,3rd Party Payments,Residential Care,COMPASS CHILDREN'S HOMES LTD,LE7 ,09/08/2023,"2,169.72"
099077233,Social Care,"Children, Families and Community Health Services",Children's Resource and Home Finding Team,3rd Party Payments,Residential Care,COMPASS CHILDREN'S HOMES LTD,LE7 ,09/08/2023,"13,500.06"
099078233,Social Care,"Children, Families and Community Health Services",Children's Resource and Home Finding Team,3rd Party Payments,Residential Care,COMPASS CHILDREN'S HOMES LTD,LE7 ,09/08/2023,"2,985.66"
099080233,Social Care,"Children, Families and Community Health Services",Children's Resource and Home Finding Team,3rd Party Payments,Residential Care,COMPASS CHILDREN'S HOMES LTD,LE7 ,09/08/2023,"21,157.50"
100160233,Highways Inspections & Maintenance,Highway Operations and Car Parking,Highway Maintenance,Supplies and Services,Materials,COMPASS MINERALS UK LTD,CW7 ,18/08/2023,"3,426.64"
100162233,Highways Inspections & Maintenance,Highway Operations and Car Parking,Highway Maintenance,Supplies and Services,Materials,COMPASS MINERALS UK LTD,CW7 ,18/08/2023,"3,360.92"
100159233,Highways Inspections & Maintenance,Highway Operations and Car Parking,Highway Maintenance,Supplies and Services,Materials,COMPASS MINERALS UK LTD,CW7 ,18/08/2023,"10,332.51"
100540233,Highways Inspections & Maintenance,Highway Operations and Car Parking,Highway Maintenance,Supplies and Services,Materials,COMPASS MINERALS UK LTD,CW7 ,18/08/2023,"5,130.10"
100164233,Highways Inspections & Maintenance,Highway Operations and Car Parking,Highway Maintenance,Supplies and Services,Materials,COMPASS MINERALS UK LTD,CW7 ,18/08/2023,"10,241.81"
100158233,Highways Inspections & Maintenance,Highway Operations and Car Parking,Highway Maintenance,Supplies and Services,Materials,COMPASS MINERALS UK LTD,CW7 ,18/08/2023,"3,397.72"
100539233,Highways Inspections & Maintenance,Highway Operations and Car Parking,Highway Maintenance,Supplies and Services,Materials,COMPASS MINERALS UK LTD,CW7 ,18/08/2023,"5,236.57"
101139233,Highways Inspections & Maintenance,Highway Operations and Car Parking,Highway Maintenance,Supplies and Services,Materials,COMPASS MINERALS UK LTD,CW7 ,23/08/2023,"5,190.57"
100163233,Highways Inspections & Maintenance,Highway Operations and Car Parking,Highway Maintenance,Supplies and Services,Materials,COMPASS MINERALS UK LTD,CW7 ,18/08/2023,"8,643.50"
099857240,Planned Maintenance Programme,HRA Capital Financing,Central Heating,Capital,Contractor Payments,COMPLETE FLUE SOLUTIONS LIMITED,GL53,16/08/2023,"4,438.00"
099447234,Planned Maintenance Programme,HRA Capital Financing,Central Heating,Capital,Contractor Payments,COMPLETE FLUE SOLUTIONS LIMITED,GL53,11/08/2023,"4,457.00"
101958325,Learning Disabilities,Adults,Learning Disability 18 - 64,Transfer Payments,Personal Budget - Direct Payments - Domiciliary Care,REDACTED PERSONAL DATA,GL2 ,30/08/2023,"4,913.59"
099963243,Property Management,Property,Corporate Repairs & Maintenance Programme,Premises Costs,Maintenance - Buildings,COOLINK LTD,SN11,16/08/2023,694.00
101981254,Property Management,Property,Corporate Repairs & Maintenance Programme,Premises Costs,Maintenance - Buildings,COOLINK LTD,SN11,30/08/2023,"3,783.00"
099346242,Responsive Repairs,Repairs,Responsive Repairs,3rd Party Payments,Contract Payments,REDACTED PERSONAL DATA,SN2 ,11/08/2023,"1,600.00"
099346239,Responsive Repairs,Repairs,Responsive Repairs,3rd Party Payments,Contract Payments,REDACTED PERSONAL DATA,SN2 ,11/08/2023,"2,850.00"
098056233,Responsive Repairs,Repairs,Responsive Repairs,3rd Party Payments,Contract Payments,REDACTED PERSONAL DATA,SN2 ,02/08/2023,"1,000.00"
099346240,Responsive Repairs,Repairs,Responsive Repairs,3rd Party Payments,Contract Payments,REDACTED PERSONAL DATA,SN2 ,11/08/2023,"2,650.00"
098047256,Responsive Repairs,Repairs,Responsive Repairs,3rd Party Payments,Contract Payments,REDACTED PERSONAL DATA,SN2 ,04/08/2023,680.00
098047257,Responsive Repairs,Repairs,Responsive Repairs,3rd Party Payments,Contract Payments,REDACTED PERSONAL DATA,SN2 ,04/08/2023,"1,000.00"
099346239,Responsive Repairs,Repairs,Responsive Repairs,3rd Party Payments,Contract Payments,REDACTED PERSONAL DATA,SN2 ,11/08/2023,"1,000.00"
098047255,Responsive Repairs,Repairs,Responsive Repairs,3rd Party Payments,Contract Payments,REDACTED PERSONAL DATA,SN2 ,04/08/2023,600.00
098047254,Responsive Repairs,Repairs,Responsive Repairs,3rd Party Payments,Contract Payments,REDACTED PERSONAL DATA,SN2 ,04/08/2023,"2,750.00"
098047256,Responsive Repairs,Repairs,Responsive Repairs,3rd Party Payments,Contract Payments,REDACTED PERSONAL DATA,SN2 ,04/08/2023,150.00
098047255,Responsive Repairs,Repairs,Responsive Repairs,3rd Party Payments,Contract Payments,REDACTED PERSONAL DATA,SN2 ,04/08/2023,"1,700.00"
098047254,Responsive Repairs,Repairs,Responsive Repairs,3rd Party Payments,Contract Payments,REDACTED PERSONAL DATA,SN2 ,04/08/2023,"1,200.00"
098056233,Responsive Repairs,Repairs,Responsive Repairs,3rd Party Payments,Contract Payments,REDACTED PERSONAL DATA,SN2 ,02/08/2023,600.00
098047253,Responsive Repairs,Repairs,Responsive Repairs,3rd Party Payments,Contract Payments,REDACTED PERSONAL DATA,SN2 ,04/08/2023,"1,500.00"
098047257,Responsive Repairs,Repairs,Responsive Repairs,3rd Party Payments,Contract Payments,REDACTED PERSONAL DATA,SN2 ,04/08/2023,600.00
099346242,Responsive Repairs,Repairs,Responsive Repairs,3rd Party Payments,Contract Payments,REDACTED PERSONAL DATA,SN2 ,11/08/2023,"1,400.00"
099346240,Responsive Repairs,Repairs,Responsive Repairs,3rd Party Payments,Contract Payments,REDACTED PERSONAL DATA,SN2 ,11/08/2023,"1,200.00"
098047253,Responsive Repairs,Repairs,Responsive Repairs,3rd Party Payments,Contract Payments,REDACTED PERSONAL DATA,SN2 ,04/08/2023,"1,950.00"
101647233,Social Care,"Children, Families and Community Health Services",Placement Adoption Service,3rd Party Payments,Adoption Allowances,REDACTED PERSONAL DATA,BA15,25/08/2023,860.00
099588268,Social Care,"Children, Families and Community Health Services",Placement Adoption Service,3rd Party Payments,Adoption Allowances,REDACTED PERSONAL DATA,BA15,14/08/2023,860.00
100317233,Learning Disabilities,Adults,Learning Disability 18 - 64,Income,Client Contribution - Residential,CORNERSTONES UK LTD,SN9 ,18/08/2023,-414.20
100317233,Learning Disabilities,Adults,Learning Disability 18 - 64,3rd Party Payments,Residential Care,CORNERSTONES UK LTD,SN9 ,18/08/2023,"6,626.24"
100317233,Learning Disabilities,Adults,Learning Disability 18 - 64,3rd Party Payments,Residential Care,CORNERSTONES UK LTD,SN9 ,18/08/2023,"5,322.56"
100317233,Learning Disabilities,Adults,Learning Disability 18 - 64,3rd Party Payments,Residential Care,CORNERSTONES UK LTD,SN9 ,18/08/2023,"8,650.40"
100317233,Learning Disabilities,Adults,Learning Disability 18 - 64,Income,Client Contribution - Residential,CORNERSTONES UK LTD,SN9 ,18/08/2023,-381.00
100317233,Learning Disabilities,Adults,Learning Disability 18 - 64,Income,Client Contribution - Residential,CORNERSTONES UK LTD,SN9 ,18/08/2023,-487.80
100317233,Learning Disabilities,Adults,Learning Disability 18 - 64,Income,Client Contribution - Residential,CORNERSTONES UK LTD,SN9 ,18/08/2023,-423.00
100317233,Learning Disabilities,Adults,Learning Disability 18 - 64,Income,Client Contribution - Residential,CORNERSTONES UK LTD,SN9 ,18/08/2023,-438.80
100317233,Learning Disabilities,Adults,Learning Disability 18 - 64,3rd Party Payments,Residential Care,CORNERSTONES UK LTD,SN9 ,18/08/2023,"8,465.28"
100317233,Learning Disabilities,Adults,Learning Disability 18 - 64,3rd Party Payments,Residential Care,CORNERSTONES UK LTD,SN9 ,18/08/2023,"7,337.52"
100317233,Learning Disabilities,Adults,Learning Disability 18 - 64,3rd Party Payments,Residential Care,CORNERSTONES UK LTD,SN9 ,18/08/2023,"4,178.84"
101860256,DSG Other Funding,DSG Skills and Attainment,LAC pupil premium,Supplies and Services,Services,COSTON PRIMARY SCHOOL,UB6 ,25/08/2023,600.00
101860257,DSG Other Funding,DSG Skills and Attainment,LAC pupil premium,Supplies and Services,Services,COTSWOLD CHINE SCHOOL,GL5 ,25/08/2023,600.00
099052233,High Needs Block,DSG Skills and Attainment,Out of Borough School Fees,3rd Party Payments,Independent Special School- Pre 16,COTSWOLD CHINE SCHOOL,GL5 ,09/08/2023,"27,553.76"
099388233,High Needs Block,DSG Skills and Attainment,Out of Borough School Fees,3rd Party Payments,Independent Special School- Pre 16,COTSWOLD CHINE SCHOOL,GL5 ,11/08/2023,"27,553.76"
099142234,Streetsmart,Streetsmart,Waterside Fleet Hires,Transport Costs,Vehicle Hire / Contract,COTSWOLD RECYCLING COMPANY LTD,GL12,09/08/2023,"1,900.00"
099142235,Streetsmart,Streetsmart,Waterside Fleet Hires,Transport Costs,Vehicle Hire / Contract,COTSWOLD RECYCLING COMPANY LTD,GL12,09/08/2023,"1,900.00"
097877238,Streetsmart,Streetsmart,Waterside Fleet Workshops,Supplies and Services,Materials,COTSWOLD RECYCLING COMPANY LTD,GL12,02/08/2023,"5,244.52"
101958601,Learning Disabilities,Adults,Learning Disability 18 - 64,Transfer Payments,Personal Budget - Direct Payments - Domiciliary Care,REDACTED PERSONAL DATA,SP11,30/08/2023,"1,804.61"
100033233,Streetsmart,Streetsmart,Waste - Disposal,Supplies and Services,Materials,COVEYA LTD,BS30,16/08/2023,"1,146.60"
101858245,Schools Block - Central,DSG Skills and Attainment,Universal Infant Free School Meals,Supplies and Services,Payments to Educational Bodies,COVINGHAM PARK PRIMARY SCHOOL,SN3 ,25/08/2023,"36,033.00"
101857257,Schools Block - Central,DSG Skills and Attainment,Universal Infant Free School Meals,Supplies and Services,Payments to Educational Bodies,COVINGHAM PARK PRIMARY SCHOOL,SN3 ,25/08/2023,"25,318.00"
100240242,DSG Other Funding,DSG Skills and Attainment,DFE Additional Grants,3rd Party Payments,Payment of Pupil Premium to school,COVINGHAM PARK PRIMARY SCHOOL,SN3 ,18/08/2023,"8,057.00"
098662233,High Needs Block,DSG Skills and Attainment,SEN Resourcing Assessment Panel,3rd Party Payments,Top up funding - Maintained providers Pre 16,COVINGHAM PARK PRIMARY SCHOOL,SN3 ,11/08/2023,"3,530.00"
100238244,Schools - Primary,DSG Skills and Attainment,Primary School Budgets,3rd Party Payments,Mainstream Delegated Funding,COVINGHAM PARK PRIMARY SCHOOL,SN3 ,18/08/2023,"133,967.00"
098182233,DSG Other Funding,DSG Skills and Attainment,DFE Additional Grants,Supplies and Services,Payments to Educational Bodies,COVINGHAM PARK PRIMARY SCHOOL,SN3 ,04/08/2023,"2,320.00"
100387240,Mental Health,Adults,Mental Health 65 and over,3rd Party Payments,Nursing Care,COXWELL HALL AND MEWS NURSING HOME,TW20,18/08/2023,"6,452.80"
100387240,Mental Health,Adults,Mental Health 65 and over,3rd Party Payments,Nursing Care,COXWELL HALL AND MEWS NURSING HOME,TW20,18/08/2023,"6,160.00"
100387240,Memory & Cognition,Adults,Support for Memory and Cognition 65 and over,3rd Party Payments,Residential Care,COXWELL HALL AND MEWS NURSING HOME,TW20,18/08/2023,"5,968.24"
100387240,Mental Health,Adults,Mental Health 65 and over,3rd Party Payments,Residential Care,COXWELL HALL AND MEWS NURSING HOME,TW20,18/08/2023,"6,000.00"
098594241,Planned Maintenance Programme,HRA Capital Financing,Contingent Major Repairs,Capital,Contractor Payments,CPS CONSTRUCTION LTD,BS15,09/08/2023,750.68
098595233,Planned Maintenance Programme,HRA Capital Financing,Contingent Major Repairs,Capital,Contractor Payments,CPS CONSTRUCTION LTD,BS15,09/08/2023,750.68
100293233,Learning Disabilities,Adults,Learning Disability 18 - 64,Income,Client Contribution - Residential,CRAEGMOOR HEALTHCARE,BA14,18/08/2023,-483.20
100293233,Learning Disabilities,Adults,Learning Disability 18 - 64,3rd Party Payments,Residential Care,CRAEGMOOR HEALTHCARE,BA14,18/08/2023,"9,158.28"
100143233,Streetsmart,Streetsmart,Waste - Disposal,3rd Party Payments,Contract Payments,CRAPPER & SONS LANDFILL LTD,SN4 ,18/08/2023,"16,977.06"
100140233,Streetsmart,Streetsmart,Waste - Disposal,3rd Party Payments,Contract Payments,CRAPPER & SONS LANDFILL LTD,SN4 ,18/08/2023,837.10
100144233,Streetsmart,Streetsmart,Waste - Disposal,3rd Party Payments,Contract Payments,CRAPPER & SONS LANDFILL LTD,SN4 ,18/08/2023,"8,129.23"
100036233,Streetsmart,Streetsmart,Waste - Disposal,3rd Party Payments,Contract Payments,CRAPPER & SONS LANDFILL LTD,SN4 ,16/08/2023,501.70
098575233,Streetsmart,Streetsmart,Waste - Disposal,3rd Party Payments,Contract Payments,CRAPPER & SONS LANDFILL LTD,SN4 ,07/08/2023,"7,821.08"
098053234,Streetsmart,Streetsmart,Waste - Disposal,3rd Party Payments,Contract Payments,CRAPPER & SONS LANDFILL LTD,SN4 ,02/08/2023,"1,089.50"
098045234,Streetsmart,Streetsmart,Waste - Disposal,3rd Party Payments,Contract Payments,CRAPPER & SONS LANDFILL LTD,SN4 ,02/08/2023,"1,693.20"
098045233,Streetsmart,Streetsmart,Waste - Disposal,3rd Party Payments,Contract Payments,CRAPPER & SONS LANDFILL LTD,SN4 ,02/08/2023,"2,555.70"
098044237,Streetsmart,Streetsmart,Waste - Disposal,3rd Party Payments,Contract Payments,CRAPPER & SONS LANDFILL LTD,SN4 ,02/08/2023,969.41
100131233,Streetsmart,Streetsmart,Waste - Disposal,3rd Party Payments,Contract Payments,CRAPPER & SONS LANDFILL LTD,SN4 ,18/08/2023,"2,394.33"
100151233,Streetsmart,Streetsmart,Waste - Disposal,3rd Party Payments,Contract Payments,CRAPPER & SONS LANDFILL LTD,SN4 ,18/08/2023,"5,956.10"
098577233,Streetsmart,Streetsmart,Waste - Disposal,3rd Party Payments,Contract Payments,CRAPPER & SONS LANDFILL LTD,SN4 ,07/08/2023,"2,233.44"
100017233,Streetsmart,Streetsmart,Waste - Disposal,3rd Party Payments,Contract Payments,CRAPPER & SONS LANDFILL LTD,SN4 ,16/08/2023,"6,774.95"
100021233,Streetsmart,Streetsmart,Waste - Disposal,3rd Party Payments,Contract Payments,CRAPPER & SONS LANDFILL LTD,SN4 ,16/08/2023,"1,371.89"
099420233,Streetsmart,Streetsmart,Waste - Disposal,3rd Party Payments,Contract Payments,CRAPPER & SONS LANDFILL LTD,SN4 ,11/08/2023,"4,811.98"
099414233,Streetsmart,Streetsmart,Waste - Processing,Transport Costs,Vehicle Hire / Contract,CRAPPER & SONS LANDFILL LTD,SN4 ,11/08/2023,480.00
100152233,Streetsmart,Streetsmart,Waste - Disposal,3rd Party Payments,Contract Payments,CRAPPER & SONS LANDFILL LTD,SN4 ,18/08/2023,"3,092.25"
100149233,Streetsmart,Streetsmart,Waste - Disposal,3rd Party Payments,Contract Payments,CRAPPER & SONS LANDFILL LTD,SN4 ,18/08/2023,"7,771.83"
100125233,Streetsmart,Streetsmart,Waste - Disposal,3rd Party Payments,Contract Payments,CRAPPER & SONS LANDFILL LTD,SN4 ,16/08/2023,890.14
100037233,Streetsmart,Streetsmart,Waste - Disposal,3rd Party Payments,Contract Payments,CRAPPER & SONS LANDFILL LTD,SN4 ,16/08/2023,968.37
100039233,Streetsmart,Streetsmart,Waste - Disposal,3rd Party Payments,Contract Payments,CRAPPER & SONS LANDFILL LTD,SN4 ,16/08/2023,691.24
100020233,Streetsmart,Streetsmart,Waste - Disposal,3rd Party Payments,Contract Payments,CRAPPER & SONS LANDFILL LTD,SN4 ,16/08/2023,"3,016.61"
100060233,Streetsmart,Streetsmart,Waste - Disposal,3rd Party Payments,Contract Payments,CRAPPER & SONS LANDFILL LTD,SN4 ,16/08/2023,"1,167.92"
100049233,Streetsmart,Streetsmart,Waste - Disposal,3rd Party Payments,Contract Payments,CRAPPER & SONS LANDFILL LTD,SN4 ,16/08/2023,"7,251.16"
098044238,Streetsmart,Streetsmart,Waste - Disposal,3rd Party Payments,Contract Payments,CRAPPER & SONS LANDFILL LTD,SN4 ,02/08/2023,"11,385.76"
100139233,Streetsmart,Streetsmart,Waste - Disposal,3rd Party Payments,Contract Payments,CRAPPER & SONS LANDFILL LTD,SN4 ,18/08/2023,"1,484.59"
100124233,Streetsmart,Streetsmart,Waste - Disposal,3rd Party Payments,Contract Payments,CRAPPER & SONS LANDFILL LTD,SN4 ,16/08/2023,"4,517.67"
100038233,Streetsmart,Streetsmart,Waste - Disposal,3rd Party Payments,Contract Payments,CRAPPER & SONS LANDFILL LTD,SN4 ,16/08/2023,"2,071.44"
100047234,Streetsmart,Streetsmart,Waste - Disposal,3rd Party Payments,Contract Payments,CRAPPER & SONS LANDFILL LTD,SN4 ,16/08/2023,"8,391.72"
099436233,Streetsmart,Streetsmart,Waste - Disposal,3rd Party Payments,Contract Payments,CRAPPER & SONS LANDFILL LTD,SN4 ,11/08/2023,"3,907.49"
100135233,Streetsmart,Streetsmart,Waste - Disposal,3rd Party Payments,Contract Payments,CRAPPER & SONS LANDFILL LTD,SN4 ,18/08/2023,"2,649.72"
098576233,Streetsmart,Streetsmart,Waste - Disposal,3rd Party Payments,Contract Payments,CRAPPER & SONS LANDFILL LTD,SN4 ,07/08/2023,"2,084.13"
099418233,Streetsmart,Streetsmart,Waste - Disposal,3rd Party Payments,Contract Payments,CRAPPER & SONS LANDFILL LTD,SN4 ,11/08/2023,"2,247.92"
098044235,Streetsmart,Streetsmart,Waste - Disposal,3rd Party Payments,Contract Payments,CRAPPER & SONS LANDFILL LTD,SN4 ,02/08/2023,"3,575.59"
098044236,Streetsmart,Streetsmart,Waste - Disposal,3rd Party Payments,Contract Payments,CRAPPER & SONS LANDFILL LTD,SN4 ,02/08/2023,798.41
100133233,Streetsmart,Streetsmart,Waste - Disposal,3rd Party Payments,Contract Payments,CRAPPER & SONS LANDFILL LTD,SN4 ,18/08/2023,"9,571.94"
100132233,Streetsmart,Streetsmart,Waste - Disposal,3rd Party Payments,Contract Payments,CRAPPER & SONS LANDFILL LTD,SN4 ,18/08/2023,"7,181.38"
100134233,Streetsmart,Streetsmart,Waste - Disposal,3rd Party Payments,Contract Payments,CRAPPER & SONS LANDFILL LTD,SN4 ,18/08/2023,"4,065.54"
100155233,Streetsmart,Streetsmart,Waste - Disposal,3rd Party Payments,Contract Payments,CRAPPER & SONS LANDFILL LTD,SN4 ,18/08/2023,"3,065.67"
100154233,Streetsmart,Streetsmart,Waste - Disposal,3rd Party Payments,Contract Payments,CRAPPER & SONS LANDFILL LTD,SN4 ,18/08/2023,"1,319.95"
100015233,Streetsmart,Streetsmart,Waste - Disposal,3rd Party Payments,Contract Payments,CRAPPER & SONS LANDFILL LTD,SN4 ,16/08/2023,568.62
100048234,Streetsmart,Streetsmart,Waste - Disposal,3rd Party Payments,Contract Payments,CRAPPER & SONS LANDFILL LTD,SN4 ,16/08/2023,"1,014.59"
099416233,Streetsmart,Streetsmart,Waste - Disposal,3rd Party Payments,Contract Payments,CRAPPER & SONS LANDFILL LTD,SN4 ,11/08/2023,"11,790.81"
099417233,Streetsmart,Streetsmart,Waste - Disposal,3rd Party Payments,Contract Payments,CRAPPER & SONS LANDFILL LTD,SN4 ,11/08/2023,766.12
100153233,Streetsmart,Streetsmart,Waste - Disposal,3rd Party Payments,Contract Payments,CRAPPER & SONS LANDFILL LTD,SN4 ,18/08/2023,"8,424.53"
099437233,Streetsmart,Streetsmart,Waste - Disposal,3rd Party Payments,Contract Payments,CRAPPER & SONS LANDFILL LTD,SN4 ,11/08/2023,"3,515.57"
099435233,Streetsmart,Streetsmart,Waste - Disposal,3rd Party Payments,Contract Payments,CRAPPER & SONS LANDFILL LTD,SN4 ,11/08/2023,978.77
098044239,Streetsmart,Streetsmart,Waste - Disposal,3rd Party Payments,Contract Payments,CRAPPER & SONS LANDFILL LTD,SN4 ,02/08/2023,"11,161.34"
099419233,Streetsmart,Streetsmart,Waste - Disposal,3rd Party Payments,Contract Payments,CRAPPER & SONS LANDFILL LTD,SN4 ,11/08/2023,"4,449.11"
100137233,Streetsmart,Streetsmart,Waste - Disposal,3rd Party Payments,Contract Payments,CRAPPER & SONS LANDFILL LTD,SN4 ,18/08/2023,"5,877.40"
098042239,Streetsmart,Streetsmart,Waste - Disposal,3rd Party Payments,Contract Payments,CRAPPER & SONS LANDFILL LTD,SN4 ,02/08/2023,762.20
099438233,Streetsmart,Streetsmart,Waste - Processing,Transport Costs,Vehicle Hire / Contract,CRAPPER & SONS LANDFILL LTD,SN4 ,11/08/2023,720.00
100876233,Physical Support,Adults,Fessey House,Supplies and Services,Food,CREED CATERING SUPPLIES LTD,GL51,23/08/2023,83.18
098889234,Physical Support,Adults,Fessey House,Supplies and Services,Food,CREED CATERING SUPPLIES LTD,GL51,09/08/2023,622.30
097717234,Physical Support,Adults,Fessey House,Supplies and Services,Food,CREED CATERING SUPPLIES LTD,GL51,02/08/2023,59.36
097717234,Physical Support,Adults,Fessey House,Supplies and Services,Food,CREED CATERING SUPPLIES LTD,GL51,02/08/2023,589.52
100876233,Physical Support,Adults,Fessey House,Supplies and Services,Food,CREED CATERING SUPPLIES LTD,GL51,23/08/2023,"1,124.99"
100879233,Physical Support,Adults,Fessey House,Supplies and Services,Food,CREED CATERING SUPPLIES LTD,GL51,23/08/2023,148.13
100879233,Physical Support,Adults,Fessey House,Supplies and Services,Food,CREED CATERING SUPPLIES LTD,GL51,23/08/2023,530.58
098888233,Physical Support,Adults,Fessey House,Supplies and Services,Food,CREED CATERING SUPPLIES LTD,GL51,09/08/2023,175.24
097728234,Physical Support,Adults,Fessey House,Supplies and Services,Food,CREED CATERING SUPPLIES LTD,GL51,02/08/2023,136.44
100878233,Physical Support,Adults,Fessey House,Supplies and Services,Food,CREED CATERING SUPPLIES LTD,GL51,23/08/2023,96.59
100878233,Physical Support,Adults,Fessey House,Supplies and Services,Food,CREED CATERING SUPPLIES LTD,GL51,23/08/2023,815.83
098888233,Physical Support,Adults,Fessey House,Supplies and Services,Food,CREED CATERING SUPPLIES LTD,GL51,09/08/2023,615.07
097728234,Physical Support,Adults,Fessey House,Supplies and Services,Food,CREED CATERING SUPPLIES LTD,GL51,02/08/2023,773.11
098889234,Physical Support,Adults,Fessey House,Supplies and Services,Food,CREED CATERING SUPPLIES LTD,GL51,09/08/2023,15.50
099005233,Licencing,Regulatory Services,Taxis & Private Hire,Supplies and Services,Testing / Inspection,CROSS STREET GARAGE (SWINDON) LTD,SN1 ,09/08/2023,"1,100.00"
102122233,School Transport,"Education, Inclusion and Skills",Special Educational Needs Transport,Transport Costs,Home to School Transport,CROSS STREET RADIO CARS,SN1 ,30/08/2023,"2,250.00"
102155233,School Transport,"Education, Inclusion and Skills",Special Educational Needs Transport,Transport Costs,Home to School Transport,CROSS STREET RADIO CARS,SN1 ,30/08/2023,"2,970.00"
101860258,DSG Other Funding,DSG Skills and Attainment,LAC pupil premium,Supplies and Services,Services,CROSSGATES CP SCHOOL,LD1 ,25/08/2023,600.00
100238252,High Needs Block,DSG Skills and Attainment,Special School Place,3rd Party Payments,HNB- Place Funding post 16,CROWDYS HILL SCHOOL,SN2 ,18/08/2023,"38,333.00"
101858253,Schools Block - Central,DSG Skills and Attainment,Universal Infant Free School Meals,Supplies and Services,Payments to Educational Bodies,CROWDYS HILL SCHOOL,SN2 ,25/08/2023,"2,244.00"
101857281,Schools Block - Central,DSG Skills and Attainment,Universal Infant Free School Meals,Supplies and Services,Payments to Educational Bodies,CROWDYS HILL SCHOOL,SN2 ,25/08/2023,"2,194.00"
098191233,DSG Other Funding,DSG Skills and Attainment,DFE Additional Grants,Supplies and Services,Payments to Educational Bodies,CROWDYS HILL SCHOOL,SN2 ,04/08/2023,"26,626.50"
100238253,High Needs Block,DSG Skills and Attainment,Special School Place,3rd Party Payments,HNB- Place Funding pre 16,CROWDYS HILL SCHOOL,SN2 ,18/08/2023,"170,000.00"
098681233,High Needs Block,DSG Skills and Attainment,SEN Resourcing Assessment Panel,3rd Party Payments,Top up funding - Maintained providers Pre 16,CROWDYS HILL SCHOOL,SN2 ,11/08/2023,"21,875.00"
098680233,High Needs Block,DSG Skills and Attainment,SEN Resourcing Assessment Panel,3rd Party Payments,Top up funding - Maintained providers Pre 16,CROWDYS HILL SCHOOL,SN2 ,11/08/2023,"137,485.03"
098679233,High Needs Block,DSG Skills and Attainment,SEN Resourcing Assessment Panel,3rd Party Payments,Top up funding - Maintained providers Pre 16,CROWDYS HILL SCHOOL,SN2 ,11/08/2023,"48,670.50"
100240251,DSG Other Funding,DSG Skills and Attainment,DFE Additional Grants,3rd Party Payments,Payment of Pupil Premium to school,CROWDYS HILL SCHOOL,SN2 ,18/08/2023,"10,281.00"
098685233,High Needs Block,DSG Skills and Attainment,SEN Resourcing Assessment Panel,3rd Party Payments,Top up funding - Maintained providers Post 16,CROWDYS HILL SCHOOL,SN2 ,11/08/2023,"8,865.88"
